Body Name,Body,Date,Department,Beneficiary,Summary of Purpose (SeRCOP),Amount SUM,Merchant Code,Transaction Number,Supplier ID
Sandwell Metropolitan Borough Council,http://www.sandwell.gov.uk/info/200202/performance_and_spending/1079/payments_over_500,01-Oct-2023,Adults Social Care Capital,AXIS EUROPE PLC ,Adults Social Care Capital,9692.90,Deferred Charges/Grant Payments,2324P07_CR00001,64946
Sandwell Metropolitan Borough Council,http://www.sandwell.gov.uk/info/200202/performance_and_spending/1079/payments_over_500,02-Oct-2023,Adults Social Care Capital,AXIS EUROPE PLC ,Adults Social Care Capital,8746.29,Deferred Charges/Grant Payments,2324P07_CR00002,64946
Sandwell Metropolitan Borough Council,http://www.sandwell.gov.uk/info/200202/performance_and_spending/1079/payments_over_500,02-Oct-2023,Adults Social Care Capital,AXIS EUROPE PLC ,Adults Social Care Capital,26926.69,Deferred Charges/Grant Payments,2324P07_CR00003,64946
Sandwell Metropolitan Borough Council,http://www.sandwell.gov.uk/info/200202/performance_and_spending/1079/payments_over_500,17-Oct-2023,Adults Social Care Capital,AXIS EUROPE PLC ,Adults Social Care Capital,26510.23,Deferred Charges/Grant Payments,2324P07_CR00004,64946
Sandwell Metropolitan Borough Council,http://www.sandwell.gov.uk/info/200202/performance_and_spending/1079/payments_over_500,01-Oct-2023,Adults Social Care Capital,AXIS EUROPE PLC ,Adults Social Care Capital,10638.88,Deferred Charges/Grant Payments,2324P07_CR00005,64946
Sandwell Metropolitan Borough Council,http://www.sandwell.gov.uk/info/200202/performance_and_spending/1079/payments_over_500,01-Oct-2023,Adults Social Care Capital,AXIS EUROPE PLC ,Adults Social Care Capital,9167.94,Deferred Charges/Grant Payments,2324P07_CR00006,64946
Sandwell Metropolitan Borough Council,http://www.sandwell.gov.uk/info/200202/performance_and_spending/1079/payments_over_500,24-Oct-2023,Adults Social Care Capital,GEORGE GREEN LLP CLIENT,Adults Social Care Capital,360166.91,CIP - Acquisition of Land & Existing Buildings,2324P07_CR00007,120965
Sandwell Metropolitan Borough Council,http://www.sandwell.gov.uk/info/200202/performance_and_spending/1079/payments_over_500,01-Oct-2023,Adults Social Care Capital,PARCOR LTD,Adults Social Care Capital,6119.10,"CIP - New Construction,Conversion, Enhancement & Reno",2324P07_CR00008,163117
Sandwell Metropolitan Borough Council,http://www.sandwell.gov.uk/info/200202/performance_and_spending/1079/payments_over_500,01-Oct-2023,Adults Social Care Capital,SWG CONSTRUCTION (BUILD & RENOVATE) LTD,Adults Social Care Capital,100321.23,"CIP - New Construction,Conversion, Enhancement & Reno",2324P07_CR00009,166518
Sandwell Metropolitan Borough Council,http://www.sandwell.gov.uk/info/200202/performance_and_spending/1079/payments_over_500,01-Oct-2023,Adults Social Care Capital,VALUATION OFFICE AGENCY,Adults Social Care Capital,2100.00,Externally Purchased Professional Services ,2324P07_CR00010,01506754
Sandwell Metropolitan Borough Council,http://www.sandwell.gov.uk/info/200202/performance_and_spending/1079/payments_over_500,01-Oct-2023,Adults Social Care Capital,WESSEX LIFT CO LTD,Adults Social Care Capital,16224.33,Deferred Charges/Grant Payments,2324P07_CR00011,01095737
Sandwell Metropolitan Borough Council,http://www.sandwell.gov.uk/info/200202/performance_and_spending/1079/payments_over_500,06-Oct-2023,Adults Social Care Capital,DESIGN SYNTAX LIMITED,Adults Social Care Capital,28750.00,Deferred Charges/Grant Payments,2324P07_CR00012,106226
Sandwell Metropolitan Borough Council,http://www.sandwell.gov.uk/info/200202/performance_and_spending/1079/payments_over_500,19-Oct-2023,Adults Social Care Capital,GAINSBOROUGH HEALTHCARE GROUP LIMITED,Adults Social Care Capital,18753.60,Deferred Charges/Grant Payments,2324P07_CR00013,140861
Sandwell Metropolitan Borough Council,http://www.sandwell.gov.uk/info/200202/performance_and_spending/1079/payments_over_500,13-Oct-2023,Adults Social Care Capital,INTERGRATED DESIGNS,Adults Social Care Capital,900.00,Deferred Charges/Grant Payments,2324P07_CR00014,132496
Sandwell Metropolitan Borough Council,http://www.sandwell.gov.uk/info/200202/performance_and_spending/1079/payments_over_500,01-Oct-2023,Adults Social Care Capital,TDF DESIGN LIMITED,Adults Social Care Capital,30786.33,Deferred Charges/Grant Payments,2324P07_CR00015,10320
Sandwell Metropolitan Borough Council,http://www.sandwell.gov.uk/info/200202/performance_and_spending/1079/payments_over_500,01-Oct-2023,Adults Social Care Capital,TDF DESIGN LIMITED,Adults Social Care Capital,10765.33,Deferred Charges/Grant Payments,2324P07_CR00016,10320
Sandwell Metropolitan Borough Council,http://www.sandwell.gov.uk/info/200202/performance_and_spending/1079/payments_over_500,01-Oct-2023,Adults Social Care Capital,TDF DESIGN LIMITED,Adults Social Care Capital,23211.33,Deferred Charges/Grant Payments,2324P07_CR00017,10320
Sandwell Metropolitan Borough Council,http://www.sandwell.gov.uk/info/200202/performance_and_spending/1079/payments_over_500,02-Oct-2023,Adults Social Care Capital,TDF DESIGN LIMITED,Adults Social Care Capital,17500.00,Deferred Charges/Grant Payments,2324P07_CR00018,10320
Sandwell Metropolitan Borough Council,http://www.sandwell.gov.uk/info/200202/performance_and_spending/1079/payments_over_500,20-Oct-2023,Adults Social Care Capital,TDF DESIGN LIMITED,Adults Social Care Capital,13000.00,Deferred Charges/Grant Payments,2324P07_CR00019,10320
Sandwell Metropolitan Borough Council,http://www.sandwell.gov.uk/info/200202/performance_and_spending/1079/payments_over_500,01-Oct-2023,Adults Social Care Capital,B S VIRDEE,Adults Social Care Capital,6000.00,Deferred Charges/Grant Payments,2324P07_CR00020,16907
Sandwell Metropolitan Borough Council,http://www.sandwell.gov.uk/info/200202/performance_and_spending/1079/payments_over_500,01-Oct-2023,Adults Social Care Capital,R J WISHART,Adults Social Care Capital,10797.00,Deferred Charges/Grant Payments,2324P07_CR00021,08555927
Sandwell Metropolitan Borough Council,http://www.sandwell.gov.uk/info/200202/performance_and_spending/1079/payments_over_500,17-Oct-2023,Childrens Services,A OAKES LTD,Childrens Services,1105.00,Protective Clothing & Uniforms,2324P07_CR00022,01042944
Sandwell Metropolitan Borough Council,http://www.sandwell.gov.uk/info/200202/performance_and_spending/1079/payments_over_500,03-Oct-2023,Childrens Services,ABC DAY NURSERY & PRE SCHOOL LTD,Childrens Services,2000.00,Grant Payments,2324P07_CR00023,01472823
Sandwell Metropolitan Borough Council,http://www.sandwell.gov.uk/info/200202/performance_and_spending/1079/payments_over_500,03-Oct-2023,Childrens Services,ABC DOES LTD,Childrens Services,3071.54,Externally Purchased Professional Services ,2324P07_CR00024,127368
Sandwell Metropolitan Borough Council,http://www.sandwell.gov.uk/info/200202/performance_and_spending/1079/payments_over_500,17-Oct-2023,Childrens Services,AFFINITY WORKFORCE SOLUTIONS LTD T/A MONARCH EDUCATION LIMITED,Childrens Services,767.00,Agency Staff,2324P07_CR00025,110980
Sandwell Metropolitan Borough Council,http://www.sandwell.gov.uk/info/200202/performance_and_spending/1079/payments_over_500,17-Oct-2023,Childrens Services,AFFINITY WORKFORCE SOLUTIONS LTD T/A MONARCH EDUCATION LIMITED,Childrens Services,750.00,Agency Staff,2324P07_CR00026,110980
Sandwell Metropolitan Borough Council,http://www.sandwell.gov.uk/info/200202/performance_and_spending/1079/payments_over_500,01-Oct-2023,Childrens Services,AMP BIOMASS FUEL LTD T/A AMP CLEAN ENERGY,Childrens Services,3868.20,Ingestre Hall Arts Centre.Energy Costs,2324P07_CR00027,128761
Sandwell Metropolitan Borough Council,http://www.sandwell.gov.uk/info/200202/performance_and_spending/1079/payments_over_500,20-Oct-2023,Childrens Services,APD PRINT & DESIGN,Childrens Services,585.00,"Printing, Stationery & General Office Expenses",2324P07_CR00028,49454
Sandwell Metropolitan Borough Council,http://www.sandwell.gov.uk/info/200202/performance_and_spending/1079/payments_over_500,25-Oct-2023,Childrens Services,ASDA STORES LTD ,Childrens Services,4335.00,Protective Clothing & Uniforms,2324P07_CR00029,01610594
Sandwell Metropolitan Borough Council,http://www.sandwell.gov.uk/info/200202/performance_and_spending/1079/payments_over_500,01-Oct-2023,Childrens Services,AVANTI GAS LIMITED,Childrens Services,2063.36,Gas,2324P07_CR00030,60069
Sandwell Metropolitan Borough Council,http://www.sandwell.gov.uk/info/200202/performance_and_spending/1079/payments_over_500,01-Oct-2023,Childrens Services,BAKER ROSS LIMITED,Childrens Services,913.26,"Printing, Stationery & General Office Expenses",2324P07_CR00031,01269861
Sandwell Metropolitan Borough Council,http://www.sandwell.gov.uk/info/200202/performance_and_spending/1079/payments_over_500,01-Oct-2023,Childrens Services,BARNARDO SERVICES LIMITED,Childrens Services,697888.99,Contract Payments,2324P07_CR00032,9330
Sandwell Metropolitan Borough Council,http://www.sandwell.gov.uk/info/200202/performance_and_spending/1079/payments_over_500,01-Oct-2023,Childrens Services,BEST WEB JOBS LTD,Childrens Services,2000.00,Advertising & Publicity,2324P07_CR00033,125874
Sandwell Metropolitan Borough Council,http://www.sandwell.gov.uk/info/200202/performance_and_spending/1079/payments_over_500,11-Oct-2023,Childrens Services,BETHEL CONVENTION CENTRE,Childrens Services,5590.00,Hire of Facilities,2324P07_CR00034,01719624
Sandwell Metropolitan Borough Council,http://www.sandwell.gov.uk/info/200202/performance_and_spending/1079/payments_over_500,09-Oct-2023,Childrens Services,BIDFOOD,Childrens Services,531.91,Catering Provisions,2324P07_CR00035,164984
Sandwell Metropolitan Borough Council,http://www.sandwell.gov.uk/info/200202/performance_and_spending/1079/payments_over_500,01-Oct-2023,Childrens Services,BIDFOOD,Childrens Services,511.74,Catering Provisions,2324P07_CR00036,164984
Sandwell Metropolitan Borough Council,http://www.sandwell.gov.uk/info/200202/performance_and_spending/1079/payments_over_500,23-Oct-2023,Childrens Services,BIDFOOD,Childrens Services,685.47,Catering Provisions,2324P07_CR00037,164984
Sandwell Metropolitan Borough Council,http://www.sandwell.gov.uk/info/200202/performance_and_spending/1079/payments_over_500,03-Oct-2023,Childrens Services,BKSB LIMITED,Childrens Services,621.81,Subscriptions,2324P07_CR00038,21062
Sandwell Metropolitan Borough Council,http://www.sandwell.gov.uk/info/200202/performance_and_spending/1079/payments_over_500,05-Oct-2023,Childrens Services,BLEAKHOUSE PRIMARY SCHOOL,Childrens Services,2000.00,Grant Payments,2324P07_CR00039,148048
Sandwell Metropolitan Borough Council,http://www.sandwell.gov.uk/info/200202/performance_and_spending/1079/payments_over_500,10-Oct-2023,Childrens Services,CASCAID LIMITED,Childrens Services,699.00,Licences,2324P07_CR00040,01757445
Sandwell Metropolitan Borough Council,http://www.sandwell.gov.uk/info/200202/performance_and_spending/1079/payments_over_500,17-Oct-2023,Childrens Services,CC UNIFORMS LIMITED,Childrens Services,5360.00,Protective Clothing & Uniforms,2324P07_CR00041,141379
Sandwell Metropolitan Borough Council,http://www.sandwell.gov.uk/info/200202/performance_and_spending/1079/payments_over_500,11-Oct-2023,Childrens Services,CHRIST CHURCH C OF E PRIMARY SCHOOL,Childrens Services,750.00,Conference Expenses,2324P07_CR00042,1705
Sandwell Metropolitan Borough Council,http://www.sandwell.gov.uk/info/200202/performance_and_spending/1079/payments_over_500,17-Oct-2023,Childrens Services,CLIVE MARK SCHOOLWEAR LTD,Childrens Services,723.96,Protective Clothing & Uniforms,2324P07_CR00043,01058664
Sandwell Metropolitan Borough Council,http://www.sandwell.gov.uk/info/200202/performance_and_spending/1079/payments_over_500,01-Oct-2023,Childrens Services,CONFEDERATION OF BRITISH METALFORMING,Childrens Services,1600.00,Hire of Facilities,2324P07_CR00044,01675831
Sandwell Metropolitan Borough Council,http://www.sandwell.gov.uk/info/200202/performance_and_spending/1079/payments_over_500,16-Oct-2023,Childrens Services,CRESTED SCHOOLWEAR,Childrens Services,1070.00,Protective Clothing & Uniforms,2324P07_CR00045,157541
Sandwell Metropolitan Borough Council,http://www.sandwell.gov.uk/info/200202/performance_and_spending/1079/payments_over_500,03-Oct-2023,Childrens Services,CUSTODIAN GROUP LTD,Childrens Services,630.00,Rents,2324P07_CR00046,151637
Sandwell Metropolitan Borough Council,http://www.sandwell.gov.uk/info/200202/performance_and_spending/1079/payments_over_500,03-Oct-2023,Childrens Services,CUSTODIAN GROUP LTD,Childrens Services,630.00,Rents,2324P07_CR00047,151637
Sandwell Metropolitan Borough Council,http://www.sandwell.gov.uk/info/200202/performance_and_spending/1079/payments_over_500,03-Oct-2023,Childrens Services,CUSTODIAN GROUP LTD,Childrens Services,630.00,Rents,2324P07_CR00048,151637
Sandwell Metropolitan Borough Council,http://www.sandwell.gov.uk/info/200202/performance_and_spending/1079/payments_over_500,03-Oct-2023,Childrens Services,CUSTODIAN GROUP LTD,Childrens Services,630.00,Rents,2324P07_CR00049,151637
Sandwell Metropolitan Borough Council,http://www.sandwell.gov.uk/info/200202/performance_and_spending/1079/payments_over_500,03-Oct-2023,Childrens Services,CUSTODIAN GROUP LTD,Childrens Services,630.00,Rents,2324P07_CR00050,151637
Sandwell Metropolitan Borough Council,http://www.sandwell.gov.uk/info/200202/performance_and_spending/1079/payments_over_500,03-Oct-2023,Childrens Services,CUSTODIAN GROUP LTD,Childrens Services,630.00,Rents,2324P07_CR00051,151637
Sandwell Metropolitan Borough Council,http://www.sandwell.gov.uk/info/200202/performance_and_spending/1079/payments_over_500,03-Oct-2023,Childrens Services,CUSTODIAN GROUP LTD,Childrens Services,630.00,Rents,2324P07_CR00052,151637
Sandwell Metropolitan Borough Council,http://www.sandwell.gov.uk/info/200202/performance_and_spending/1079/payments_over_500,03-Oct-2023,Childrens Services,CUSTODIAN GROUP LTD,Childrens Services,630.00,Rents,2324P07_CR00053,151637
Sandwell Metropolitan Borough Council,http://www.sandwell.gov.uk/info/200202/performance_and_spending/1079/payments_over_500,03-Oct-2023,Childrens Services,CUSTODIAN GROUP LTD,Childrens Services,630.00,Rents,2324P07_CR00054,151637
Sandwell Metropolitan Borough Council,http://www.sandwell.gov.uk/info/200202/performance_and_spending/1079/payments_over_500,03-Oct-2023,Childrens Services,CUSTODIAN GROUP LTD,Childrens Services,630.00,Rents,2324P07_CR00055,151637
Sandwell Metropolitan Borough Council,http://www.sandwell.gov.uk/info/200202/performance_and_spending/1079/payments_over_500,03-Oct-2023,Childrens Services,CUSTODIAN GROUP LTD,Childrens Services,630.00,Rents,2324P07_CR00056,151637
Sandwell Metropolitan Borough Council,http://www.sandwell.gov.uk/info/200202/performance_and_spending/1079/payments_over_500,03-Oct-2023,Childrens Services,CUSTODIAN GROUP LTD,Childrens Services,630.00,Rents,2324P07_CR00057,151637
Sandwell Metropolitan Borough Council,http://www.sandwell.gov.uk/info/200202/performance_and_spending/1079/payments_over_500,04-Oct-2023,Childrens Services,CUSTODIAN GROUP LTD,Childrens Services,630.00,Rents,2324P07_CR00058,151637
Sandwell Metropolitan Borough Council,http://www.sandwell.gov.uk/info/200202/performance_and_spending/1079/payments_over_500,04-Oct-2023,Childrens Services,CUSTODIAN GROUP LTD,Childrens Services,630.00,Rents,2324P07_CR00059,151637
Sandwell Metropolitan Borough Council,http://www.sandwell.gov.uk/info/200202/performance_and_spending/1079/payments_over_500,04-Oct-2023,Childrens Services,CUSTODIAN GROUP LTD,Childrens Services,630.00,Rents,2324P07_CR00060,151637
Sandwell Metropolitan Borough Council,http://www.sandwell.gov.uk/info/200202/performance_and_spending/1079/payments_over_500,04-Oct-2023,Childrens Services,CUSTODIAN GROUP LTD,Childrens Services,630.00,Rents,2324P07_CR00061,151637
Sandwell Metropolitan Borough Council,http://www.sandwell.gov.uk/info/200202/performance_and_spending/1079/payments_over_500,04-Oct-2023,Childrens Services,CUSTODIAN GROUP LTD,Childrens Services,630.00,Rents,2324P07_CR00062,151637
Sandwell Metropolitan Borough Council,http://www.sandwell.gov.uk/info/200202/performance_and_spending/1079/payments_over_500,04-Oct-2023,Childrens Services,CUSTODIAN GROUP LTD,Childrens Services,630.00,Rents,2324P07_CR00063,151637
Sandwell Metropolitan Borough Council,http://www.sandwell.gov.uk/info/200202/performance_and_spending/1079/payments_over_500,04-Oct-2023,Childrens Services,CUSTODIAN GROUP LTD,Childrens Services,630.00,Rents,2324P07_CR00064,151637
Sandwell Metropolitan Borough Council,http://www.sandwell.gov.uk/info/200202/performance_and_spending/1079/payments_over_500,04-Oct-2023,Childrens Services,CUSTODIAN GROUP LTD,Childrens Services,630.00,Rents,2324P07_CR00065,151637
Sandwell Metropolitan Borough Council,http://www.sandwell.gov.uk/info/200202/performance_and_spending/1079/payments_over_500,04-Oct-2023,Childrens Services,CUSTODIAN GROUP LTD,Childrens Services,630.00,Rents,2324P07_CR00066,151637
Sandwell Metropolitan Borough Council,http://www.sandwell.gov.uk/info/200202/performance_and_spending/1079/payments_over_500,04-Oct-2023,Childrens Services,CUSTODIAN GROUP LTD,Childrens Services,630.00,Rents,2324P07_CR00067,151637
Sandwell Metropolitan Borough Council,http://www.sandwell.gov.uk/info/200202/performance_and_spending/1079/payments_over_500,04-Oct-2023,Childrens Services,CUSTODIAN GROUP LTD,Childrens Services,630.00,Rents,2324P07_CR00068,151637
Sandwell Metropolitan Borough Council,http://www.sandwell.gov.uk/info/200202/performance_and_spending/1079/payments_over_500,04-Oct-2023,Childrens Services,CUSTODIAN GROUP LTD,Childrens Services,630.00,Rents,2324P07_CR00069,151637
Sandwell Metropolitan Borough Council,http://www.sandwell.gov.uk/info/200202/performance_and_spending/1079/payments_over_500,19-Oct-2023,Childrens Services,CUSTODIAN GROUP LTD,Childrens Services,630.00,Rents,2324P07_CR00070,151637
Sandwell Metropolitan Borough Council,http://www.sandwell.gov.uk/info/200202/performance_and_spending/1079/payments_over_500,19-Oct-2023,Childrens Services,CUSTODIAN GROUP LTD,Childrens Services,630.00,Rents,2324P07_CR00071,151637
Sandwell Metropolitan Borough Council,http://www.sandwell.gov.uk/info/200202/performance_and_spending/1079/payments_over_500,19-Oct-2023,Childrens Services,CUSTODIAN GROUP LTD,Childrens Services,630.00,Rents,2324P07_CR00072,151637
Sandwell Metropolitan Borough Council,http://www.sandwell.gov.uk/info/200202/performance_and_spending/1079/payments_over_500,19-Oct-2023,Childrens Services,CUSTODIAN GROUP LTD,Childrens Services,630.00,Rents,2324P07_CR00073,151637
Sandwell Metropolitan Borough Council,http://www.sandwell.gov.uk/info/200202/performance_and_spending/1079/payments_over_500,19-Oct-2023,Childrens Services,CUSTODIAN GROUP LTD,Childrens Services,630.00,Rents,2324P07_CR00074,151637
Sandwell Metropolitan Borough Council,http://www.sandwell.gov.uk/info/200202/performance_and_spending/1079/payments_over_500,19-Oct-2023,Childrens Services,CUSTODIAN GROUP LTD,Childrens Services,630.00,Rents,2324P07_CR00075,151637
Sandwell Metropolitan Borough Council,http://www.sandwell.gov.uk/info/200202/performance_and_spending/1079/payments_over_500,19-Oct-2023,Childrens Services,DEBORAH UDAKIS CONSULTANCY LTD,Childrens Services,944.10,Externally Purchased Professional Services ,2324P07_CR00076,139858
Sandwell Metropolitan Borough Council,http://www.sandwell.gov.uk/info/200202/performance_and_spending/1079/payments_over_500,02-Oct-2023,Childrens Services,DIRECTION TRAINING & MANAGEMENT,Childrens Services,500.00,Externally Purchased Professional Services ,2324P07_CR00077,01727395
Sandwell Metropolitan Borough Council,http://www.sandwell.gov.uk/info/200202/performance_and_spending/1079/payments_over_500,05-Oct-2023,Childrens Services,DIRECTION TRAINING & MANAGEMENT,Childrens Services,1000.00,Externally Purchased Professional Services ,2324P07_CR00078,01727395
Sandwell Metropolitan Borough Council,http://www.sandwell.gov.uk/info/200202/performance_and_spending/1079/payments_over_500,13-Oct-2023,Childrens Services,FIRST CHOICE,Childrens Services,3130.00,Protective Clothing & Uniforms,2324P07_CR00079,01465132
Sandwell Metropolitan Borough Council,http://www.sandwell.gov.uk/info/200202/performance_and_spending/1079/payments_over_500,18-Oct-2023,Childrens Services,FIRST RESPONSE (FIRST AID) LTD,Childrens Services,565.50,Externally Purchased Professional Services ,2324P07_CR00080,57372
Sandwell Metropolitan Borough Council,http://www.sandwell.gov.uk/info/200202/performance_and_spending/1079/payments_over_500,03-Oct-2023,Childrens Services,GILANI ENTERPRISES LIMITED,Childrens Services,2066.67,Rents,2324P07_CR00081,2696
Sandwell Metropolitan Borough Council,http://www.sandwell.gov.uk/info/200202/performance_and_spending/1079/payments_over_500,03-Oct-2023,Childrens Services,GILANI ENTERPRISES LIMITED,Childrens Services,2066.67,Rents,2324P07_CR00082,2696
Sandwell Metropolitan Borough Council,http://www.sandwell.gov.uk/info/200202/performance_and_spending/1079/payments_over_500,03-Oct-2023,Childrens Services,GILANI ENTERPRISES LIMITED,Childrens Services,2066.67,Rents,2324P07_CR00083,2696
Sandwell Metropolitan Borough Council,http://www.sandwell.gov.uk/info/200202/performance_and_spending/1079/payments_over_500,03-Oct-2023,Childrens Services,GILANI ENTERPRISES LIMITED,Childrens Services,2066.67,Rents,2324P07_CR00084,2696
Sandwell Metropolitan Borough Council,http://www.sandwell.gov.uk/info/200202/performance_and_spending/1079/payments_over_500,03-Oct-2023,Childrens Services,GILANI ENTERPRISES LIMITED,Childrens Services,2066.67,Rents,2324P07_CR00085,2696
Sandwell Metropolitan Borough Council,http://www.sandwell.gov.uk/info/200202/performance_and_spending/1079/payments_over_500,03-Oct-2023,Childrens Services,GILANI ENTERPRISES LIMITED,Childrens Services,2066.67,Rents,2324P07_CR00086,2696
Sandwell Metropolitan Borough Council,http://www.sandwell.gov.uk/info/200202/performance_and_spending/1079/payments_over_500,03-Oct-2023,Childrens Services,GILANI ENTERPRISES LIMITED,Childrens Services,2066.67,Rents,2324P07_CR00087,2696
Sandwell Metropolitan Borough Council,http://www.sandwell.gov.uk/info/200202/performance_and_spending/1079/payments_over_500,03-Oct-2023,Childrens Services,GILANI ENTERPRISES LIMITED,Childrens Services,2066.67,Rents,2324P07_CR00088,2696
Sandwell Metropolitan Borough Council,http://www.sandwell.gov.uk/info/200202/performance_and_spending/1079/payments_over_500,03-Oct-2023,Childrens Services,GILANI ENTERPRISES LIMITED,Childrens Services,3100.00,Rents,2324P07_CR00089,2696
Sandwell Metropolitan Borough Council,http://www.sandwell.gov.uk/info/200202/performance_and_spending/1079/payments_over_500,03-Oct-2023,Childrens Services,GILANI ENTERPRISES LIMITED,Childrens Services,3100.00,Rents,2324P07_CR00090,2696
Sandwell Metropolitan Borough Council,http://www.sandwell.gov.uk/info/200202/performance_and_spending/1079/payments_over_500,03-Oct-2023,Childrens Services,GILANI ENTERPRISES LIMITED,Childrens Services,1733.33,Rents,2324P07_CR00091,2696
Sandwell Metropolitan Borough Council,http://www.sandwell.gov.uk/info/200202/performance_and_spending/1079/payments_over_500,03-Oct-2023,Childrens Services,GILANI ENTERPRISES LIMITED,Childrens Services,1666.67,Rents,2324P07_CR00092,2696
Sandwell Metropolitan Borough Council,http://www.sandwell.gov.uk/info/200202/performance_and_spending/1079/payments_over_500,09-Oct-2023,Childrens Services,GOGNA SCHOOLWEAR & SPORTS LIMITED,Childrens Services,1160.00,Protective Clothing & Uniforms,2324P07_CR00093,04005603
Sandwell Metropolitan Borough Council,http://www.sandwell.gov.uk/info/200202/performance_and_spending/1079/payments_over_500,01-Oct-2023,Childrens Services,GREEN DESTINATIONS LTD,Childrens Services,75653.54,Public Transport,2324P07_CR00094,109275
Sandwell Metropolitan Borough Council,http://www.sandwell.gov.uk/info/200202/performance_and_spending/1079/payments_over_500,11-Oct-2023,Childrens Services,HARVILLS HAWTHORN PRIMARY SCHOOL,Childrens Services,2000.00,Grant Payments,2324P07_CR00095,01782074
Sandwell Metropolitan Borough Council,http://www.sandwell.gov.uk/info/200202/performance_and_spending/1079/payments_over_500,01-Oct-2023,Childrens Services,HER MAJESTYS PRISON AND PROBATION SERVICE,Childrens Services,25020.00,Other Establishments,2324P07_CR00096,134815
Sandwell Metropolitan Borough Council,http://www.sandwell.gov.uk/info/200202/performance_and_spending/1079/payments_over_500,01-Oct-2023,Childrens Services,HER MAJESTYS PRISON AND PROBATION SERVICE,Childrens Services,25978.00,Other Establishments,2324P07_CR00097,134815
Sandwell Metropolitan Borough Council,http://www.sandwell.gov.uk/info/200202/performance_and_spending/1079/payments_over_500,01-Oct-2023,Childrens Services,HER MAJESTYS PRISON AND PROBATION SERVICE,Childrens Services,11732.00,Other Establishments,2324P07_CR00098,134815
Sandwell Metropolitan Borough Council,http://www.sandwell.gov.uk/info/200202/performance_and_spending/1079/payments_over_500,09-Oct-2023,Childrens Services,HOLY TRINITY CE PRIMARY,Childrens Services,2000.00,Grant Payments,2324P07_CR00099,01777348
Sandwell Metropolitan Borough Council,http://www.sandwell.gov.uk/info/200202/performance_and_spending/1079/payments_over_500,01-Oct-2023,Childrens Services,HOPE EDUCATION LTD,Childrens Services,1255.11,"Printing, Stationery & General Office Expenses",2324P07_CR00100,01777295
Sandwell Metropolitan Borough Council,http://www.sandwell.gov.uk/info/200202/performance_and_spending/1079/payments_over_500,01-Oct-2023,Childrens Services,INGESTRE ORANGERY AND GARDENS,Childrens Services,650.00,Materials & Consumables,2324P07_CR00101,127331
Sandwell Metropolitan Borough Council,http://www.sandwell.gov.uk/info/200202/performance_and_spending/1079/payments_over_500,01-Oct-2023,Childrens Services,INGESTRE ORANGERY AND GARDENS,Childrens Services,650.00,Materials & Consumables,2324P07_CR00102,127331
Sandwell Metropolitan Borough Council,http://www.sandwell.gov.uk/info/200202/performance_and_spending/1079/payments_over_500,01-Oct-2023,Childrens Services,IRON MAIDENS COMMERCIAL LAUNDRY LIMITED,Childrens Services,906.48,Laundry,2324P07_CR00103,124628
Sandwell Metropolitan Borough Council,http://www.sandwell.gov.uk/info/200202/performance_and_spending/1079/payments_over_500,17-Oct-2023,Childrens Services,LEARNING INTO EMPLOYMENT ACADEMY LTD,Childrens Services,873.83,Externally Purchased Professional Services ,2324P07_CR00104,147427
Sandwell Metropolitan Borough Council,http://www.sandwell.gov.uk/info/200202/performance_and_spending/1079/payments_over_500,23-Oct-2023,Childrens Services,LEARNING INTO EMPLOYMENT ACADEMY LTD,Childrens Services,966.56,Externally Purchased Professional Services ,2324P07_CR00105,147427
Sandwell Metropolitan Borough Council,http://www.sandwell.gov.uk/info/200202/performance_and_spending/1079/payments_over_500,10-Oct-2023,Childrens Services,LOLA BELLES PRIVATE DAY NURSERY,Dead SeRCOP,2000.00,Grant Payments,2324P07_CR00106,89271
Sandwell Metropolitan Borough Council,http://www.sandwell.gov.uk/info/200202/performance_and_spending/1079/payments_over_500,01-Oct-2023,Childrens Services,MAJOR COACHWAYS LIMITED,Childrens Services,1800.00,Equipment & Furniture ,2324P07_CR00107,06003722
Sandwell Metropolitan Borough Council,http://www.sandwell.gov.uk/info/200202/performance_and_spending/1079/payments_over_500,01-Oct-2023,Childrens Services,MOVECORP HOLDINGS LTD,Childrens Services,1318.00,Waste Disposal Charges,2324P07_CR00108,152623
Sandwell Metropolitan Borough Council,http://www.sandwell.gov.uk/info/200202/performance_and_spending/1079/payments_over_500,13-Oct-2023,Childrens Services,MOVECORP HOLDINGS LTD,Childrens Services,3144.70,Hire of Facilities,2324P07_CR00109,152623
Sandwell Metropolitan Borough Council,http://www.sandwell.gov.uk/info/200202/performance_and_spending/1079/payments_over_500,01-Oct-2023,Childrens Services,NEWAVE LTD,Childrens Services,570.93,Agency Staff,2324P07_CR00110,101666
Sandwell Metropolitan Borough Council,http://www.sandwell.gov.uk/info/200202/performance_and_spending/1079/payments_over_500,01-Oct-2023,Childrens Services,NEWAVE LTD,Childrens Services,2450.91,Agency Staff,2324P07_CR00111,101666
Sandwell Metropolitan Borough Council,http://www.sandwell.gov.uk/info/200202/performance_and_spending/1079/payments_over_500,01-Oct-2023,Childrens Services,NEWAVE LTD,Childrens Services,1457.00,Agency Staff,2324P07_CR00112,101666
Sandwell Metropolitan Borough Council,http://www.sandwell.gov.uk/info/200202/performance_and_spending/1079/payments_over_500,01-Oct-2023,Childrens Services,NEWAVE LTD,Childrens Services,3082.00,Agency Staff,2324P07_CR00113,101666
Sandwell Metropolitan Borough Council,http://www.sandwell.gov.uk/info/200202/performance_and_spending/1079/payments_over_500,01-Oct-2023,Childrens Services,NEWAVE LTD,Childrens Services,3649.13,Agency Staff,2324P07_CR00114,101666
Sandwell Metropolitan Borough Council,http://www.sandwell.gov.uk/info/200202/performance_and_spending/1079/payments_over_500,01-Oct-2023,Childrens Services,NEWAVE LTD,Childrens Services,1571.51,Agency Staff,2324P07_CR00115,101666
Sandwell Metropolitan Borough Council,http://www.sandwell.gov.uk/info/200202/performance_and_spending/1079/payments_over_500,19-Oct-2023,Childrens Services,NEWBURY TRAVEL LTD,Childrens Services,1180.00,Public Transport,2324P07_CR00116,06003081
Sandwell Metropolitan Borough Council,http://www.sandwell.gov.uk/info/200202/performance_and_spending/1079/payments_over_500,08-Oct-2023,Childrens Services,OLD PARK PRIMARY SCHOOL,Childrens Services,1070.32,Gas,2324P07_CR00117,04024287
Sandwell Metropolitan Borough Council,http://www.sandwell.gov.uk/info/200202/performance_and_spending/1079/payments_over_500,01-Oct-2023,Childrens Services,ONE 4 YOU SERVICES LTD,Childrens Services,192188.00,Public Transport,2324P07_CR00118,81204
Sandwell Metropolitan Borough Council,http://www.sandwell.gov.uk/info/200202/performance_and_spending/1079/payments_over_500,23-Oct-2023,Childrens Services,OPEN UNIVERSITY,Childrens Services,1731.00,Externally Purchased Professional Services ,2324P07_CR00119,01043246
Sandwell Metropolitan Borough Council,http://www.sandwell.gov.uk/info/200202/performance_and_spending/1079/payments_over_500,20-Oct-2023,Childrens Services,POWERED BY CAN LTD,Childrens Services,20617.73,Externally Purchased Professional Services ,2324P07_CR00120,116825
Sandwell Metropolitan Borough Council,http://www.sandwell.gov.uk/info/200202/performance_and_spending/1079/payments_over_500,05-Oct-2023,Childrens Services,POWERED BY CAN LTD,Childrens Services,40641.00,Externally Purchased Professional Services ,2324P07_CR00121,116825
Sandwell Metropolitan Borough Council,http://www.sandwell.gov.uk/info/200202/performance_and_spending/1079/payments_over_500,16-Oct-2023,Childrens Services,POWERED BY CAN LTD,Childrens Services,600.00,Externally Purchased Professional Services ,2324P07_CR00122,116825
Sandwell Metropolitan Borough Council,http://www.sandwell.gov.uk/info/200202/performance_and_spending/1079/payments_over_500,01-Oct-2023,Childrens Services,PROSPECTS SERVICES LIMITED,Childrens Services,4089.92,Grant Payments,2324P07_CR00123,01721288
Sandwell Metropolitan Borough Council,http://www.sandwell.gov.uk/info/200202/performance_and_spending/1079/payments_over_500,01-Oct-2023,Childrens Services,PROSPECTS SERVICES LIMITED,Childrens Services,4089.92,Grant Payments,2324P07_CR00124,01721288
Sandwell Metropolitan Borough Council,http://www.sandwell.gov.uk/info/200202/performance_and_spending/1079/payments_over_500,01-Oct-2023,Childrens Services,RENAISSANCE CREATIVE DESIGN & PRINT LTD,Childrens Services,665.00,"Printing, Stationery & General Office Expenses",2324P07_CR00125,97376
Sandwell Metropolitan Borough Council,http://www.sandwell.gov.uk/info/200202/performance_and_spending/1079/payments_over_500,01-Oct-2023,Childrens Services,RICHARDS CCTV,Childrens Services,1123.50,Security,2324P07_CR00126,01665737
Sandwell Metropolitan Borough Council,http://www.sandwell.gov.uk/info/200202/performance_and_spending/1079/payments_over_500,09-Oct-2023,Childrens Services,ROSTER RECRUITMENT,Childrens Services,724.50,Agency Staff,2324P07_CR00127,166640
Sandwell Metropolitan Borough Council,http://www.sandwell.gov.uk/info/200202/performance_and_spending/1079/payments_over_500,02-Oct-2023,Childrens Services,SANDWELL CHILDREN'S TRUST,Childrens Services,5705769.23,Other Establishments,2324P07_CR00128,133302
Sandwell Metropolitan Borough Council,http://www.sandwell.gov.uk/info/200202/performance_and_spending/1079/payments_over_500,01-Oct-2023,Childrens Services,SANDWELL CHILDREN'S TRUST,Childrens Services,190000.00,Grant Payments,2324P07_CR00129,133302
Sandwell Metropolitan Borough Council,http://www.sandwell.gov.uk/info/200202/performance_and_spending/1079/payments_over_500,05-Oct-2023,Childrens Services,SANDWELL DEAF COMMUNITY ASSOCIATION,Childrens Services,748.00,Bi-Lingual Translation Services,2324P07_CR00130,3138
Sandwell Metropolitan Borough Council,http://www.sandwell.gov.uk/info/200202/performance_and_spending/1079/payments_over_500,05-Oct-2023,Childrens Services,SANDWELL VALLEY SCHOOL,Childrens Services,1729.14,Externally Purchased Professional Services ,2324P07_CR00131,128222
Sandwell Metropolitan Borough Council,http://www.sandwell.gov.uk/info/200202/performance_and_spending/1079/payments_over_500,05-Oct-2023,Childrens Services,SANDWELL VALLEY SCHOOL,Childrens Services,2000.35,Externally Purchased Professional Services ,2324P07_CR00132,128222
Sandwell Metropolitan Borough Council,http://www.sandwell.gov.uk/info/200202/performance_and_spending/1079/payments_over_500,24-Oct-2023,Childrens Services,SANTOS DAY NURSERIES,Childrens Services,2000.00,Grant Payments,2324P07_CR00133,129262
Sandwell Metropolitan Borough Council,http://www.sandwell.gov.uk/info/200202/performance_and_spending/1079/payments_over_500,26-Oct-2023,Childrens Services,SCHOOL UNI MERCHANT,Childrens Services,1460.00,Protective Clothing & Uniforms,2324P07_CR00134,109571
Sandwell Metropolitan Borough Council,http://www.sandwell.gov.uk/info/200202/performance_and_spending/1079/payments_over_500,06-Oct-2023,Childrens Services,SHOE ZONE LTD   ,Childrens Services,1533.57,Protective Clothing & Uniforms,2324P07_CR00135,01699491
Sandwell Metropolitan Borough Council,http://www.sandwell.gov.uk/info/200202/performance_and_spending/1079/payments_over_500,01-Oct-2023,Childrens Services,SIPS EDUCATION LTD,Childrens Services,655.00,Externally Purchased Professional Services ,2324P07_CR00136,110784
Sandwell Metropolitan Borough Council,http://www.sandwell.gov.uk/info/200202/performance_and_spending/1079/payments_over_500,02-Oct-2023,Childrens Services,THE GIFT VOUCHER SHOP LIMITED,Childrens Services,1102.50,Operational Services ,2324P07_CR00137,111545
Sandwell Metropolitan Borough Council,http://www.sandwell.gov.uk/info/200202/performance_and_spending/1079/payments_over_500,02-Oct-2023,Childrens Services,THE GIFT VOUCHER SHOP LIMITED,Childrens Services,1470.00,Operational Services ,2324P07_CR00138,111545
Sandwell Metropolitan Borough Council,http://www.sandwell.gov.uk/info/200202/performance_and_spending/1079/payments_over_500,02-Oct-2023,Childrens Services,THE GIFT VOUCHER SHOP LIMITED,Childrens Services,1470.00,Operational Services ,2324P07_CR00139,111545
Sandwell Metropolitan Borough Council,http://www.sandwell.gov.uk/info/200202/performance_and_spending/1079/payments_over_500,01-Oct-2023,Childrens Services,THE PRIORY PRIMARY,Childrens Services,3602.95,Rents,2324P07_CR00140,01746051
Sandwell Metropolitan Borough Council,http://www.sandwell.gov.uk/info/200202/performance_and_spending/1079/payments_over_500,01-Oct-2023,Childrens Services,THE PRIORY PRIMARY,Childrens Services,3023.84,Rents,2324P07_CR00141,01746051
Sandwell Metropolitan Borough Council,http://www.sandwell.gov.uk/info/200202/performance_and_spending/1079/payments_over_500,09-Oct-2023,Childrens Services,THE WONDER YEARS DAY NURSERY LIMITED,Childrens Services,2000.00,Grant Payments,2324P07_CR00142,01647249
Sandwell Metropolitan Borough Council,http://www.sandwell.gov.uk/info/200202/performance_and_spending/1079/payments_over_500,03-Oct-2023,Childrens Services,THOMAS CHARLES FACILITIES & MAINTENANCE LTD,Childrens Services,1040.00,Security,2324P07_CR00143,114170
Sandwell Metropolitan Borough Council,http://www.sandwell.gov.uk/info/200202/performance_and_spending/1079/payments_over_500,03-Oct-2023,Childrens Services,THOMAS CHARLES FACILITIES & MAINTENANCE LTD,Childrens Services,3217.50,Contract Cleaning,2324P07_CR00144,114170
Sandwell Metropolitan Borough Council,http://www.sandwell.gov.uk/info/200202/performance_and_spending/1079/payments_over_500,03-Oct-2023,Childrens Services,THOMAS CHARLES FACILITIES & MAINTENANCE LTD,Childrens Services,2145.00,Contract Cleaning,2324P07_CR00145,114170
Sandwell Metropolitan Borough Council,http://www.sandwell.gov.uk/info/200202/performance_and_spending/1079/payments_over_500,03-Oct-2023,Childrens Services,THOMAS CHARLES FACILITIES & MAINTENANCE LTD,Childrens Services,2145.00,Contract Cleaning,2324P07_CR00146,114170
Sandwell Metropolitan Borough Council,http://www.sandwell.gov.uk/info/200202/performance_and_spending/1079/payments_over_500,03-Oct-2023,Childrens Services,THOMAS CHARLES FACILITIES & MAINTENANCE LTD,Childrens Services,2145.00,Contract Cleaning,2324P07_CR00147,114170
Sandwell Metropolitan Borough Council,http://www.sandwell.gov.uk/info/200202/performance_and_spending/1079/payments_over_500,03-Oct-2023,Childrens Services,THOMAS CHARLES FACILITIES & MAINTENANCE LTD,Childrens Services,1716.00,Contract Cleaning,2324P07_CR00148,114170
Sandwell Metropolitan Borough Council,http://www.sandwell.gov.uk/info/200202/performance_and_spending/1079/payments_over_500,03-Oct-2023,Childrens Services,THOMAS CHARLES FACILITIES & MAINTENANCE LTD,Childrens Services,858.00,Contract Cleaning,2324P07_CR00149,114170
Sandwell Metropolitan Borough Council,http://www.sandwell.gov.uk/info/200202/performance_and_spending/1079/payments_over_500,03-Oct-2023,Childrens Services,THOMAS CHARLES FACILITIES & MAINTENANCE LTD,Childrens Services,1287.00,Contract Cleaning,2324P07_CR00150,114170
Sandwell Metropolitan Borough Council,http://www.sandwell.gov.uk/info/200202/performance_and_spending/1079/payments_over_500,10-Oct-2023,Childrens Services,TINY STEPS,Childrens Services,2000.00,Grant Payments,2324P07_CR00151,125778
Sandwell Metropolitan Borough Council,http://www.sandwell.gov.uk/info/200202/performance_and_spending/1079/payments_over_500,05-Oct-2023,Childrens Services,TOPPS MANAGEMENT & SUPPORT SERVICES LTD,Childrens Services,2857.12,Discretionary Awards,2324P07_CR00152,68846
Sandwell Metropolitan Borough Council,http://www.sandwell.gov.uk/info/200202/performance_and_spending/1079/payments_over_500,01-Oct-2023,Childrens Services,TOTALENERGIES GAS & POWER LTD,Childrens Services,2371.01,Electricity,2324P07_CR00153,107605
Sandwell Metropolitan Borough Council,http://www.sandwell.gov.uk/info/200202/performance_and_spending/1079/payments_over_500,08-Oct-2023,Childrens Services,TOTALENERGIES GAS & POWER LTD,Childrens Services,1644.98,Electricity,2324P07_CR00154,107605
Sandwell Metropolitan Borough Council,http://www.sandwell.gov.uk/info/200202/performance_and_spending/1079/payments_over_500,01-Oct-2023,Childrens Services,TOTALENERGIES GAS & POWER LTD,Childrens Services,545.28,Electricity,2324P07_CR00155,107605
Sandwell Metropolitan Borough Council,http://www.sandwell.gov.uk/info/200202/performance_and_spending/1079/payments_over_500,11-Oct-2023,Childrens Services,TOTALENERGIES GAS & POWER LTD,Childrens Services,1542.13,Electricity,2324P07_CR00156,107605
Sandwell Metropolitan Borough Council,http://www.sandwell.gov.uk/info/200202/performance_and_spending/1079/payments_over_500,08-Oct-2023,Childrens Services,TOTALENERGIES GAS & POWER LTD,Childrens Services,583.09,Electricity,2324P07_CR00157,107605
Sandwell Metropolitan Borough Council,http://www.sandwell.gov.uk/info/200202/performance_and_spending/1079/payments_over_500,08-Oct-2023,Childrens Services,TOTALENERGIES GAS & POWER LTD,Childrens Services,611.37,Electricity,2324P07_CR00158,107605
Sandwell Metropolitan Borough Council,http://www.sandwell.gov.uk/info/200202/performance_and_spending/1079/payments_over_500,08-Oct-2023,Childrens Services,TOTALENERGIES GAS & POWER LTD,Childrens Services,1088.54,Electricity,2324P07_CR00159,107605
Sandwell Metropolitan Borough Council,http://www.sandwell.gov.uk/info/200202/performance_and_spending/1079/payments_over_500,08-Oct-2023,Childrens Services,TOTALENERGIES GAS & POWER LTD,Childrens Services,549.38,Electricity,2324P07_CR00160,107605
Sandwell Metropolitan Borough Council,http://www.sandwell.gov.uk/info/200202/performance_and_spending/1079/payments_over_500,08-Oct-2023,Childrens Services,TOTALENERGIES GAS & POWER LTD,Childrens Services,865.37,Electricity,2324P07_CR00161,107605
Sandwell Metropolitan Borough Council,http://www.sandwell.gov.uk/info/200202/performance_and_spending/1079/payments_over_500,08-Oct-2023,Childrens Services,TOTALENERGIES GAS & POWER LTD,Childrens Services,1307.13,Electricity,2324P07_CR00162,107605
Sandwell Metropolitan Borough Council,http://www.sandwell.gov.uk/info/200202/performance_and_spending/1079/payments_over_500,08-Oct-2023,Childrens Services,TOTALENERGIES GAS & POWER LTD,Childrens Services,1719.26,Electricity,2324P07_CR00163,107605
Sandwell Metropolitan Borough Council,http://www.sandwell.gov.uk/info/200202/performance_and_spending/1079/payments_over_500,01-Oct-2023,Childrens Services,TOTALENERGIES GAS & POWER LTD,Childrens Services,893.09,Gas,2324P07_CR00164,107605
Sandwell Metropolitan Borough Council,http://www.sandwell.gov.uk/info/200202/performance_and_spending/1079/payments_over_500,23-Oct-2023,Childrens Services,TRH WALSALL LTD,Childrens Services,933.52,Rents,2324P07_CR00165,85648
Sandwell Metropolitan Borough Council,http://www.sandwell.gov.uk/info/200202/performance_and_spending/1079/payments_over_500,23-Oct-2023,Childrens Services,TRH WALSALL LTD,Childrens Services,933.52,Rents,2324P07_CR00166,85648
Sandwell Metropolitan Borough Council,http://www.sandwell.gov.uk/info/200202/performance_and_spending/1079/payments_over_500,23-Oct-2023,Childrens Services,TRH WALSALL LTD,Childrens Services,933.52,Rents,2324P07_CR00167,85648
Sandwell Metropolitan Borough Council,http://www.sandwell.gov.uk/info/200202/performance_and_spending/1079/payments_over_500,10-Oct-2023,Childrens Services,TWO STEPS PRE-SCHOOL,Childrens Services,2000.00,Grant Payments,2324P07_CR00168,109186
Sandwell Metropolitan Borough Council,http://www.sandwell.gov.uk/info/200202/performance_and_spending/1079/payments_over_500,13-Oct-2023,Childrens Services,UP & UNDER OUTDOOR GEAR LTD,Childrens Services,1600.88,Equipment & Furniture ,2324P07_CR00169,72873
Sandwell Metropolitan Borough Council,http://www.sandwell.gov.uk/info/200202/performance_and_spending/1079/payments_over_500,01-Oct-2023,Childrens Services,WALSALL MBC,Childrens Services,5600.00,External Contract Hire,2324P07_CR00170,01106025
Sandwell Metropolitan Borough Council,http://www.sandwell.gov.uk/info/200202/performance_and_spending/1079/payments_over_500,07-Oct-2023,Childrens Services,WATER PLUS SELECT LIMITED,Childrens Services,1186.03,Water Services,2324P07_CR00171,129644
Sandwell Metropolitan Borough Council,http://www.sandwell.gov.uk/info/200202/performance_and_spending/1079/payments_over_500,10-Oct-2023,Childrens Services,WEST SMETHWICK ENTERPRISE AND STEPPING STONES PRE-SCHOOL,Childrens Services,2000.00,Grant Payments,2324P07_CR00172,01722169
Sandwell Metropolitan Borough Council,http://www.sandwell.gov.uk/info/200202/performance_and_spending/1079/payments_over_500,19-Oct-2023,Childrens Services,WONDE LTD,Childrens Services,9995.00,Licences,2324P07_CR00173,149233
Sandwell Metropolitan Borough Council,http://www.sandwell.gov.uk/info/200202/performance_and_spending/1079/payments_over_500,05-Oct-2023,Childrens Services,BEARWOOD PRIMARY SCHOOL ,Childrens Services,510.00,Schools Support Services,2324P07_CR00174,60967
Sandwell Metropolitan Borough Council,http://www.sandwell.gov.uk/info/200202/performance_and_spending/1079/payments_over_500,05-Oct-2023,Childrens Services,BEARWOOD PRIMARY SCHOOL ,Childrens Services,1335.00,Schools Support Services,2324P07_CR00175,60967
Sandwell Metropolitan Borough Council,http://www.sandwell.gov.uk/info/200202/performance_and_spending/1079/payments_over_500,05-Oct-2023,Childrens Services,BURNT TREE PRIMARY SCHOOL   ,Childrens Services,540.00,Schools Support Services,2324P07_CR00176,60974
Sandwell Metropolitan Borough Council,http://www.sandwell.gov.uk/info/200202/performance_and_spending/1079/payments_over_500,05-Oct-2023,Childrens Services,HOLY TRINITY CE PRIMARY ,Childrens Services,630.00,Schools Support Services,2324P07_CR00177,61004
Sandwell Metropolitan Borough Council,http://www.sandwell.gov.uk/info/200202/performance_and_spending/1079/payments_over_500,05-Oct-2023,Childrens Services,LYNG PRIMARY SCHOOL   ,Childrens Services,1650.00,Schools Support Services,2324P07_CR00178,61026
Sandwell Metropolitan Borough Council,http://www.sandwell.gov.uk/info/200202/performance_and_spending/1079/payments_over_500,05-Oct-2023,Childrens Services,LYNG PRIMARY SCHOOL   ,Childrens Services,2310.00,Schools Support Services,2324P07_CR00179,61026
Sandwell Metropolitan Borough Council,http://www.sandwell.gov.uk/info/200202/performance_and_spending/1079/payments_over_500,05-Oct-2023,Childrens Services,PHOENIX COLLEGIATE COLLEGE,Childrens Services,930.00,Schools Support Services,2324P07_CR00180,95444
Sandwell Metropolitan Borough Council,http://www.sandwell.gov.uk/info/200202/performance_and_spending/1079/payments_over_500,11-Oct-2023,Childrens Services,REDACTED PERSONAL DATA,Childrens Services,727.27,External Contract Hire,2324P07_CR00181,REDACTED PERSONAL DATA
Sandwell Metropolitan Borough Council,http://www.sandwell.gov.uk/info/200202/performance_and_spending/1079/payments_over_500,11-Oct-2023,Childrens Services,REDACTED PERSONAL DATA,Childrens Services,545.45,External Contract Hire,2324P07_CR00182,REDACTED PERSONAL DATA
Sandwell Metropolitan Borough Council,http://www.sandwell.gov.uk/info/200202/performance_and_spending/1079/payments_over_500,11-Oct-2023,Childrens Services,REDACTED PERSONAL DATA  ,Childrens Services,727.28,External Contract Hire,2324P07_CR00183,REDACTED PERSONAL DATA  
Sandwell Metropolitan Borough Council,http://www.sandwell.gov.uk/info/200202/performance_and_spending/1079/payments_over_500,11-Oct-2023,Childrens Services,REDACTED PERSONAL DATA,Childrens Services,545.45,External Contract Hire,2324P07_CR00184,REDACTED PERSONAL DATA
Sandwell Metropolitan Borough Council,http://www.sandwell.gov.uk/info/200202/performance_and_spending/1079/payments_over_500,11-Oct-2023,Childrens Services,REDACTED PERSONAL DATA,Childrens Services,545.45,External Contract Hire,2324P07_CR00185,REDACTED PERSONAL DATA
Sandwell Metropolitan Borough Council,http://www.sandwell.gov.uk/info/200202/performance_and_spending/1079/payments_over_500,11-Oct-2023,Childrens Services,REDACTED PERSONAL DATA,Childrens Services,545.45,External Contract Hire,2324P07_CR00186,REDACTED PERSONAL DATA
Sandwell Metropolitan Borough Council,http://www.sandwell.gov.uk/info/200202/performance_and_spending/1079/payments_over_500,11-Oct-2023,Childrens Services,REDACTED PERSONAL DATA,Childrens Services,1090.90,External Contract Hire,2324P07_CR00187,REDACTED PERSONAL DATA
Sandwell Metropolitan Borough Council,http://www.sandwell.gov.uk/info/200202/performance_and_spending/1079/payments_over_500,11-Oct-2023,Childrens Services,REDACTED PERSONAL DATA,Childrens Services,545.45,External Contract Hire,2324P07_CR00188,REDACTED PERSONAL DATA
Sandwell Metropolitan Borough Council,http://www.sandwell.gov.uk/info/200202/performance_and_spending/1079/payments_over_500,11-Oct-2023,Childrens Services,REDACTED PERSONAL DATA,Childrens Services,545.45,External Contract Hire,2324P07_CR00189,REDACTED PERSONAL DATA
Sandwell Metropolitan Borough Council,http://www.sandwell.gov.uk/info/200202/performance_and_spending/1079/payments_over_500,11-Oct-2023,Childrens Services,REDACTED PERSONAL DATA,Childrens Services,545.45,External Contract Hire,2324P07_CR00190,REDACTED PERSONAL DATA
Sandwell Metropolitan Borough Council,http://www.sandwell.gov.uk/info/200202/performance_and_spending/1079/payments_over_500,11-Oct-2023,Childrens Services,REDACTED PERSONAL DATA,Childrens Services,545.45,External Contract Hire,2324P07_CR00191,REDACTED PERSONAL DATA
Sandwell Metropolitan Borough Council,http://www.sandwell.gov.uk/info/200202/performance_and_spending/1079/payments_over_500,11-Oct-2023,Childrens Services,REDACTED PERSONAL DATA,Childrens Services,545.45,External Contract Hire,2324P07_CR00192,REDACTED PERSONAL DATA
Sandwell Metropolitan Borough Council,http://www.sandwell.gov.uk/info/200202/performance_and_spending/1079/payments_over_500,11-Oct-2023,Childrens Services,REDACTED PERSONAL DATA,Childrens Services,545.45,External Contract Hire,2324P07_CR00193,REDACTED PERSONAL DATA
Sandwell Metropolitan Borough Council,http://www.sandwell.gov.uk/info/200202/performance_and_spending/1079/payments_over_500,11-Oct-2023,Childrens Services,REDACTED PERSONAL DATA,Childrens Services,727.28,External Contract Hire,2324P07_CR00194,REDACTED PERSONAL DATA
Sandwell Metropolitan Borough Council,http://www.sandwell.gov.uk/info/200202/performance_and_spending/1079/payments_over_500,11-Oct-2023,Childrens Services,REDACTED PERSONAL DATA,Childrens Services,727.27,External Contract Hire,2324P07_CR00195,REDACTED PERSONAL DATA
Sandwell Metropolitan Borough Council,http://www.sandwell.gov.uk/info/200202/performance_and_spending/1079/payments_over_500,13-Oct-2023,Childrens Services,REDACTED PERSONAL DATA,Childrens Services,700.92,External Contract Hire,2324P07_CR00196,REDACTED PERSONAL DATA
Sandwell Metropolitan Borough Council,http://www.sandwell.gov.uk/info/200202/performance_and_spending/1079/payments_over_500,11-Oct-2023,Childrens Services,REDACTED PERSONAL DATA,Childrens Services,545.45,External Contract Hire,2324P07_CR00197,REDACTED PERSONAL DATA
Sandwell Metropolitan Borough Council,http://www.sandwell.gov.uk/info/200202/performance_and_spending/1079/payments_over_500,11-Oct-2023,Childrens Services,REDACTED PERSONAL DATA,Childrens Services,545.45,External Contract Hire,2324P07_CR00198,REDACTED PERSONAL DATA
Sandwell Metropolitan Borough Council,http://www.sandwell.gov.uk/info/200202/performance_and_spending/1079/payments_over_500,13-Oct-2023,Childrens Services,REDACTED PERSONAL DATA,Childrens Services,578.34,External Contract Hire,2324P07_CR00199,REDACTED PERSONAL DATA
Sandwell Metropolitan Borough Council,http://www.sandwell.gov.uk/info/200202/performance_and_spending/1079/payments_over_500,11-Oct-2023,Childrens Services,REDACTED PERSONAL DATA,Childrens Services,545.45,External Contract Hire,2324P07_CR00200,REDACTED PERSONAL DATA
Sandwell Metropolitan Borough Council,http://www.sandwell.gov.uk/info/200202/performance_and_spending/1079/payments_over_500,11-Oct-2023,Childrens Services,REDACTED PERSONAL DATA,Childrens Services,727.27,External Contract Hire,2324P07_CR00201,REDACTED PERSONAL DATA
Sandwell Metropolitan Borough Council,http://www.sandwell.gov.uk/info/200202/performance_and_spending/1079/payments_over_500,11-Oct-2023,Childrens Services,REDACTED PERSONAL DATA,Childrens Services,727.27,External Contract Hire,2324P07_CR00202,REDACTED PERSONAL DATA
Sandwell Metropolitan Borough Council,http://www.sandwell.gov.uk/info/200202/performance_and_spending/1079/payments_over_500,11-Oct-2023,Childrens Services,REDACTED PERSONAL DATA,Childrens Services,545.45,External Contract Hire,2324P07_CR00203,REDACTED PERSONAL DATA
Sandwell Metropolitan Borough Council,http://www.sandwell.gov.uk/info/200202/performance_and_spending/1079/payments_over_500,11-Oct-2023,Childrens Services,REDACTED PERSONAL DATA,Childrens Services,727.27,External Contract Hire,2324P07_CR00204,REDACTED PERSONAL DATA
Sandwell Metropolitan Borough Council,http://www.sandwell.gov.uk/info/200202/performance_and_spending/1079/payments_over_500,11-Oct-2023,Childrens Services,REDACTED PERSONAL DATA,Childrens Services,545.45,External Contract Hire,2324P07_CR00205,REDACTED PERSONAL DATA
Sandwell Metropolitan Borough Council,http://www.sandwell.gov.uk/info/200202/performance_and_spending/1079/payments_over_500,11-Oct-2023,Childrens Services,REDACTED PERSONAL DATA,Childrens Services,545.45,External Contract Hire,2324P07_CR00206,REDACTED PERSONAL DATA
Sandwell Metropolitan Borough Council,http://www.sandwell.gov.uk/info/200202/performance_and_spending/1079/payments_over_500,11-Oct-2023,Childrens Services,REDACTED PERSONAL DATA,Childrens Services,545.45,External Contract Hire,2324P07_CR00207,REDACTED PERSONAL DATA
Sandwell Metropolitan Borough Council,http://www.sandwell.gov.uk/info/200202/performance_and_spending/1079/payments_over_500,11-Oct-2023,Childrens Services,REDACTED PERSONAL DATA,Childrens Services,727.27,External Contract Hire,2324P07_CR00208,REDACTED PERSONAL DATA
Sandwell Metropolitan Borough Council,http://www.sandwell.gov.uk/info/200202/performance_and_spending/1079/payments_over_500,11-Oct-2023,Childrens Services,REDACTED PERSONAL DATA,Childrens Services,545.45,External Contract Hire,2324P07_CR00209,REDACTED PERSONAL DATA
Sandwell Metropolitan Borough Council,http://www.sandwell.gov.uk/info/200202/performance_and_spending/1079/payments_over_500,09-Oct-2023,Childrens Services,4 COMMUNITY TRUST CIC,Childrens Services,2358.00,Grant Payments,2324P07_CR00210,137880
Sandwell Metropolitan Borough Council,http://www.sandwell.gov.uk/info/200202/performance_and_spending/1079/payments_over_500,09-Oct-2023,Childrens Services,FANTASTIC JOURNEYS C.I.C,Childrens Services,2550.00,Grant Payments,2324P07_CR00211,163596
Sandwell Metropolitan Borough Council,http://www.sandwell.gov.uk/info/200202/performance_and_spending/1079/payments_over_500,09-Oct-2023,Childrens Services,IDEAL FOR ALL LIMITED,Childrens Services,2999.00,Grant Payments,2324P07_CR00212,01678484
Sandwell Metropolitan Borough Council,http://www.sandwell.gov.uk/info/200202/performance_and_spending/1079/payments_over_500,12-Oct-2023,Childrens Services,IDEAL FOR ALL LIMITED,Childrens Services,14046.00,Grant Payments,2324P07_CR00213,01678484
Sandwell Metropolitan Borough Council,http://www.sandwell.gov.uk/info/200202/performance_and_spending/1079/payments_over_500,09-Oct-2023,Childrens Services,KIDS,Childrens Services,2991.00,Grant Payments,2324P07_CR00214,80825
Sandwell Metropolitan Borough Council,http://www.sandwell.gov.uk/info/200202/performance_and_spending/1079/payments_over_500,12-Oct-2023,Childrens Services,LION FARM ACTION CENTRE (SANDWELL) LTD,Childrens Services,35700.50,Grant Payments,2324P07_CR00215,21023409
Sandwell Metropolitan Borough Council,http://www.sandwell.gov.uk/info/200202/performance_and_spending/1079/payments_over_500,09-Oct-2023,Childrens Services,MALE FAMILY GROUP T/A WARRENS HALL FARM RIDING STABLES,Childrens Services,3000.00,Grant Payments,2324P07_CR00216,87755
Sandwell Metropolitan Borough Council,http://www.sandwell.gov.uk/info/200202/performance_and_spending/1079/payments_over_500,11-Oct-2023,Childrens Services,S.C.V.O.,Childrens Services,40858.50,Grant Payments,2324P07_CR00217,109813
Sandwell Metropolitan Borough Council,http://www.sandwell.gov.uk/info/200202/performance_and_spending/1079/payments_over_500,02-Oct-2023,Childrens Services,SADWICA DAY NURSERY,Childrens Services,9045.00,Grant Payments,2324P07_CR00218,01667892
Sandwell Metropolitan Borough Council,http://www.sandwell.gov.uk/info/200202/performance_and_spending/1079/payments_over_500,12-Oct-2023,Childrens Services,SKILLS WORK AND ENTERPRISE DEVELOPMENT AGENCY LTD,Childrens Services,50633.50,Grant Payments,2324P07_CR00219,5092
Sandwell Metropolitan Borough Council,http://www.sandwell.gov.uk/info/200202/performance_and_spending/1079/payments_over_500,19-Oct-2023,Childrens Services Capital,INTERCLASS PLC,Childrens Services Capital,65892.43,"CIP - New Construction,Conversion, Enhancement & Reno",2324P07_CR00220,77001959
Sandwell Metropolitan Borough Council,http://www.sandwell.gov.uk/info/200202/performance_and_spending/1079/payments_over_500,24-Oct-2023,Childrens Services Capital,BAILY GARNER,Childrens Services Capital,2950.00,Building Maintenance & Improvements,2324P07_CR00221,01629732
Sandwell Metropolitan Borough Council,http://www.sandwell.gov.uk/info/200202/performance_and_spending/1079/payments_over_500,05-Oct-2023,Childrens Services Capital,SEDDON CONSTRUCTION LIMITED,Childrens Services Capital,14008.73,"CIP - New Construction,Conversion, Enhancement & Reno",2324P07_CR00222,132999
Sandwell Metropolitan Borough Council,http://www.sandwell.gov.uk/info/200202/performance_and_spending/1079/payments_over_500,18-Oct-2023,FINANCE (Inc SIU),BLB SOLICITORS,Assistant Chief Executive (Excl SIU),207575.50,Insurance,2324P07_CR00223,167229
Sandwell Metropolitan Borough Council,http://www.sandwell.gov.uk/info/200202/performance_and_spending/1079/payments_over_500,11-Oct-2023,FINANCE (Inc SIU),BROWNE JACOBSON LLP,Assistant Chief Executive (Excl SIU),3849.45,Externally Purchased Professional Services ,2324P07_CR00224,109574
Sandwell Metropolitan Borough Council,http://www.sandwell.gov.uk/info/200202/performance_and_spending/1079/payments_over_500,24-Oct-2023,FINANCE (Inc SIU),BROWNE JACOBSON LLP,Assistant Chief Executive (Excl SIU),2764.50,Externally Purchased Professional Services ,2324P07_CR00225,109574
Sandwell Metropolitan Borough Council,http://www.sandwell.gov.uk/info/200202/performance_and_spending/1079/payments_over_500,17-Oct-2023,FINANCE (Inc SIU),BROWNE JACOBSON LLP,Assistant Chief Executive (Excl SIU),2897.50,Externally Purchased Professional Services ,2324P07_CR00226,109574
Sandwell Metropolitan Borough Council,http://www.sandwell.gov.uk/info/200202/performance_and_spending/1079/payments_over_500,17-Oct-2023,FINANCE (Inc SIU),BROWNE JACOBSON LLP,Assistant Chief Executive (Excl SIU),632.20,Externally Purchased Professional Services ,2324P07_CR00227,109574
Sandwell Metropolitan Borough Council,http://www.sandwell.gov.uk/info/200202/performance_and_spending/1079/payments_over_500,11-Oct-2023,FINANCE (Inc SIU),BROWNE JACOBSON LLP,Assistant Chief Executive (Excl SIU),2329.50,Externally Purchased Professional Services ,2324P07_CR00228,109574
Sandwell Metropolitan Borough Council,http://www.sandwell.gov.uk/info/200202/performance_and_spending/1079/payments_over_500,11-Oct-2023,FINANCE (Inc SIU),BROWNE JACOBSON LLP,Assistant Chief Executive (Excl SIU),1132.00,Externally Purchased Professional Services ,2324P07_CR00229,109574
Sandwell Metropolitan Borough Council,http://www.sandwell.gov.uk/info/200202/performance_and_spending/1079/payments_over_500,24-Oct-2023,FINANCE (Inc SIU),BROWNE JACOBSON LLP,Assistant Chief Executive (Excl SIU),805.80,Externally Purchased Professional Services ,2324P07_CR00230,109574
Sandwell Metropolitan Borough Council,http://www.sandwell.gov.uk/info/200202/performance_and_spending/1079/payments_over_500,27-Oct-2023,FINANCE (Inc SIU),BROWNE JACOBSON LLP,Assistant Chief Executive (Excl SIU),5945.20,Externally Purchased Professional Services ,2324P07_CR00231,109574
Sandwell Metropolitan Borough Council,http://www.sandwell.gov.uk/info/200202/performance_and_spending/1079/payments_over_500,10-Oct-2023,FINANCE (Inc SIU),BROWNE JACOBSON LLP,Assistant Chief Executive (Excl SIU),1561.00,Externally Purchased Professional Services ,2324P07_CR00232,109574
Sandwell Metropolitan Borough Council,http://www.sandwell.gov.uk/info/200202/performance_and_spending/1079/payments_over_500,13-Oct-2023,FINANCE (Inc SIU),BROWNE JACOBSON LLP,Assistant Chief Executive (Excl SIU),7092.50,Externally Purchased Professional Services ,2324P07_CR00233,109574
Sandwell Metropolitan Borough Council,http://www.sandwell.gov.uk/info/200202/performance_and_spending/1079/payments_over_500,27-Oct-2023,FINANCE (Inc SIU),BROWNE JACOBSON LLP,Assistant Chief Executive (Excl SIU),2366.40,Externally Purchased Professional Services ,2324P07_CR00234,109574
Sandwell Metropolitan Borough Council,http://www.sandwell.gov.uk/info/200202/performance_and_spending/1079/payments_over_500,16-Oct-2023,FINANCE (Inc SIU),BROWNE JACOBSON LLP,Assistant Chief Executive (Excl SIU),5230.10,Externally Purchased Professional Services ,2324P07_CR00235,109574
Sandwell Metropolitan Borough Council,http://www.sandwell.gov.uk/info/200202/performance_and_spending/1079/payments_over_500,17-Oct-2023,FINANCE (Inc SIU),BROWNE JACOBSON LLP,Assistant Chief Executive (Excl SIU),2222.40,Externally Purchased Professional Services ,2324P07_CR00236,109574
Sandwell Metropolitan Borough Council,http://www.sandwell.gov.uk/info/200202/performance_and_spending/1079/payments_over_500,16-Oct-2023,FINANCE (Inc SIU),BROWNE JACOBSON LLP,Assistant Chief Executive (Excl SIU),3447.10,Externally Purchased Professional Services ,2324P07_CR00237,109574
Sandwell Metropolitan Borough Council,http://www.sandwell.gov.uk/info/200202/performance_and_spending/1079/payments_over_500,16-Oct-2023,FINANCE (Inc SIU),BROWNE JACOBSON LLP,Assistant Chief Executive (Excl SIU),3736.10,Externally Purchased Professional Services ,2324P07_CR00238,109574
Sandwell Metropolitan Borough Council,http://www.sandwell.gov.uk/info/200202/performance_and_spending/1079/payments_over_500,27-Oct-2023,FINANCE (Inc SIU),BROWNE JACOBSON LLP,Assistant Chief Executive (Excl SIU),3035.40,Externally Purchased Professional Services ,2324P07_CR00239,109574
Sandwell Metropolitan Borough Council,http://www.sandwell.gov.uk/info/200202/performance_and_spending/1079/payments_over_500,18-Oct-2023,FINANCE (Inc SIU),BROWNE JACOBSON LLP,Assistant Chief Executive (Excl SIU),1302.00,Externally Purchased Professional Services ,2324P07_CR00240,109574
Sandwell Metropolitan Borough Council,http://www.sandwell.gov.uk/info/200202/performance_and_spending/1079/payments_over_500,11-Oct-2023,FINANCE (Inc SIU),BROWNE JACOBSON LLP,Assistant Chief Executive (Excl SIU),4735.80,Externally Purchased Professional Services ,2324P07_CR00241,109574
Sandwell Metropolitan Borough Council,http://www.sandwell.gov.uk/info/200202/performance_and_spending/1079/payments_over_500,12-Oct-2023,FINANCE (Inc SIU),BROWNE JACOBSON LLP,Assistant Chief Executive (Excl SIU),825.00,Externally Purchased Professional Services ,2324P07_CR00242,109574
Sandwell Metropolitan Borough Council,http://www.sandwell.gov.uk/info/200202/performance_and_spending/1079/payments_over_500,09-Oct-2023,FINANCE (Inc SIU),COBLEYS LLP,Assistant Chief Executive (Excl SIU),1000.00,Insurance,2324P07_CR00243,110381
Sandwell Metropolitan Borough Council,http://www.sandwell.gov.uk/info/200202/performance_and_spending/1079/payments_over_500,30-Oct-2023,FINANCE (Inc SIU),EMERALD LAW LTD,Assistant Chief Executive (Excl SIU),2000.00,Insurance,2324P07_CR00244,151068
Sandwell Metropolitan Borough Council,http://www.sandwell.gov.uk/info/200202/performance_and_spending/1079/payments_over_500,30-Oct-2023,FINANCE (Inc SIU),EMERALD LAW LTD,Assistant Chief Executive (Excl SIU),1958.87,Insurance,2324P07_CR00245,151068
Sandwell Metropolitan Borough Council,http://www.sandwell.gov.uk/info/200202/performance_and_spending/1079/payments_over_500,26-Oct-2023,FINANCE (Inc SIU),FIRST DISPUTE MANAGEMENT,Assistant Chief Executive (Excl SIU),1500.00,Insurance,2324P07_CR00246,167316
Sandwell Metropolitan Borough Council,http://www.sandwell.gov.uk/info/200202/performance_and_spending/1079/payments_over_500,19-Oct-2023,FINANCE (Inc SIU),GOWING LAW SOLICITORS,Assistant Chief Executive (Excl SIU),15226.00,Insurance,2324P07_CR00247,163069
Sandwell Metropolitan Borough Council,http://www.sandwell.gov.uk/info/200202/performance_and_spending/1079/payments_over_500,20-Oct-2023,FINANCE (Inc SIU),GOWING LAW SOLICITORS,Assistant Chief Executive (Excl SIU),780.00,Insurance,2324P07_CR00248,163069
Sandwell Metropolitan Borough Council,http://www.sandwell.gov.uk/info/200202/performance_and_spending/1079/payments_over_500,18-Oct-2023,FINANCE (Inc SIU),KEOGHS LLP,Assistant Chief Executive (Excl SIU),8880.40,Insurance,2324P07_CR00249,76564
Sandwell Metropolitan Borough Council,http://www.sandwell.gov.uk/info/200202/performance_and_spending/1079/payments_over_500,20-Oct-2023,FINANCE (Inc SIU),LOUISE BATHAM T/A UNICORN NURSERY,Assistant Chief Executive (Excl SIU),2723.00,Insurance,2324P07_CR00250,167263
Sandwell Metropolitan Borough Council,http://www.sandwell.gov.uk/info/200202/performance_and_spending/1079/payments_over_500,19-Oct-2023,FINANCE (Inc SIU),MATRIX SOLICITORS,Assistant Chief Executive (Excl SIU),8750.00,Insurance,2324P07_CR00251,150465
Sandwell Metropolitan Borough Council,http://www.sandwell.gov.uk/info/200202/performance_and_spending/1079/payments_over_500,30-Oct-2023,FINANCE (Inc SIU),REDACTED PERSONAL DATA,Assistant Chief Executive (Excl SIU),6500.00,Insurance,2324P07_CR00252,REDACTED PERSONAL DATA
Sandwell Metropolitan Borough Council,http://www.sandwell.gov.uk/info/200202/performance_and_spending/1079/payments_over_500,11-Oct-2023,FINANCE (Inc SIU),REDACTED PERSONAL DATA,Assistant Chief Executive (Excl SIU),16000.00,Insurance,2324P07_CR00253,REDACTED PERSONAL DATA
Sandwell Metropolitan Borough Council,http://www.sandwell.gov.uk/info/200202/performance_and_spending/1079/payments_over_500,13-Oct-2023,FINANCE (Inc SIU),REDACTED PERSONAL DATA,Assistant Chief Executive (Excl SIU),10000.00,Insurance,2324P07_CR00254,REDACTED PERSONAL DATA
Sandwell Metropolitan Borough Council,http://www.sandwell.gov.uk/info/200202/performance_and_spending/1079/payments_over_500,19-Oct-2023,FINANCE (Inc SIU),REDACTED PERSONAL DATA,Assistant Chief Executive (Excl SIU),3000.00,Insurance,2324P07_CR00255,REDACTED PERSONAL DATA
Sandwell Metropolitan Borough Council,http://www.sandwell.gov.uk/info/200202/performance_and_spending/1079/payments_over_500,25-Oct-2023,FINANCE (Inc SIU),REDACTED PERSONAL DATA,Assistant Chief Executive (Excl SIU),3000.00,Insurance,2324P07_CR00256,REDACTED PERSONAL DATA
Sandwell Metropolitan Borough Council,http://www.sandwell.gov.uk/info/200202/performance_and_spending/1079/payments_over_500,09-Oct-2023,FINANCE (Inc SIU),REDACTED PERSONAL DATA,Assistant Chief Executive (Excl SIU),1540.72,Insurance,2324P07_CR00257,REDACTED PERSONAL DATA
Sandwell Metropolitan Borough Council,http://www.sandwell.gov.uk/info/200202/performance_and_spending/1079/payments_over_500,18-Oct-2023,FINANCE (Inc SIU),SEDGWICK INTERNATIONAL UK ,Assistant Chief Executive (Excl SIU),703.00,Externally Purchased Professional Services ,2324P07_CR00258,136510
Sandwell Metropolitan Borough Council,http://www.sandwell.gov.uk/info/200202/performance_and_spending/1079/payments_over_500,26-Oct-2023,FINANCE (Inc SIU),SEDGWICK INTERNATIONAL UK ,Assistant Chief Executive (Excl SIU),963.50,Externally Purchased Professional Services ,2324P07_CR00259,136510
Sandwell Metropolitan Borough Council,http://www.sandwell.gov.uk/info/200202/performance_and_spending/1079/payments_over_500,27-Oct-2023,FINANCE (Inc SIU),SEDGWICK INTERNATIONAL UK ,Assistant Chief Executive (Excl SIU),3050.00,Externally Purchased Professional Services ,2324P07_CR00260,136510
Sandwell Metropolitan Borough Council,http://www.sandwell.gov.uk/info/200202/performance_and_spending/1079/payments_over_500,04-Oct-2023,FINANCE (Inc SIU),SYDNEY MITCHELL LLP.,Assistant Chief Executive (Excl SIU),10000.00,Insurance,2324P07_CR00261,100106
Sandwell Metropolitan Borough Council,http://www.sandwell.gov.uk/info/200202/performance_and_spending/1079/payments_over_500,30-Oct-2023,FINANCE (Inc SIU),VERITAS SOLICITORS,Assistant Chief Executive (Excl SIU),9000.00,Insurance,2324P07_CR00262,163336
Sandwell Metropolitan Borough Council,http://www.sandwell.gov.uk/info/200202/performance_and_spending/1079/payments_over_500,10-Oct-2023,FINANCE (Inc SIU),VERITAS SOLICITORS,Assistant Chief Executive (Excl SIU),500.00,Insurance,2324P07_CR00263,163336
Sandwell Metropolitan Borough Council,http://www.sandwell.gov.uk/info/200202/performance_and_spending/1079/payments_over_500,02-Oct-2023,FINANCE (Inc SIU),REDACTED PERSONAL DATA,Assistant Chief Executive (Excl SIU),1870.00,Insurance,2324P07_CR00264,REDACTED PERSONAL DATA
Sandwell Metropolitan Borough Council,http://www.sandwell.gov.uk/info/200202/performance_and_spending/1079/payments_over_500,06-Oct-2023,FINANCE (Inc SIU),REDACTED PERSONAL DATA,Assistant Chief Executive (Excl SIU),620.00,Insurance,2324P07_CR00265,REDACTED PERSONAL DATA
Sandwell Metropolitan Borough Council,http://www.sandwell.gov.uk/info/200202/performance_and_spending/1079/payments_over_500,01-Oct-2023,FINANCE (Inc SIU),AMBIENT PEOPLE LTD,Assistant Chief Executive (Excl SIU),3450.00,Agency Staff,2324P07_CR00266,165446
Sandwell Metropolitan Borough Council,http://www.sandwell.gov.uk/info/200202/performance_and_spending/1079/payments_over_500,11-Oct-2023,FINANCE (Inc SIU),AMBIENT PEOPLE LTD,Assistant Chief Executive (Excl SIU),3450.00,Agency Staff,2324P07_CR00267,165446
Sandwell Metropolitan Borough Council,http://www.sandwell.gov.uk/info/200202/performance_and_spending/1079/payments_over_500,13-Oct-2023,FINANCE (Inc SIU),CIVICA UK LTD,Assistant Chief Executive (Excl SIU),1925.00,Externally Purchased Professional Services ,2324P07_CR00268,26200
Sandwell Metropolitan Borough Council,http://www.sandwell.gov.uk/info/200202/performance_and_spending/1079/payments_over_500,01-Oct-2023,FINANCE (Inc SIU),EKAL SOLUTIONS LIMITED,Assistant Chief Executive (Excl SIU),2925.00,Agency Staff,2324P07_CR00269,166571
Sandwell Metropolitan Borough Council,http://www.sandwell.gov.uk/info/200202/performance_and_spending/1079/payments_over_500,01-Oct-2023,FINANCE (Inc SIU),EKAL SOLUTIONS LIMITED,Assistant Chief Executive (Excl SIU),2925.00,Agency Staff,2324P07_CR00270,166571
Sandwell Metropolitan Borough Council,http://www.sandwell.gov.uk/info/200202/performance_and_spending/1079/payments_over_500,30-Oct-2023,FINANCE (Inc SIU),EKAL SOLUTIONS LIMITED,Assistant Chief Executive (Excl SIU),2925.00,Agency Staff,2324P07_CR00271,166571
Sandwell Metropolitan Borough Council,http://www.sandwell.gov.uk/info/200202/performance_and_spending/1079/payments_over_500,06-Oct-2023,FINANCE (Inc SIU),G4S CASH SOLUTIONS (UK) LTD,Assistant Chief Executive (Excl SIU),630.48,Cash Collections,2324P07_CR00272,01606348
Sandwell Metropolitan Borough Council,http://www.sandwell.gov.uk/info/200202/performance_and_spending/1079/payments_over_500,01-Oct-2023,FINANCE (Inc SIU),GATENBYSANDERSON LTD,Assistant Chief Executive (Excl SIU),12650.00,Agency Staff,2324P07_CR00273,50038
Sandwell Metropolitan Borough Council,http://www.sandwell.gov.uk/info/200202/performance_and_spending/1079/payments_over_500,01-Oct-2023,FINANCE (Inc SIU),GATENBYSANDERSON LTD,Assistant Chief Executive (Excl SIU),6957.50,Agency Staff,2324P07_CR00274,50038
Sandwell Metropolitan Borough Council,http://www.sandwell.gov.uk/info/200202/performance_and_spending/1079/payments_over_500,30-Oct-2023,FINANCE (Inc SIU),GATENBYSANDERSON LTD,Assistant Chief Executive (Excl SIU),12650.00,Agency Staff,2324P07_CR00275,50038
Sandwell Metropolitan Borough Council,http://www.sandwell.gov.uk/info/200202/performance_and_spending/1079/payments_over_500,01-Oct-2023,FINANCE (Inc SIU),GREENHALGH KERR SOLICITORS LIMITED,Assistant Chief Executive (Excl SIU),805.00,Externally Purchased Professional Services ,2324P07_CR00276,127273
Sandwell Metropolitan Borough Council,http://www.sandwell.gov.uk/info/200202/performance_and_spending/1079/payments_over_500,01-Oct-2023,FINANCE (Inc SIU),GREENHALGH KERR SOLICITORS LIMITED,Assistant Chief Executive (Excl SIU),750.00,Externally Purchased Professional Services ,2324P07_CR00277,127273
Sandwell Metropolitan Borough Council,http://www.sandwell.gov.uk/info/200202/performance_and_spending/1079/payments_over_500,01-Oct-2023,FINANCE (Inc SIU),GREENHALGH KERR SOLICITORS LIMITED,Assistant Chief Executive (Excl SIU),6428.50,Externally Purchased Professional Services ,2324P07_CR00278,127273
Sandwell Metropolitan Borough Council,http://www.sandwell.gov.uk/info/200202/performance_and_spending/1079/payments_over_500,04-Oct-2023,FINANCE (Inc SIU),HAWK INCENTIVES LTD,Assistant Chief Executive (Excl SIU),6000.00,Catering Provisions,2324P07_CR00279,148982
Sandwell Metropolitan Borough Council,http://www.sandwell.gov.uk/info/200202/performance_and_spending/1079/payments_over_500,01-Oct-2023,FINANCE (Inc SIU),HAYS SPECIALIST RECRUITMENT LTD,Assistant Chief Executive (Excl SIU),162927.41,Agency Staff,2324P07_CR00280,80349
Sandwell Metropolitan Borough Council,http://www.sandwell.gov.uk/info/200202/performance_and_spending/1079/payments_over_500,17-Oct-2023,FINANCE (Inc SIU),INOAPPS LIMITED,Assistant Chief Executive (Excl SIU),7700.00,Externally Purchased Professional Services ,2324P07_CR00281,122364
Sandwell Metropolitan Borough Council,http://www.sandwell.gov.uk/info/200202/performance_and_spending/1079/payments_over_500,01-Oct-2023,FINANCE (Inc SIU),INOAPPS LIMITED,Assistant Chief Executive (Excl SIU),7700.00,Externally Purchased Professional Services ,2324P07_CR00282,122364
Sandwell Metropolitan Borough Council,http://www.sandwell.gov.uk/info/200202/performance_and_spending/1079/payments_over_500,01-Oct-2023,FINANCE (Inc SIU),IRON MOUNTAIN (UK) LTD,Assistant Chief Executive (Excl SIU),1079.21,ICT ,2324P07_CR00283,01719704
Sandwell Metropolitan Borough Council,http://www.sandwell.gov.uk/info/200202/performance_and_spending/1079/payments_over_500,02-Oct-2023,FINANCE (Inc SIU),MACILDOWIE ASSOCIATES LTD,Assistant Chief Executive (Excl SIU),1404.00,Agency Staff,2324P07_CR00284,164797
Sandwell Metropolitan Borough Council,http://www.sandwell.gov.uk/info/200202/performance_and_spending/1079/payments_over_500,02-Oct-2023,FINANCE (Inc SIU),MACILDOWIE ASSOCIATES LTD,Assistant Chief Executive (Excl SIU),3510.00,Agency Staff,2324P07_CR00285,164797
Sandwell Metropolitan Borough Council,http://www.sandwell.gov.uk/info/200202/performance_and_spending/1079/payments_over_500,01-Oct-2023,FINANCE (Inc SIU),MACILDOWIE ASSOCIATES LTD,Assistant Chief Executive (Excl SIU),2808.00,Agency Staff,2324P07_CR00286,164797
Sandwell Metropolitan Borough Council,http://www.sandwell.gov.uk/info/200202/performance_and_spending/1079/payments_over_500,01-Oct-2023,FINANCE (Inc SIU),MACILDOWIE ASSOCIATES LTD,Assistant Chief Executive (Excl SIU),3510.00,Agency Staff,2324P07_CR00287,164797
Sandwell Metropolitan Borough Council,http://www.sandwell.gov.uk/info/200202/performance_and_spending/1079/payments_over_500,01-Oct-2023,FINANCE (Inc SIU),MACILDOWIE ASSOCIATES LTD,Assistant Chief Executive (Excl SIU),3510.00,Agency Staff,2324P07_CR00288,164797
Sandwell Metropolitan Borough Council,http://www.sandwell.gov.uk/info/200202/performance_and_spending/1079/payments_over_500,01-Oct-2023,FINANCE (Inc SIU),MACILDOWIE ASSOCIATES LTD,Assistant Chief Executive (Excl SIU),2106.00,Agency Staff,2324P07_CR00289,164797
Sandwell Metropolitan Borough Council,http://www.sandwell.gov.uk/info/200202/performance_and_spending/1079/payments_over_500,01-Oct-2023,FINANCE (Inc SIU),MACILDOWIE ASSOCIATES LTD,Assistant Chief Executive (Excl SIU),3159.00,Agency Staff,2324P07_CR00290,164797
Sandwell Metropolitan Borough Council,http://www.sandwell.gov.uk/info/200202/performance_and_spending/1079/payments_over_500,01-Oct-2023,FINANCE (Inc SIU),MACILDOWIE ASSOCIATES LTD,Assistant Chief Executive (Excl SIU),3510.00,Agency Staff,2324P07_CR00291,164797
Sandwell Metropolitan Borough Council,http://www.sandwell.gov.uk/info/200202/performance_and_spending/1079/payments_over_500,01-Oct-2023,FINANCE (Inc SIU),MACILDOWIE ASSOCIATES LTD,Assistant Chief Executive (Excl SIU),2808.00,Agency Staff,2324P07_CR00292,164797
Sandwell Metropolitan Borough Council,http://www.sandwell.gov.uk/info/200202/performance_and_spending/1079/payments_over_500,01-Oct-2023,FINANCE (Inc SIU),MACILDOWIE ASSOCIATES LTD,Assistant Chief Executive (Excl SIU),3510.00,Agency Staff,2324P07_CR00293,164797
Sandwell Metropolitan Borough Council,http://www.sandwell.gov.uk/info/200202/performance_and_spending/1079/payments_over_500,03-Oct-2023,FINANCE (Inc SIU),MARSH LIMITED,Assistant Chief Executive (Excl SIU),23245.60,Insurance,2324P07_CR00294,01165486
Sandwell Metropolitan Borough Council,http://www.sandwell.gov.uk/info/200202/performance_and_spending/1079/payments_over_500,09-Oct-2023,FINANCE (Inc SIU),MARSH LIMITED,Assistant Chief Executive (Excl SIU),69000.40,Insurance,2324P07_CR00295,01165486
Sandwell Metropolitan Borough Council,http://www.sandwell.gov.uk/info/200202/performance_and_spending/1079/payments_over_500,09-Oct-2023,FINANCE (Inc SIU),MARSH LIMITED,Assistant Chief Executive (Excl SIU),61030.32,Insurance,2324P07_CR00296,01165486
Sandwell Metropolitan Borough Council,http://www.sandwell.gov.uk/info/200202/performance_and_spending/1079/payments_over_500,01-Oct-2023,FINANCE (Inc SIU),MOTOR INSURERS BUREAU,Assistant Chief Executive (Excl SIU),625.00,Externally Purchased Professional Services ,2324P07_CR00297,154595
Sandwell Metropolitan Borough Council,http://www.sandwell.gov.uk/info/200202/performance_and_spending/1079/payments_over_500,01-Oct-2023,FINANCE (Inc SIU),ORACLE CORPORATION UK LTD,Assistant Chief Executive (Excl SIU),3929.04,Externally Purchased Professional Services ,2324P07_CR00298,01539742
Sandwell Metropolitan Borough Council,http://www.sandwell.gov.uk/info/200202/performance_and_spending/1079/payments_over_500,01-Oct-2023,FINANCE (Inc SIU),PAYPOINT PLC,Assistant Chief Executive (Excl SIU),1836.35,Fuel ,2324P07_CR00299,112333
Sandwell Metropolitan Borough Council,http://www.sandwell.gov.uk/info/200202/performance_and_spending/1079/payments_over_500,01-Oct-2023,FINANCE (Inc SIU),PAYPOINT PLC,Assistant Chief Executive (Excl SIU),2474.85,Fuel ,2324P07_CR00300,112333
Sandwell Metropolitan Borough Council,http://www.sandwell.gov.uk/info/200202/performance_and_spending/1079/payments_over_500,16-Oct-2023,FINANCE (Inc SIU),PAYPOINT PLC,Assistant Chief Executive (Excl SIU),1845.35,Fuel ,2324P07_CR00301,112333
Sandwell Metropolitan Borough Council,http://www.sandwell.gov.uk/info/200202/performance_and_spending/1079/payments_over_500,23-Oct-2023,FINANCE (Inc SIU),PAYPOINT PLC,Assistant Chief Executive (Excl SIU),2620.35,Fuel ,2324P07_CR00302,112333
Sandwell Metropolitan Borough Council,http://www.sandwell.gov.uk/info/200202/performance_and_spending/1079/payments_over_500,30-Oct-2023,FINANCE (Inc SIU),PAYPOINT PLC,Assistant Chief Executive (Excl SIU),2470.35,Fuel ,2324P07_CR00303,112333
Sandwell Metropolitan Borough Council,http://www.sandwell.gov.uk/info/200202/performance_and_spending/1079/payments_over_500,01-Oct-2023,FINANCE (Inc SIU),PERMANENT FUTURES LTD,Assistant Chief Executive (Excl SIU),2700.00,Agency Staff,2324P07_CR00304,45209
Sandwell Metropolitan Borough Council,http://www.sandwell.gov.uk/info/200202/performance_and_spending/1079/payments_over_500,01-Oct-2023,FINANCE (Inc SIU),PERMANENT FUTURES LTD,Assistant Chief Executive (Excl SIU),3375.00,Agency Staff,2324P07_CR00305,45209
Sandwell Metropolitan Borough Council,http://www.sandwell.gov.uk/info/200202/performance_and_spending/1079/payments_over_500,01-Oct-2023,FINANCE (Inc SIU),PERMANENT FUTURES LTD,Assistant Chief Executive (Excl SIU),3375.00,Agency Staff,2324P07_CR00306,45209
Sandwell Metropolitan Borough Council,http://www.sandwell.gov.uk/info/200202/performance_and_spending/1079/payments_over_500,01-Oct-2023,FINANCE (Inc SIU),PERMANENT FUTURES LTD,Assistant Chief Executive (Excl SIU),3375.00,Agency Staff,2324P07_CR00307,45209
Sandwell Metropolitan Borough Council,http://www.sandwell.gov.uk/info/200202/performance_and_spending/1079/payments_over_500,01-Oct-2023,FINANCE (Inc SIU),PERMANENT FUTURES LTD,Assistant Chief Executive (Excl SIU),3375.00,Agency Staff,2324P07_CR00308,45209
Sandwell Metropolitan Borough Council,http://www.sandwell.gov.uk/info/200202/performance_and_spending/1079/payments_over_500,01-Oct-2023,FINANCE (Inc SIU),PERMANENT FUTURES LTD,Assistant Chief Executive (Excl SIU),3375.00,Agency Staff,2324P07_CR00309,45209
Sandwell Metropolitan Borough Council,http://www.sandwell.gov.uk/info/200202/performance_and_spending/1079/payments_over_500,01-Oct-2023,FINANCE (Inc SIU),PERMANENT FUTURES LTD,Assistant Chief Executive (Excl SIU),3375.00,Agency Staff,2324P07_CR00310,45209
Sandwell Metropolitan Borough Council,http://www.sandwell.gov.uk/info/200202/performance_and_spending/1079/payments_over_500,30-Oct-2023,FINANCE (Inc SIU),PERMANENT FUTURES LTD,Assistant Chief Executive (Excl SIU),3375.00,Agency Staff,2324P07_CR00311,45209
Sandwell Metropolitan Borough Council,http://www.sandwell.gov.uk/info/200202/performance_and_spending/1079/payments_over_500,12-Oct-2023,FINANCE (Inc SIU),RESTORE DIGITAL LIMITED,Total Adult Social Care,914.20,ICT ,2324P07_CR00312,13549
Sandwell Metropolitan Borough Council,http://www.sandwell.gov.uk/info/200202/performance_and_spending/1079/payments_over_500,05-Oct-2023,FINANCE (Inc SIU),SANDWELL LEISURE TRUST ,Assistant Chief Executive (Excl SIU),12811.74,Leisure Trust,2324P07_CR00313,120965
Sandwell Metropolitan Borough Council,http://www.sandwell.gov.uk/info/200202/performance_and_spending/1079/payments_over_500,23-Oct-2023,FINANCE (Inc SIU),SOCITM ADVISORY LTD,Assistant Chief Executive (Excl SIU),71410.71,Consultancy,2324P07_CR00314,162370
Sandwell Metropolitan Borough Council,http://www.sandwell.gov.uk/info/200202/performance_and_spending/1079/payments_over_500,03-Oct-2023,FINANCE (Inc SIU),THE OYSTER PARTNERSHIP LTD,Assistant Chief Executive (Excl SIU),2100.00,Agency Staff,2324P07_CR00315,148917
Sandwell Metropolitan Borough Council,http://www.sandwell.gov.uk/info/200202/performance_and_spending/1079/payments_over_500,03-Oct-2023,FINANCE (Inc SIU),THE OYSTER PARTNERSHIP LTD,Assistant Chief Executive (Excl SIU),3500.00,Agency Staff,2324P07_CR00316,148917
Sandwell Metropolitan Borough Council,http://www.sandwell.gov.uk/info/200202/performance_and_spending/1079/payments_over_500,05-Oct-2023,FINANCE (Inc SIU),THE OYSTER PARTNERSHIP LTD,Assistant Chief Executive (Excl SIU),3500.00,Agency Staff,2324P07_CR00317,148917
Sandwell Metropolitan Borough Council,http://www.sandwell.gov.uk/info/200202/performance_and_spending/1079/payments_over_500,05-Oct-2023,FINANCE (Inc SIU),THE OYSTER PARTNERSHIP LTD,Assistant Chief Executive (Excl SIU),2800.00,Agency Staff,2324P07_CR00318,148917
Sandwell Metropolitan Borough Council,http://www.sandwell.gov.uk/info/200202/performance_and_spending/1079/payments_over_500,01-Oct-2023,FINANCE (Inc SIU),THE OYSTER PARTNERSHIP LTD,Assistant Chief Executive (Excl SIU),2800.00,Agency Staff,2324P07_CR00319,148917
Sandwell Metropolitan Borough Council,http://www.sandwell.gov.uk/info/200202/performance_and_spending/1079/payments_over_500,01-Oct-2023,FINANCE (Inc SIU),THE OYSTER PARTNERSHIP LTD,Assistant Chief Executive (Excl SIU),3150.00,Agency Staff,2324P07_CR00320,148917
Sandwell Metropolitan Borough Council,http://www.sandwell.gov.uk/info/200202/performance_and_spending/1079/payments_over_500,01-Oct-2023,FINANCE (Inc SIU),WOLVERHAMPTON CITY COUNCIL,Assistant Chief Executive (Excl SIU),153750.00,Pensions,2324P07_CR00321,120965
Sandwell Metropolitan Borough Council,http://www.sandwell.gov.uk/info/200202/performance_and_spending/1079/payments_over_500,04-Oct-2023,FINANCE (Inc SIU),XEROX FINANCE LTD,Total Adult Social Care,619.25,"Printing, Stationery & General Office Expenses",2324P07_CR00322,2269
Sandwell Metropolitan Borough Council,http://www.sandwell.gov.uk/info/200202/performance_and_spending/1079/payments_over_500,13-Oct-2023,FINANCE (Inc SIU),REDACTED PERSONAL DATA,Assistant Chief Executive (Excl SIU),900.00,Grant Payments,2324P07_CR00323,REDACTED PERSONAL DATA
Sandwell Metropolitan Borough Council,http://www.sandwell.gov.uk/info/200202/performance_and_spending/1079/payments_over_500,19-Oct-2023,FINANCE (Inc SIU),ABBEY INFANT SCHOOL    ,Assistant Chief Executive (Excl SIU),615.00,Schools Support Services,2324P07_CR00324,60959
Sandwell Metropolitan Borough Council,http://www.sandwell.gov.uk/info/200202/performance_and_spending/1079/payments_over_500,19-Oct-2023,FINANCE (Inc SIU),ABBEY JUNIOR SCHOOL,Assistant Chief Executive (Excl SIU),1260.00,Schools Support Services,2324P07_CR00325,60961
Sandwell Metropolitan Borough Council,http://www.sandwell.gov.uk/info/200202/performance_and_spending/1079/payments_over_500,19-Oct-2023,FINANCE (Inc SIU),ALBERT PRITCHARD INFANT SCHOOL  ,Assistant Chief Executive (Excl SIU),945.00,Schools Support Services,2324P07_CR00326,60962
Sandwell Metropolitan Borough Council,http://www.sandwell.gov.uk/info/200202/performance_and_spending/1079/payments_over_500,19-Oct-2023,FINANCE (Inc SIU),ALL SAINTS CE PRIMARY SCHOOL   ,Assistant Chief Executive (Excl SIU),1530.00,Schools Support Services,2324P07_CR00327,60964
Sandwell Metropolitan Borough Council,http://www.sandwell.gov.uk/info/200202/performance_and_spending/1079/payments_over_500,19-Oct-2023,FINANCE (Inc SIU),ANNIE LENNARD INFANT SCHOOL,Assistant Chief Executive (Excl SIU),1065.00,Schools Support Services,2324P07_CR00328,60966
Sandwell Metropolitan Borough Council,http://www.sandwell.gov.uk/info/200202/performance_and_spending/1079/payments_over_500,19-Oct-2023,FINANCE (Inc SIU),BEARWOOD PRIMARY SCHOOL ,Assistant Chief Executive (Excl SIU),2655.00,Schools Support Services,2324P07_CR00329,60967
Sandwell Metropolitan Borough Council,http://www.sandwell.gov.uk/info/200202/performance_and_spending/1079/payments_over_500,19-Oct-2023,FINANCE (Inc SIU),BLACKHEATH PRIMARY SCHOOL,Assistant Chief Executive (Excl SIU),2310.00,Schools Support Services,2324P07_CR00330,60968
Sandwell Metropolitan Borough Council,http://www.sandwell.gov.uk/info/200202/performance_and_spending/1079/payments_over_500,19-Oct-2023,FINANCE (Inc SIU),BLEAKHOUSE PRIMARY SCHOOL.,Assistant Chief Executive (Excl SIU),1695.00,Schools Support Services,2324P07_CR00331,60969
Sandwell Metropolitan Borough Council,http://www.sandwell.gov.uk/info/200202/performance_and_spending/1079/payments_over_500,19-Oct-2023,FINANCE (Inc SIU),BRANDHALL PRIMARY SCHOOL ,Assistant Chief Executive (Excl SIU),2280.00,Schools Support Services,2324P07_CR00332,60971
Sandwell Metropolitan Borough Council,http://www.sandwell.gov.uk/info/200202/performance_and_spending/1079/payments_over_500,19-Oct-2023,FINANCE (Inc SIU),BRICKHOUSE PRIMARY SCHOOL  ,Assistant Chief Executive (Excl SIU),1290.00,Schools Support Services,2324P07_CR00333,60973
Sandwell Metropolitan Borough Council,http://www.sandwell.gov.uk/info/200202/performance_and_spending/1079/payments_over_500,19-Oct-2023,FINANCE (Inc SIU),BRISTNALL HALL ACADEMY,Assistant Chief Executive (Excl SIU),5940.00,Grant Payments,2324P07_CR00334,107471
Sandwell Metropolitan Borough Council,http://www.sandwell.gov.uk/info/200202/performance_and_spending/1079/payments_over_500,19-Oct-2023,FINANCE (Inc SIU),BURNT TREE PRIMARY SCHOOL  ,Assistant Chief Executive (Excl SIU),1890.00,Schools Support Services,2324P07_CR00335,60974
Sandwell Metropolitan Borough Council,http://www.sandwell.gov.uk/info/200202/performance_and_spending/1079/payments_over_500,19-Oct-2023,FINANCE (Inc SIU),CAPE PRIMARY SCHOOL,Assistant Chief Executive (Excl SIU),3915.00,Schools Support Services,2324P07_CR00336,01672537
Sandwell Metropolitan Borough Council,http://www.sandwell.gov.uk/info/200202/performance_and_spending/1079/payments_over_500,19-Oct-2023,FINANCE (Inc SIU),CAUSEWAY GREEN PRIMARY SCHOOL,Assistant Chief Executive (Excl SIU),1665.00,Schools Support Services,2324P07_CR00337,60976
Sandwell Metropolitan Borough Council,http://www.sandwell.gov.uk/info/200202/performance_and_spending/1079/payments_over_500,19-Oct-2023,FINANCE (Inc SIU),CHRIST CHURCH CE PRIMARY  ,Assistant Chief Executive (Excl SIU),1590.00,Schools Support Services,2324P07_CR00338,60978
Sandwell Metropolitan Borough Council,http://www.sandwell.gov.uk/info/200202/performance_and_spending/1079/payments_over_500,19-Oct-2023,FINANCE (Inc SIU),CORNGREAVES ACADEMY,Assistant Chief Executive (Excl SIU),915.00,Grant Payments,2324P07_CR00339,112862
Sandwell Metropolitan Borough Council,http://www.sandwell.gov.uk/info/200202/performance_and_spending/1079/payments_over_500,19-Oct-2023,FINANCE (Inc SIU),CROCKETTS LANE COMMUNITY PRIMARY SCHOOL,Assistant Chief Executive (Excl SIU),1815.00,Schools Support Services,2324P07_CR00340,60980
Sandwell Metropolitan Borough Council,http://www.sandwell.gov.uk/info/200202/performance_and_spending/1079/payments_over_500,19-Oct-2023,FINANCE (Inc SIU),DEVONSHIRE INFANTS ACADEMY,Assistant Chief Executive (Excl SIU),1050.00,Grant Payments,2324P07_CR00341,118366
Sandwell Metropolitan Borough Council,http://www.sandwell.gov.uk/info/200202/performance_and_spending/1079/payments_over_500,19-Oct-2023,FINANCE (Inc SIU),DEVONSHIRE JUNIOR ACADEMY,Assistant Chief Executive (Excl SIU),1485.00,Grant Payments,2324P07_CR00342,118367
Sandwell Metropolitan Borough Council,http://www.sandwell.gov.uk/info/200202/performance_and_spending/1079/payments_over_500,19-Oct-2023,FINANCE (Inc SIU),EATON VALLEY PRIMARY SCHOOL,Assistant Chief Executive (Excl SIU),1935.00,Schools Support Services,2324P07_CR00343,60981
Sandwell Metropolitan Borough Council,http://www.sandwell.gov.uk/info/200202/performance_and_spending/1079/payments_over_500,19-Oct-2023,FINANCE (Inc SIU),FERNDALE PRIMARY SCHOOL  ,Assistant Chief Executive (Excl SIU),2730.00,Schools Support Services,2324P07_CR00344,60987
Sandwell Metropolitan Borough Council,http://www.sandwell.gov.uk/info/200202/performance_and_spending/1079/payments_over_500,19-Oct-2023,FINANCE (Inc SIU),GALTON VALLEY PRIMARY SCHOOL   ,Assistant Chief Executive (Excl SIU),2115.00,Schools Support Services,2324P07_CR00345,73124
Sandwell Metropolitan Borough Council,http://www.sandwell.gov.uk/info/200202/performance_and_spending/1079/payments_over_500,19-Oct-2023,FINANCE (Inc SIU),GEORGE BETTS PRIMARY ACADEMY,Assistant Chief Executive (Excl SIU),2145.00,Grant Payments,2324P07_CR00346,113420
Sandwell Metropolitan Borough Council,http://www.sandwell.gov.uk/info/200202/performance_and_spending/1079/payments_over_500,19-Oct-2023,FINANCE (Inc SIU),GEORGE SALTER COLLEGIATE ACADEMY ORMISTON ACADEMIES TRUST,Assistant Chief Executive (Excl SIU),7305.00,Grant Payments,2324P07_CR00347,01217798
Sandwell Metropolitan Borough Council,http://www.sandwell.gov.uk/info/200202/performance_and_spending/1079/payments_over_500,19-Oct-2023,FINANCE (Inc SIU),GLEBEFIELDS PRIMARY SCHOOL  ,Assistant Chief Executive (Excl SIU),3315.00,Schools Support Services,2324P07_CR00348,60989
Sandwell Metropolitan Borough Council,http://www.sandwell.gov.uk/info/200202/performance_and_spending/1079/payments_over_500,19-Oct-2023,FINANCE (Inc SIU),GOSPEL OAK SCHOOL,Assistant Chief Executive (Excl SIU),7215.00,Grant Payments,2324P07_CR00349,60952
Sandwell Metropolitan Borough Council,http://www.sandwell.gov.uk/info/200202/performance_and_spending/1079/payments_over_500,19-Oct-2023,FINANCE (Inc SIU),GRACE MARY PRIMARY SCHOOL  ,Assistant Chief Executive (Excl SIU),1110.00,Schools Support Services,2324P07_CR00350,60991
Sandwell Metropolitan Borough Council,http://www.sandwell.gov.uk/info/200202/performance_and_spending/1079/payments_over_500,19-Oct-2023,FINANCE (Inc SIU),GREAT BRIDGE PRIMARY SCHOOL  ,Assistant Chief Executive (Excl SIU),2220.00,Schools Support Services,2324P07_CR00351,42484
Sandwell Metropolitan Borough Council,http://www.sandwell.gov.uk/info/200202/performance_and_spending/1079/payments_over_500,19-Oct-2023,FINANCE (Inc SIU),GROVE VALE PRIMARY SCHOOL,Assistant Chief Executive (Excl SIU),675.00,Schools Support Services,2324P07_CR00352,60993
Sandwell Metropolitan Borough Council,http://www.sandwell.gov.uk/info/200202/performance_and_spending/1079/payments_over_500,19-Oct-2023,FINANCE (Inc SIU),HALL GREEN PRIMARY SCHOOL   ,Assistant Chief Executive (Excl SIU),2385.00,Schools Support Services,2324P07_CR00353,60996
Sandwell Metropolitan Borough Council,http://www.sandwell.gov.uk/info/200202/performance_and_spending/1079/payments_over_500,19-Oct-2023,FINANCE (Inc SIU),HAMSTEAD INFANT SCHOOL  ,Assistant Chief Executive (Excl SIU),540.00,Schools Support Services,2324P07_CR00354,60997
Sandwell Metropolitan Borough Council,http://www.sandwell.gov.uk/info/200202/performance_and_spending/1079/payments_over_500,19-Oct-2023,FINANCE (Inc SIU),HAMSTEAD JUNIOR SCHOOL  ,Assistant Chief Executive (Excl SIU),1305.00,Schools Support Services,2324P07_CR00355,60998
Sandwell Metropolitan Borough Council,http://www.sandwell.gov.uk/info/200202/performance_and_spending/1079/payments_over_500,19-Oct-2023,FINANCE (Inc SIU),HANBURY PRIMARY SCHOOL ,Assistant Chief Executive (Excl SIU),1980.00,Schools Support Services,2324P07_CR00356,60995
Sandwell Metropolitan Borough Council,http://www.sandwell.gov.uk/info/200202/performance_and_spending/1079/payments_over_500,19-Oct-2023,FINANCE (Inc SIU),HARGATE PRIMARY SCHOOL ,Assistant Chief Executive (Excl SIU),1935.00,Schools Support Services,2324P07_CR00357,60999
Sandwell Metropolitan Borough Council,http://www.sandwell.gov.uk/info/200202/performance_and_spending/1079/payments_over_500,19-Oct-2023,FINANCE (Inc SIU),HARVILLS HAWTHORN PRIMARY SCHOOL  ,Assistant Chief Executive (Excl SIU),2025.00,Schools Support Services,2324P07_CR00358,01782074
Sandwell Metropolitan Borough Council,http://www.sandwell.gov.uk/info/200202/performance_and_spending/1079/payments_over_500,19-Oct-2023,FINANCE (Inc SIU),HATELEY HEATH PRIMARY ACADEMY ,Assistant Chief Executive (Excl SIU),2130.00,Grant Payments,2324P07_CR00359,61000
Sandwell Metropolitan Borough Council,http://www.sandwell.gov.uk/info/200202/performance_and_spending/1079/payments_over_500,19-Oct-2023,FINANCE (Inc SIU),HIGH POINT ACADEMY,Assistant Chief Executive (Excl SIU),570.00,Grant Payments,2324P07_CR00360,152394
Sandwell Metropolitan Borough Council,http://www.sandwell.gov.uk/info/200202/performance_and_spending/1079/payments_over_500,19-Oct-2023,FINANCE (Inc SIU),HIGHFIELDS PRIMARY SCHOOL ,Assistant Chief Executive (Excl SIU),1920.00,Schools Support Services,2324P07_CR00361,01782118
Sandwell Metropolitan Borough Council,http://www.sandwell.gov.uk/info/200202/performance_and_spending/1079/payments_over_500,19-Oct-2023,FINANCE (Inc SIU),HOLLY LODGE FOUNDATION HIGH SCHOOL,Assistant Chief Executive (Excl SIU),8865.00,Schools Support Services,2324P07_CR00362,60942
Sandwell Metropolitan Borough Council,http://www.sandwell.gov.uk/info/200202/performance_and_spending/1079/payments_over_500,19-Oct-2023,FINANCE (Inc SIU),HOLY NAME CATHOLIC PRIMARY,Assistant Chief Executive (Excl SIU),570.00,Schools Support Services,2324P07_CR00363,92683
Sandwell Metropolitan Borough Council,http://www.sandwell.gov.uk/info/200202/performance_and_spending/1079/payments_over_500,19-Oct-2023,FINANCE (Inc SIU),HOLY TRINITY CE PRIMARY ,Assistant Chief Executive (Excl SIU),2160.00,Schools Support Services,2324P07_CR00364,61004
Sandwell Metropolitan Borough Council,http://www.sandwell.gov.uk/info/200202/performance_and_spending/1079/payments_over_500,19-Oct-2023,FINANCE (Inc SIU),HOLYHEAD PRIMARY ACADEMY,Assistant Chief Executive (Excl SIU),1335.00,Grant Payments,2324P07_CR00365,61005
Sandwell Metropolitan Borough Council,http://www.sandwell.gov.uk/info/200202/performance_and_spending/1079/payments_over_500,19-Oct-2023,FINANCE (Inc SIU),JOSEPH TURNER PRIMARY SCHOOL  ,Assistant Chief Executive (Excl SIU),2820.00,Schools Support Services,2324P07_CR00366,61006
Sandwell Metropolitan Borough Council,http://www.sandwell.gov.uk/info/200202/performance_and_spending/1079/payments_over_500,19-Oct-2023,FINANCE (Inc SIU),JUBILEE PARK ACADEMY TRUST,Assistant Chief Executive (Excl SIU),1725.00,Grant Payments,2324P07_CR00367,113377
Sandwell Metropolitan Borough Council,http://www.sandwell.gov.uk/info/200202/performance_and_spending/1079/payments_over_500,19-Oct-2023,FINANCE (Inc SIU),KING GEORGE V PRIMARY SCHOOL,Assistant Chief Executive (Excl SIU),1245.00,Schools Support Services,2324P07_CR00368,61009
Sandwell Metropolitan Borough Council,http://www.sandwell.gov.uk/info/200202/performance_and_spending/1079/payments_over_500,19-Oct-2023,FINANCE (Inc SIU),LANGLEY PRIMARY SCHOOL    ,Assistant Chief Executive (Excl SIU),2415.00,Schools Support Services,2324P07_CR00369,61011
Sandwell Metropolitan Borough Council,http://www.sandwell.gov.uk/info/200202/performance_and_spending/1079/payments_over_500,19-Oct-2023,FINANCE (Inc SIU),LIGHTWOODS PRIMARY ACADEMY .,Assistant Chief Executive (Excl SIU),930.00,Grant Payments,2324P07_CR00370,61012
Sandwell Metropolitan Borough Council,http://www.sandwell.gov.uk/info/200202/performance_and_spending/1079/payments_over_500,19-Oct-2023,FINANCE (Inc SIU),LODGE PRIMARY SCHOOL,Assistant Chief Executive (Excl SIU),2010.00,Schools Support Services,2324P07_CR00371,61015
Sandwell Metropolitan Borough Council,http://www.sandwell.gov.uk/info/200202/performance_and_spending/1079/payments_over_500,19-Oct-2023,FINANCE (Inc SIU),LYNG PRIMARY SCHOOL   ,Assistant Chief Executive (Excl SIU),1935.00,Schools Support Services,2324P07_CR00372,61026
Sandwell Metropolitan Borough Council,http://www.sandwell.gov.uk/info/200202/performance_and_spending/1079/payments_over_500,19-Oct-2023,FINANCE (Inc SIU),MEADOWS SCHOOL,Assistant Chief Executive (Excl SIU),1635.00,Schools Support Services,2324P07_CR00373,60955
Sandwell Metropolitan Borough Council,http://www.sandwell.gov.uk/info/200202/performance_and_spending/1079/payments_over_500,19-Oct-2023,FINANCE (Inc SIU),MESTY CROFT ACADEMY,Assistant Chief Executive (Excl SIU),2430.00,Grant Payments,2324P07_CR00374,106208
Sandwell Metropolitan Borough Council,http://www.sandwell.gov.uk/info/200202/performance_and_spending/1079/payments_over_500,19-Oct-2023,FINANCE (Inc SIU),MOAT FARM INFANTS SCHOOL  ,Assistant Chief Executive (Excl SIU),1560.00,Schools Support Services,2324P07_CR00375,61031
Sandwell Metropolitan Borough Council,http://www.sandwell.gov.uk/info/200202/performance_and_spending/1079/payments_over_500,19-Oct-2023,FINANCE (Inc SIU),MOAT FARM JUNIOR SCHOOL ,Assistant Chief Executive (Excl SIU),2370.00,Grant Payments,2324P07_CR00376,61032
Sandwell Metropolitan Borough Council,http://www.sandwell.gov.uk/info/200202/performance_and_spending/1079/payments_over_500,19-Oct-2023,FINANCE (Inc SIU),MOORLANDS PRIMARY SCHOOL,Assistant Chief Executive (Excl SIU),1170.00,Schools Support Services,2324P07_CR00377,04036544
Sandwell Metropolitan Borough Council,http://www.sandwell.gov.uk/info/200202/performance_and_spending/1079/payments_over_500,19-Oct-2023,FINANCE (Inc SIU),NEWTOWN PRIMARY ACADEMY,Assistant Chief Executive (Excl SIU),1395.00,Grant Payments,2324P07_CR00378,61034
Sandwell Metropolitan Borough Council,http://www.sandwell.gov.uk/info/200202/performance_and_spending/1079/payments_over_500,19-Oct-2023,FINANCE (Inc SIU),OAKHAM PRIMARY SCHOOL   ,Assistant Chief Executive (Excl SIU),1335.00,Schools Support Services,2324P07_CR00379,61035
Sandwell Metropolitan Borough Council,http://www.sandwell.gov.uk/info/200202/performance_and_spending/1079/payments_over_500,19-Oct-2023,FINANCE (Inc SIU),OCKER HILL ACADEMY,Assistant Chief Executive (Excl SIU),1245.00,Grant Payments,2324P07_CR00380,113691
Sandwell Metropolitan Borough Council,http://www.sandwell.gov.uk/info/200202/performance_and_spending/1079/payments_over_500,19-Oct-2023,FINANCE (Inc SIU),OCKER HILL INFANT SCHOOL   ,Assistant Chief Executive (Excl SIU),795.00,Schools Support Services,2324P07_CR00381,61036
Sandwell Metropolitan Borough Council,http://www.sandwell.gov.uk/info/200202/performance_and_spending/1079/payments_over_500,19-Oct-2023,FINANCE (Inc SIU),OLD HILL PRIMARY SCHOOL   ,Assistant Chief Executive (Excl SIU),1110.00,Schools Support Services,2324P07_CR00382,61038
Sandwell Metropolitan Borough Council,http://www.sandwell.gov.uk/info/200202/performance_and_spending/1079/payments_over_500,19-Oct-2023,FINANCE (Inc SIU),OLD PARK PRIMARY SCHOOL  ,Assistant Chief Executive (Excl SIU),1620.00,Schools Support Services,2324P07_CR00383,61039
Sandwell Metropolitan Borough Council,http://www.sandwell.gov.uk/info/200202/performance_and_spending/1079/payments_over_500,19-Oct-2023,FINANCE (Inc SIU),OLDBURY ACADEMY,Assistant Chief Executive (Excl SIU),9840.00,Grant Payments,2324P07_CR00384,69241
Sandwell Metropolitan Borough Council,http://www.sandwell.gov.uk/info/200202/performance_and_spending/1079/payments_over_500,19-Oct-2023,FINANCE (Inc SIU),ORCHARD SCHOOL      ,Assistant Chief Executive (Excl SIU),1065.00,Schools Support Services,2324P07_CR00385,60956
Sandwell Metropolitan Borough Council,http://www.sandwell.gov.uk/info/200202/performance_and_spending/1079/payments_over_500,19-Oct-2023,FINANCE (Inc SIU),ORMISTON FORGE ACADEMY,Assistant Chief Executive (Excl SIU),8670.00,Grant Payments,2324P07_CR00386,60941
Sandwell Metropolitan Borough Council,http://www.sandwell.gov.uk/info/200202/performance_and_spending/1079/payments_over_500,19-Oct-2023,FINANCE (Inc SIU),ORMISTON SANDWELL COMMUNITY ACADEMY ,Assistant Chief Executive (Excl SIU),5415.00,Grant Payments,2324P07_CR00387,60950
Sandwell Metropolitan Borough Council,http://www.sandwell.gov.uk/info/200202/performance_and_spending/1079/payments_over_500,19-Oct-2023,FINANCE (Inc SIU),OUR LADY AND ST HUBERTS CATHOLIC PRIMARY SCHOOL   ,Assistant Chief Executive (Excl SIU),1155.00,Grant Payments,2324P07_CR00388,61053
Sandwell Metropolitan Borough Council,http://www.sandwell.gov.uk/info/200202/performance_and_spending/1079/payments_over_500,19-Oct-2023,FINANCE (Inc SIU),PARK HILL PRIMARY SCHOOL  ,Assistant Chief Executive (Excl SIU),975.00,Schools Support Services,2324P07_CR00389,61040
Sandwell Metropolitan Borough Council,http://www.sandwell.gov.uk/info/200202/performance_and_spending/1079/payments_over_500,19-Oct-2023,FINANCE (Inc SIU),PENNYHILL PRIMARY,Assistant Chief Executive (Excl SIU),4380.00,Schools Support Services,2324P07_CR00390,73125
Sandwell Metropolitan Borough Council,http://www.sandwell.gov.uk/info/200202/performance_and_spending/1079/payments_over_500,19-Oct-2023,FINANCE (Inc SIU),PERRYFIELDS HIGH SCHOOL     ,Assistant Chief Executive (Excl SIU),4905.00,Grant Payments,2324P07_CR00391,60946
Sandwell Metropolitan Borough Council,http://www.sandwell.gov.uk/info/200202/performance_and_spending/1079/payments_over_500,19-Oct-2023,FINANCE (Inc SIU),PERRYFIELDS PRIMARY SCHOOL,Assistant Chief Executive (Excl SIU),1380.00,Schools Support Services,2324P07_CR00392,61042
Sandwell Metropolitan Borough Council,http://www.sandwell.gov.uk/info/200202/performance_and_spending/1079/payments_over_500,19-Oct-2023,FINANCE (Inc SIU),PHOENIX COLLEGIATE COLLEGE,Assistant Chief Executive (Excl SIU),11325.00,Schools Support Services,2324P07_CR00393,95444
Sandwell Metropolitan Borough Council,http://www.sandwell.gov.uk/info/200202/performance_and_spending/1079/payments_over_500,19-Oct-2023,FINANCE (Inc SIU),Q3 ACADEMY LANGLEY,Assistant Chief Executive (Excl SIU),5910.00,Grant Payments,2324P07_CR00394,128009
Sandwell Metropolitan Borough Council,http://www.sandwell.gov.uk/info/200202/performance_and_spending/1079/payments_over_500,19-Oct-2023,FINANCE (Inc SIU),Q3 ACADEMY TIPTON - THE MERCIAN TRUST,Assistant Chief Executive (Excl SIU),9465.00,Grant Payments,2324P07_CR00395,112047
Sandwell Metropolitan Borough Council,http://www.sandwell.gov.uk/info/200202/performance_and_spending/1079/payments_over_500,19-Oct-2023,FINANCE (Inc SIU),QUAERERE ACADEMY TRUST ,Assistant Chief Executive (Excl SIU),3615.00,Grant Payments,2324P07_CR00396,60939
Sandwell Metropolitan Borough Council,http://www.sandwell.gov.uk/info/200202/performance_and_spending/1079/payments_over_500,19-Oct-2023,FINANCE (Inc SIU),REDDAL HILL PRIMARY SCHOOL ,Assistant Chief Executive (Excl SIU),2220.00,Schools Support Services,2324P07_CR00397,61043
Sandwell Metropolitan Borough Council,http://www.sandwell.gov.uk/info/200202/performance_and_spending/1079/payments_over_500,19-Oct-2023,FINANCE (Inc SIU),ROOD END PRIMARY SCHOOL  ,Assistant Chief Executive (Excl SIU),2565.00,Schools Support Services,2324P07_CR00398,61044
Sandwell Metropolitan Borough Council,http://www.sandwell.gov.uk/info/200202/performance_and_spending/1079/payments_over_500,19-Oct-2023,FINANCE (Inc SIU),ROUNDS GREEN PRIMARY ACADEMY     ,Assistant Chief Executive (Excl SIU),1740.00,Grant Payments,2324P07_CR00399,61045
Sandwell Metropolitan Borough Council,http://www.sandwell.gov.uk/info/200202/performance_and_spending/1079/payments_over_500,19-Oct-2023,FINANCE (Inc SIU),ROWLEY HALL PRIMARY SCHOOL   ,Assistant Chief Executive (Excl SIU),3945.00,Schools Support Services,2324P07_CR00400,61046
Sandwell Metropolitan Borough Council,http://www.sandwell.gov.uk/info/200202/performance_and_spending/1079/payments_over_500,19-Oct-2023,FINANCE (Inc SIU),RYDERS GREEN PRIMARY SCHOOL   ,Assistant Chief Executive (Excl SIU),1770.00,Schools Support Services,2324P07_CR00401,61047
Sandwell Metropolitan Borough Council,http://www.sandwell.gov.uk/info/200202/performance_and_spending/1079/payments_over_500,19-Oct-2023,FINANCE (Inc SIU),SACRED HEART PRIMARY SCHOOL    ,Assistant Chief Executive (Excl SIU),2850.00,Schools Support Services,2324P07_CR00402,61048
Sandwell Metropolitan Borough Council,http://www.sandwell.gov.uk/info/200202/performance_and_spending/1079/payments_over_500,19-Oct-2023,FINANCE (Inc SIU),SANDWELL ACADEMY TRUST LTD.,Assistant Chief Executive (Excl SIU),5430.00,Grant Payments,2324P07_CR00403,126137
Sandwell Metropolitan Borough Council,http://www.sandwell.gov.uk/info/200202/performance_and_spending/1079/payments_over_500,19-Oct-2023,FINANCE (Inc SIU),SHENSTONE LODGE SCHOOL   ,Assistant Chief Executive (Excl SIU),1320.00,Grant Payments,2324P07_CR00404,22995
Sandwell Metropolitan Borough Council,http://www.sandwell.gov.uk/info/200202/performance_and_spending/1079/payments_over_500,19-Oct-2023,FINANCE (Inc SIU),SHIRELAND BIOMEDICAL UTC,Assistant Chief Executive (Excl SIU),1725.00,Grant Payments,2324P07_CR00405,128174
Sandwell Metropolitan Borough Council,http://www.sandwell.gov.uk/info/200202/performance_and_spending/1079/payments_over_500,19-Oct-2023,FINANCE (Inc SIU),SHIRELAND COLLEGIATE ACADEMY   ,Assistant Chief Executive (Excl SIU),8460.00,Grant Payments,2324P07_CR00406,60947
Sandwell Metropolitan Borough Council,http://www.sandwell.gov.uk/info/200202/performance_and_spending/1079/payments_over_500,19-Oct-2023,FINANCE (Inc SIU),SHIRELAND COLLEGIATE ACADEMY TRUST T/A TAMESIDE,Assistant Chief Executive (Excl SIU),2880.00,Grant Payments,2324P07_CR00407,61064
Sandwell Metropolitan Borough Council,http://www.sandwell.gov.uk/info/200202/performance_and_spending/1079/payments_over_500,19-Oct-2023,FINANCE (Inc SIU),SHIRELAND HALL PRIMARY ACADEMY,Assistant Chief Executive (Excl SIU),3075.00,Grant Payments,2324P07_CR00408,15209
Sandwell Metropolitan Borough Council,http://www.sandwell.gov.uk/info/200202/performance_and_spending/1079/payments_over_500,19-Oct-2023,FINANCE (Inc SIU),SHIRELAND TECHNOLOGY PRIMARY SCHOOL,Assistant Chief Executive (Excl SIU),1740.00,Grant Payments,2324P07_CR00409,148598
Sandwell Metropolitan Borough Council,http://www.sandwell.gov.uk/info/200202/performance_and_spending/1079/payments_over_500,19-Oct-2023,FINANCE (Inc SIU),SILVERTREES ACADEMY TRUST,Assistant Chief Executive (Excl SIU),1410.00,Grant Payments,2324P07_CR00410,113719
Sandwell Metropolitan Borough Council,http://www.sandwell.gov.uk/info/200202/performance_and_spending/1079/payments_over_500,19-Oct-2023,FINANCE (Inc SIU),SPRINGFIELD PRIMARY SCHOOL ,Assistant Chief Executive (Excl SIU),2070.00,Schools Support Services,2324P07_CR00411,61050
Sandwell Metropolitan Borough Council,http://www.sandwell.gov.uk/info/200202/performance_and_spending/1079/payments_over_500,19-Oct-2023,FINANCE (Inc SIU),ST CATHERINE OF SIENA MULTI ACADEMY COMPANY  ,Assistant Chief Executive (Excl SIU),885.00,Grant Payments,2324P07_CR00412,61052
Sandwell Metropolitan Borough Council,http://www.sandwell.gov.uk/info/200202/performance_and_spending/1079/payments_over_500,19-Oct-2023,FINANCE (Inc SIU),ST FRANCIS XAVIER CATHOLIC PRIMARY,Assistant Chief Executive (Excl SIU),735.00,Grant Payments,2324P07_CR00413,61051
Sandwell Metropolitan Borough Council,http://www.sandwell.gov.uk/info/200202/performance_and_spending/1079/payments_over_500,19-Oct-2023,FINANCE (Inc SIU),ST JAMES C OF E PRIMARY SCHOOL,Assistant Chief Executive (Excl SIU),3165.00,Schools Support Services,2324P07_CR00414,61054
Sandwell Metropolitan Borough Council,http://www.sandwell.gov.uk/info/200202/performance_and_spending/1079/payments_over_500,19-Oct-2023,FINANCE (Inc SIU),ST JOHN BOSCO RC PRIMARY SCHOOL  ,Assistant Chief Executive (Excl SIU),750.00,Grant Payments,2324P07_CR00415,61055
Sandwell Metropolitan Borough Council,http://www.sandwell.gov.uk/info/200202/performance_and_spending/1079/payments_over_500,19-Oct-2023,FINANCE (Inc SIU),ST JOHNS C OF E PRIMARY ACADEMY,Assistant Chief Executive (Excl SIU),1065.00,Grant Payments,2324P07_CR00416,61056
Sandwell Metropolitan Borough Council,http://www.sandwell.gov.uk/info/200202/performance_and_spending/1079/payments_over_500,19-Oct-2023,FINANCE (Inc SIU),ST MARTINS CE PRIMARY SCHOOL,Assistant Chief Executive (Excl SIU),630.00,Schools Support Services,2324P07_CR00417,61058
Sandwell Metropolitan Borough Council,http://www.sandwell.gov.uk/info/200202/performance_and_spending/1079/payments_over_500,19-Oct-2023,FINANCE (Inc SIU),ST MARY MAGDALENE CE PRIMARY SCHOOL ,Assistant Chief Executive (Excl SIU),945.00,Schools Support Services,2324P07_CR00418,61059
Sandwell Metropolitan Borough Council,http://www.sandwell.gov.uk/info/200202/performance_and_spending/1079/payments_over_500,19-Oct-2023,FINANCE (Inc SIU),ST MARYS RC PRIMARY SCHOOL  ,Assistant Chief Executive (Excl SIU),630.00,Grant Payments,2324P07_CR00419,61060
Sandwell Metropolitan Borough Council,http://www.sandwell.gov.uk/info/200202/performance_and_spending/1079/payments_over_500,19-Oct-2023,FINANCE (Inc SIU),ST MATTHEWS CE PRIMARY SCHOOL ,Assistant Chief Executive (Excl SIU),2520.00,Schools Support Services,2324P07_CR00420,61061
Sandwell Metropolitan Borough Council,http://www.sandwell.gov.uk/info/200202/performance_and_spending/1079/payments_over_500,19-Oct-2023,FINANCE (Inc SIU),ST MICHAELS CE HIGH SCHOOL,Assistant Chief Executive (Excl SIU),6405.00,Schools Support Services,2324P07_CR00421,60948
Sandwell Metropolitan Borough Council,http://www.sandwell.gov.uk/info/200202/performance_and_spending/1079/payments_over_500,19-Oct-2023,FINANCE (Inc SIU),ST PAULS C OF E ACADEMY,Assistant Chief Executive (Excl SIU),1110.00,Grant Payments,2324P07_CR00422,118126
Sandwell Metropolitan Borough Council,http://www.sandwell.gov.uk/info/200202/performance_and_spending/1079/payments_over_500,19-Oct-2023,FINANCE (Inc SIU),ST PHILIPS CATHOLIC PRIMARY   ,Assistant Chief Executive (Excl SIU),1440.00,Grant Payments,2324P07_CR00423,61063
Sandwell Metropolitan Borough Council,http://www.sandwell.gov.uk/info/200202/performance_and_spending/1079/payments_over_500,19-Oct-2023,FINANCE (Inc SIU),STUART BATHURST CATHOLIC HIGH SCHOOL,Assistant Chief Executive (Excl SIU),5400.00,Grant Payments,2324P07_CR00424,60949
Sandwell Metropolitan Borough Council,http://www.sandwell.gov.uk/info/200202/performance_and_spending/1079/payments_over_500,19-Oct-2023,FINANCE (Inc SIU),TEMPLE MEADOW PRIMARY SCHOOL  ,Assistant Chief Executive (Excl SIU),2025.00,Schools Support Services,2324P07_CR00425,61065
Sandwell Metropolitan Borough Council,http://www.sandwell.gov.uk/info/200202/performance_and_spending/1079/payments_over_500,19-Oct-2023,FINANCE (Inc SIU),THE PRIORY PRIMARY,Assistant Chief Executive (Excl SIU),3120.00,Schools Support Services,2324P07_CR00426,61066
Sandwell Metropolitan Borough Council,http://www.sandwell.gov.uk/info/200202/performance_and_spending/1079/payments_over_500,19-Oct-2023,FINANCE (Inc SIU),THE RIVERS MULTI ACADEMY TRUST,Assistant Chief Executive (Excl SIU),5535.00,Grant Payments,2324P07_CR00427,61014
Sandwell Metropolitan Borough Council,http://www.sandwell.gov.uk/info/200202/performance_and_spending/1079/payments_over_500,19-Oct-2023,FINANCE (Inc SIU),TIMBERTREE (ACADEMY) PRIMARY SCHOOL,Assistant Chief Executive (Excl SIU),1170.00,Grant Payments,2324P07_CR00428,112804
Sandwell Metropolitan Borough Council,http://www.sandwell.gov.uk/info/200202/performance_and_spending/1079/payments_over_500,19-Oct-2023,FINANCE (Inc SIU),TIPTON GREEN JUNIOR SCHOOL ACADEMY,Assistant Chief Executive (Excl SIU),2220.00,Grant Payments,2324P07_CR00429,61068
Sandwell Metropolitan Borough Council,http://www.sandwell.gov.uk/info/200202/performance_and_spending/1079/payments_over_500,19-Oct-2023,FINANCE (Inc SIU),TIVIDALE COMMUNITY PRIMARY ,Assistant Chief Executive (Excl SIU),1035.00,Schools Support Services,2324P07_CR00430,61069
Sandwell Metropolitan Borough Council,http://www.sandwell.gov.uk/info/200202/performance_and_spending/1079/payments_over_500,19-Oct-2023,FINANCE (Inc SIU),TIVIDALE HALL PRIMARY SCHOOL ,Assistant Chief Executive (Excl SIU),1305.00,Schools Support Services,2324P07_CR00431,61070
Sandwell Metropolitan Borough Council,http://www.sandwell.gov.uk/info/200202/performance_and_spending/1079/payments_over_500,19-Oct-2023,FINANCE (Inc SIU),UPLANDS MANOR PRIMARY,Assistant Chief Executive (Excl SIU),5010.00,Schools Support Services,2324P07_CR00432,61071
Sandwell Metropolitan Borough Council,http://www.sandwell.gov.uk/info/200202/performance_and_spending/1079/payments_over_500,19-Oct-2023,FINANCE (Inc SIU),VICTORIA PARK PRIMARY ACADEMY,Assistant Chief Executive (Excl SIU),3360.00,Grant Payments,2324P07_CR00433,106209
Sandwell Metropolitan Borough Council,http://www.sandwell.gov.uk/info/200202/performance_and_spending/1079/payments_over_500,19-Oct-2023,FINANCE (Inc SIU),WEDNESBURY OAK ACADEMY,Assistant Chief Executive (Excl SIU),2610.00,Grant Payments,2324P07_CR00434,116882
Sandwell Metropolitan Borough Council,http://www.sandwell.gov.uk/info/200202/performance_and_spending/1079/payments_over_500,19-Oct-2023,FINANCE (Inc SIU),WEST BROMWICH COLLEGIATE ACADEMY,Assistant Chief Executive (Excl SIU),4245.00,Grant Payments,2324P07_CR00435,137780
Sandwell Metropolitan Borough Council,http://www.sandwell.gov.uk/info/200202/performance_and_spending/1079/payments_over_500,19-Oct-2023,FINANCE (Inc SIU),WESTMINSTER SCHOOL ,Assistant Chief Executive (Excl SIU),1965.00,Schools Support Services,2324P07_CR00436,60957
Sandwell Metropolitan Borough Council,http://www.sandwell.gov.uk/info/200202/performance_and_spending/1079/payments_over_500,23-Oct-2023,FINANCE (Inc SIU),WINDSOR ACADEMY TRUST,Assistant Chief Executive (Excl SIU),720.00,Grant Payments,2324P07_CR00437,167258
Sandwell Metropolitan Borough Council,http://www.sandwell.gov.uk/info/200202/performance_and_spending/1079/payments_over_500,19-Oct-2023,FINANCE (Inc SIU),WODENSBOROUGH ORMISTON ACADEMY,Assistant Chief Executive (Excl SIU),8310.00,Grant Payments,2324P07_CR00438,115040
Sandwell Metropolitan Borough Council,http://www.sandwell.gov.uk/info/200202/performance_and_spending/1079/payments_over_500,19-Oct-2023,FINANCE (Inc SIU),WOOD GREEN ACADEMY  ,Assistant Chief Executive (Excl SIU),6015.00,Grant Payments,2324P07_CR00439,100125
Sandwell Metropolitan Borough Council,http://www.sandwell.gov.uk/info/200202/performance_and_spending/1079/payments_over_500,19-Oct-2023,FINANCE (Inc SIU),WOOD GREEN JUNIOR SCHOOL ,Assistant Chief Executive (Excl SIU),2100.00,Schools Support Services,2324P07_CR00440,61076
Sandwell Metropolitan Borough Council,http://www.sandwell.gov.uk/info/200202/performance_and_spending/1079/payments_over_500,19-Oct-2023,FINANCE (Inc SIU),YEW TREE PRIMARY SCHOOL ,Assistant Chief Executive (Excl SIU),3900.00,Schools Support Services,2324P07_CR00441,61078
Sandwell Metropolitan Borough Council,http://www.sandwell.gov.uk/info/200202/performance_and_spending/1079/payments_over_500,01-Oct-2023,Housing & Assets Total,BEECHWOOD TREES & LANDSCAPE LTD,Housing & Assets Total,985.18,Externally Purchased Professional Services ,2324P07_CR00442,93287
Sandwell Metropolitan Borough Council,http://www.sandwell.gov.uk/info/200202/performance_and_spending/1079/payments_over_500,01-Oct-2023,Housing & Assets Total,BEECHWOOD TREES & LANDSCAPE LTD,Housing & Assets Total,2044.84,Externally Purchased Professional Services ,2324P07_CR00443,93287
Sandwell Metropolitan Borough Council,http://www.sandwell.gov.uk/info/200202/performance_and_spending/1079/payments_over_500,01-Oct-2023,Housing & Assets Total,BEECHWOOD TREES & LANDSCAPE LTD,Housing & Assets Total,6058.22,Externally Purchased Professional Services ,2324P07_CR00444,93287
Sandwell Metropolitan Borough Council,http://www.sandwell.gov.uk/info/200202/performance_and_spending/1079/payments_over_500,03-Oct-2023,Housing & Assets Total,BEECHWOOD TREES & LANDSCAPE LTD,Housing & Assets Total,847.88,Externally Purchased Professional Services ,2324P07_CR00445,93287
Sandwell Metropolitan Borough Council,http://www.sandwell.gov.uk/info/200202/performance_and_spending/1079/payments_over_500,03-Oct-2023,Housing & Assets Total,BEECHWOOD TREES & LANDSCAPE LTD,Housing & Assets Total,611.38,Externally Purchased Professional Services ,2324P07_CR00446,93287
Sandwell Metropolitan Borough Council,http://www.sandwell.gov.uk/info/200202/performance_and_spending/1079/payments_over_500,03-Oct-2023,Housing & Assets Total,BEECHWOOD TREES & LANDSCAPE LTD,Housing & Assets Total,1789.45,Externally Purchased Professional Services ,2324P07_CR00447,93287
Sandwell Metropolitan Borough Council,http://www.sandwell.gov.uk/info/200202/performance_and_spending/1079/payments_over_500,01-Oct-2023,Housing & Assets Total,BEECHWOOD TREES & LANDSCAPE LTD,Housing & Assets Total,3163.69,Externally Purchased Professional Services ,2324P07_CR00448,93287
Sandwell Metropolitan Borough Council,http://www.sandwell.gov.uk/info/200202/performance_and_spending/1079/payments_over_500,01-Oct-2023,Housing & Assets Total,BEECHWOOD TREES & LANDSCAPE LTD,Housing & Assets Total,1678.25,Externally Purchased Professional Services ,2324P07_CR00449,93287
Sandwell Metropolitan Borough Council,http://www.sandwell.gov.uk/info/200202/performance_and_spending/1079/payments_over_500,01-Oct-2023,Housing & Assets Total,BEECHWOOD TREES & LANDSCAPE LTD,Housing & Assets Total,845.66,Externally Purchased Professional Services ,2324P07_CR00450,93287
Sandwell Metropolitan Borough Council,http://www.sandwell.gov.uk/info/200202/performance_and_spending/1079/payments_over_500,01-Oct-2023,Housing & Assets Total,BEECHWOOD TREES & LANDSCAPE LTD,Housing & Assets Total,2213.38,Externally Purchased Professional Services ,2324P07_CR00451,93287
Sandwell Metropolitan Borough Council,http://www.sandwell.gov.uk/info/200202/performance_and_spending/1079/payments_over_500,05-Oct-2023,Housing & Assets Total,BIRMINGHAM INTERNATIONAL JAZZ & BLUES FESTIVAL LIMITED,Housing & Assets Total,1225.00,Advertising & Publicity,2324P07_CR00452,87922
Sandwell Metropolitan Borough Council,http://www.sandwell.gov.uk/info/200202/performance_and_spending/1079/payments_over_500,03-Oct-2023,Housing & Assets Total,BLACK COUNTRY WOMEN'S AID,Corporate Management,509.39,Rents,2324P07_CR00453,127401
Sandwell Metropolitan Borough Council,http://www.sandwell.gov.uk/info/200202/performance_and_spending/1079/payments_over_500,03-Oct-2023,Housing & Assets Total,BRUSHSTROKES,Corporate Management,2110.00,Grant Payments,2324P07_CR00454,21029374
Sandwell Metropolitan Borough Council,http://www.sandwell.gov.uk/info/200202/performance_and_spending/1079/payments_over_500,01-Oct-2023,Housing & Assets Total,CITY OF SANCTUARY UK,Corporate Management,1500.00,Grant Payments,2324P07_CR00455,167349
Sandwell Metropolitan Borough Council,http://www.sandwell.gov.uk/info/200202/performance_and_spending/1079/payments_over_500,01-Oct-2023,Housing & Assets Total,CKP LTD T/A HAGLEY HOTEL,Corporate Management,1350.00,Rents,2324P07_CR00456,143677
Sandwell Metropolitan Borough Council,http://www.sandwell.gov.uk/info/200202/performance_and_spending/1079/payments_over_500,01-Oct-2023,Housing & Assets Total,CKP LTD T/A HAGLEY HOTEL,Corporate Management,1650.00,Rents,2324P07_CR00457,143677
Sandwell Metropolitan Borough Council,http://www.sandwell.gov.uk/info/200202/performance_and_spending/1079/payments_over_500,01-Oct-2023,Housing & Assets Total,CKP LTD T/A HAGLEY HOTEL,Corporate Management,900.00,Rents,2324P07_CR00458,143677
Sandwell Metropolitan Borough Council,http://www.sandwell.gov.uk/info/200202/performance_and_spending/1079/payments_over_500,01-Oct-2023,Housing & Assets Total,CKP LTD T/A HAGLEY HOTEL,Corporate Management,765.00,Rents,2324P07_CR00459,143677
Sandwell Metropolitan Borough Council,http://www.sandwell.gov.uk/info/200202/performance_and_spending/1079/payments_over_500,01-Oct-2023,Housing & Assets Total,CKP LTD T/A HAGLEY HOTEL,Corporate Management,2520.00,Rents,2324P07_CR00460,143677
Sandwell Metropolitan Borough Council,http://www.sandwell.gov.uk/info/200202/performance_and_spending/1079/payments_over_500,01-Oct-2023,Housing & Assets Total,CKP LTD T/A HAGLEY HOTEL,Corporate Management,6160.00,Rents,2324P07_CR00461,143677
Sandwell Metropolitan Borough Council,http://www.sandwell.gov.uk/info/200202/performance_and_spending/1079/payments_over_500,01-Oct-2023,Housing & Assets Total,CKP LTD T/A HAGLEY HOTEL,Corporate Management,2145.00,Rents,2324P07_CR00462,143677
Sandwell Metropolitan Borough Council,http://www.sandwell.gov.uk/info/200202/performance_and_spending/1079/payments_over_500,04-Oct-2023,Housing & Assets Total,CONTRACT LETTINGS LTD,Corporate Management,738.60,Rents,2324P07_CR00463,76625
Sandwell Metropolitan Borough Council,http://www.sandwell.gov.uk/info/200202/performance_and_spending/1079/payments_over_500,04-Oct-2023,Housing & Assets Total,CONTRACT LETTINGS LTD,Corporate Management,678.60,Rents,2324P07_CR00464,76625
Sandwell Metropolitan Borough Council,http://www.sandwell.gov.uk/info/200202/performance_and_spending/1079/payments_over_500,04-Oct-2023,Housing & Assets Total,CONTRACT LETTINGS LTD,Corporate Management,678.60,Rents,2324P07_CR00465,76625
Sandwell Metropolitan Borough Council,http://www.sandwell.gov.uk/info/200202/performance_and_spending/1079/payments_over_500,04-Oct-2023,Housing & Assets Total,CONTRACT LETTINGS LTD,Corporate Management,738.60,Rents,2324P07_CR00466,76625
Sandwell Metropolitan Borough Council,http://www.sandwell.gov.uk/info/200202/performance_and_spending/1079/payments_over_500,04-Oct-2023,Housing & Assets Total,CONTRACT LETTINGS LTD,Corporate Management,541.80,Rents,2324P07_CR00467,76625
Sandwell Metropolitan Borough Council,http://www.sandwell.gov.uk/info/200202/performance_and_spending/1079/payments_over_500,04-Oct-2023,Housing & Assets Total,CONTRACT LETTINGS LTD,Corporate Management,541.80,Rents,2324P07_CR00468,76625
Sandwell Metropolitan Borough Council,http://www.sandwell.gov.uk/info/200202/performance_and_spending/1079/payments_over_500,04-Oct-2023,Housing & Assets Total,CONTRACT LETTINGS LTD,Corporate Management,5030.40,Rents,2324P07_CR00469,76625
Sandwell Metropolitan Borough Council,http://www.sandwell.gov.uk/info/200202/performance_and_spending/1079/payments_over_500,02-Oct-2023,Housing & Assets Total,COOKE RUDLING LIMITED,Assistant Chief Executive (Excl SIU),2737.50,Externally Purchased Professional Services ,2324P07_CR00470,01577073
Sandwell Metropolitan Borough Council,http://www.sandwell.gov.uk/info/200202/performance_and_spending/1079/payments_over_500,01-Oct-2023,Housing & Assets Total,GILANI ENTERPRISES LIMITED,Corporate Management,1200.00,Rents,2324P07_CR00471,2696
Sandwell Metropolitan Borough Council,http://www.sandwell.gov.uk/info/200202/performance_and_spending/1079/payments_over_500,03-Oct-2023,Housing & Assets Total,GILANI ENTERPRISES LIMITED,Corporate Management,3100.00,Rents,2324P07_CR00472,2696
Sandwell Metropolitan Borough Council,http://www.sandwell.gov.uk/info/200202/performance_and_spending/1079/payments_over_500,03-Oct-2023,Housing & Assets Total,GILANI ENTERPRISES LIMITED,Corporate Management,3100.00,Rents,2324P07_CR00473,2696
Sandwell Metropolitan Borough Council,http://www.sandwell.gov.uk/info/200202/performance_and_spending/1079/payments_over_500,23-Oct-2023,Housing & Assets Total,HAYS SPECIALIST RECRUITMENT LTD,Corporate Management,171964.74,Agency Staff,2324P07_CR00474,80349
Sandwell Metropolitan Borough Council,http://www.sandwell.gov.uk/info/200202/performance_and_spending/1079/payments_over_500,01-Oct-2023,Housing & Assets Total,HEARTBREAK ENTS LTD,Housing & Assets Total,2550.00,Civic Events,2324P07_CR00475,166305
Sandwell Metropolitan Borough Council,http://www.sandwell.gov.uk/info/200202/performance_and_spending/1079/payments_over_500,01-Oct-2023,Housing & Assets Total,"HIGHFIELD HOUSE HOTEL,",Corporate Management,1350.00,Rents,2324P07_CR00476,162756
Sandwell Metropolitan Borough Council,http://www.sandwell.gov.uk/info/200202/performance_and_spending/1079/payments_over_500,01-Oct-2023,Housing & Assets Total,"HIGHFIELD HOUSE HOTEL,",Corporate Management,3150.00,Rents,2324P07_CR00477,162756
Sandwell Metropolitan Borough Council,http://www.sandwell.gov.uk/info/200202/performance_and_spending/1079/payments_over_500,01-Oct-2023,Housing & Assets Total,"HIGHFIELD HOUSE HOTEL,",Corporate Management,1350.00,Rents,2324P07_CR00478,162756
Sandwell Metropolitan Borough Council,http://www.sandwell.gov.uk/info/200202/performance_and_spending/1079/payments_over_500,01-Oct-2023,Housing & Assets Total,"HIGHFIELD HOUSE HOTEL,",Corporate Management,1350.00,Rents,2324P07_CR00479,162756
Sandwell Metropolitan Borough Council,http://www.sandwell.gov.uk/info/200202/performance_and_spending/1079/payments_over_500,01-Oct-2023,Housing & Assets Total,"HIGHFIELD HOUSE HOTEL,",Corporate Management,4050.00,Rents,2324P07_CR00480,162756
Sandwell Metropolitan Borough Council,http://www.sandwell.gov.uk/info/200202/performance_and_spending/1079/payments_over_500,01-Oct-2023,Housing & Assets Total,"HIGHFIELD HOUSE HOTEL,",Corporate Management,1350.00,Rents,2324P07_CR00481,162756
Sandwell Metropolitan Borough Council,http://www.sandwell.gov.uk/info/200202/performance_and_spending/1079/payments_over_500,01-Oct-2023,Housing & Assets Total,"HIGHFIELD HOUSE HOTEL,",Corporate Management,1800.00,Rents,2324P07_CR00482,162756
Sandwell Metropolitan Borough Council,http://www.sandwell.gov.uk/info/200202/performance_and_spending/1079/payments_over_500,01-Oct-2023,Housing & Assets Total,"HIGHFIELD HOUSE HOTEL,",Corporate Management,2250.00,Rents,2324P07_CR00483,162756
Sandwell Metropolitan Borough Council,http://www.sandwell.gov.uk/info/200202/performance_and_spending/1079/payments_over_500,01-Oct-2023,Housing & Assets Total,"HIGHFIELD HOUSE HOTEL,",Corporate Management,1800.00,Rents,2324P07_CR00484,162756
Sandwell Metropolitan Borough Council,http://www.sandwell.gov.uk/info/200202/performance_and_spending/1079/payments_over_500,01-Oct-2023,Housing & Assets Total,"HIGHFIELD HOUSE HOTEL,",Corporate Management,1650.00,Rents,2324P07_CR00485,162756
Sandwell Metropolitan Borough Council,http://www.sandwell.gov.uk/info/200202/performance_and_spending/1079/payments_over_500,01-Oct-2023,Housing & Assets Total,"HIGHFIELD HOUSE HOTEL,",Corporate Management,3600.00,Rents,2324P07_CR00486,162756
Sandwell Metropolitan Borough Council,http://www.sandwell.gov.uk/info/200202/performance_and_spending/1079/payments_over_500,01-Oct-2023,Housing & Assets Total,"HIGHFIELD HOUSE HOTEL,",Corporate Management,1800.00,Rents,2324P07_CR00487,162756
Sandwell Metropolitan Borough Council,http://www.sandwell.gov.uk/info/200202/performance_and_spending/1079/payments_over_500,01-Oct-2023,Housing & Assets Total,"HIGHFIELD HOUSE HOTEL,",Corporate Management,765.00,Rents,2324P07_CR00488,162756
Sandwell Metropolitan Borough Council,http://www.sandwell.gov.uk/info/200202/performance_and_spending/1079/payments_over_500,01-Oct-2023,Housing & Assets Total,HOME FARM NURSERIES (PINVIN) LIMITED,Housing & Assets Total,3356.45,Grounds Maintenance & Improvements,2324P07_CR00489,77003445
Sandwell Metropolitan Borough Council,http://www.sandwell.gov.uk/info/200202/performance_and_spending/1079/payments_over_500,01-Oct-2023,Housing & Assets Total,I GET RESULTS FITNESS,Dead SeRCOP,1200.00,Civic Events,2324P07_CR00490,165919
Sandwell Metropolitan Borough Council,http://www.sandwell.gov.uk/info/200202/performance_and_spending/1079/payments_over_500,01-Oct-2023,Housing & Assets Total,INSTANT PROMOTION (UK) LTD,Housing & Assets Total,8127.00,Equipment & Furniture ,2324P07_CR00491,112209
Sandwell Metropolitan Borough Council,http://www.sandwell.gov.uk/info/200202/performance_and_spending/1079/payments_over_500,01-Oct-2023,Housing & Assets Total,KAHOOT! ASA,Corporate Management,1419.00,ICT ,2324P07_CR00492,167034
Sandwell Metropolitan Borough Council,http://www.sandwell.gov.uk/info/200202/performance_and_spending/1079/payments_over_500,24-Oct-2023,Housing & Assets Total,MF ALCHEMISTS LTD T/A MR FLAVOUR EVENTS,Housing & Assets Total,1614.00,Civic Events,2324P07_CR00493,167136
Sandwell Metropolitan Borough Council,http://www.sandwell.gov.uk/info/200202/performance_and_spending/1079/payments_over_500,01-Oct-2023,Housing & Assets Total,MIDLAND FORESTRY LIMITED,Housing & Assets Total,858.75,Externally Purchased Professional Services ,2324P07_CR00494,45812
Sandwell Metropolitan Borough Council,http://www.sandwell.gov.uk/info/200202/performance_and_spending/1079/payments_over_500,01-Oct-2023,Housing & Assets Total,MIDLAND FORESTRY LIMITED,Housing & Assets Total,1050.55,Externally Purchased Professional Services ,2324P07_CR00495,45812
Sandwell Metropolitan Borough Council,http://www.sandwell.gov.uk/info/200202/performance_and_spending/1079/payments_over_500,01-Oct-2023,Housing & Assets Total,MIDLAND FORESTRY LIMITED,Housing & Assets Total,7552.16,Externally Purchased Professional Services ,2324P07_CR00496,45812
Sandwell Metropolitan Borough Council,http://www.sandwell.gov.uk/info/200202/performance_and_spending/1079/payments_over_500,01-Oct-2023,Housing & Assets Total,MIDLAND FORESTRY LIMITED,Housing & Assets Total,520.00,Externally Purchased Professional Services ,2324P07_CR00497,45812
Sandwell Metropolitan Borough Council,http://www.sandwell.gov.uk/info/200202/performance_and_spending/1079/payments_over_500,01-Oct-2023,Housing & Assets Total,MIDLAND FORESTRY LIMITED,Housing & Assets Total,775.92,Externally Purchased Professional Services ,2324P07_CR00498,45812
Sandwell Metropolitan Borough Council,http://www.sandwell.gov.uk/info/200202/performance_and_spending/1079/payments_over_500,01-Oct-2023,Housing & Assets Total,MIDLAND FORESTRY LIMITED,Housing & Assets Total,1096.33,Externally Purchased Professional Services ,2324P07_CR00499,45812
Sandwell Metropolitan Borough Council,http://www.sandwell.gov.uk/info/200202/performance_and_spending/1079/payments_over_500,01-Oct-2023,Housing & Assets Total,MIDLAND FORESTRY LIMITED,Housing & Assets Total,19571.91,Externally Purchased Professional Services ,2324P07_CR00500,45812
Sandwell Metropolitan Borough Council,http://www.sandwell.gov.uk/info/200202/performance_and_spending/1079/payments_over_500,01-Oct-2023,Housing & Assets Total,MIDLAND FORESTRY LIMITED,Housing & Assets Total,1731.69,Externally Purchased Professional Services ,2324P07_CR00501,45812
Sandwell Metropolitan Borough Council,http://www.sandwell.gov.uk/info/200202/performance_and_spending/1079/payments_over_500,01-Oct-2023,Housing & Assets Total,MIDLAND FORESTRY LIMITED,Housing & Assets Total,2255.84,Externally Purchased Professional Services ,2324P07_CR00502,45812
Sandwell Metropolitan Borough Council,http://www.sandwell.gov.uk/info/200202/performance_and_spending/1079/payments_over_500,01-Oct-2023,Housing & Assets Total,MIDLAND FORESTRY LIMITED,Housing & Assets Total,724.71,Externally Purchased Professional Services ,2324P07_CR00503,45812
Sandwell Metropolitan Borough Council,http://www.sandwell.gov.uk/info/200202/performance_and_spending/1079/payments_over_500,01-Oct-2023,Housing & Assets Total,MIDLAND FORESTRY LIMITED,Housing & Assets Total,786.82,Externally Purchased Professional Services ,2324P07_CR00504,45812
Sandwell Metropolitan Borough Council,http://www.sandwell.gov.uk/info/200202/performance_and_spending/1079/payments_over_500,01-Oct-2023,Housing & Assets Total,MIDLAND FORESTRY LIMITED,Housing & Assets Total,9709.92,Externally Purchased Professional Services ,2324P07_CR00505,45812
Sandwell Metropolitan Borough Council,http://www.sandwell.gov.uk/info/200202/performance_and_spending/1079/payments_over_500,01-Oct-2023,Housing & Assets Total,MIDLAND FORESTRY LIMITED,Housing & Assets Total,959.00,Externally Purchased Professional Services ,2324P07_CR00506,45812
Sandwell Metropolitan Borough Council,http://www.sandwell.gov.uk/info/200202/performance_and_spending/1079/payments_over_500,03-Oct-2023,Housing & Assets Total,MIDLAND FORESTRY LIMITED,Housing & Assets Total,1281.58,Externally Purchased Professional Services ,2324P07_CR00507,45812
Sandwell Metropolitan Borough Council,http://www.sandwell.gov.uk/info/200202/performance_and_spending/1079/payments_over_500,03-Oct-2023,Housing & Assets Total,MIDLAND FORESTRY LIMITED,Housing & Assets Total,758.50,Externally Purchased Professional Services ,2324P07_CR00508,45812
Sandwell Metropolitan Borough Council,http://www.sandwell.gov.uk/info/200202/performance_and_spending/1079/payments_over_500,03-Oct-2023,Housing & Assets Total,MIDLAND FORESTRY LIMITED,Housing & Assets Total,5808.50,Externally Purchased Professional Services ,2324P07_CR00509,45812
Sandwell Metropolitan Borough Council,http://www.sandwell.gov.uk/info/200202/performance_and_spending/1079/payments_over_500,05-Oct-2023,Housing & Assets Total,MIDLAND FORESTRY LIMITED,Housing & Assets Total,1342.63,Externally Purchased Professional Services ,2324P07_CR00510,45812
Sandwell Metropolitan Borough Council,http://www.sandwell.gov.uk/info/200202/performance_and_spending/1079/payments_over_500,10-Oct-2023,Housing & Assets Total,MIDLAND FORESTRY LIMITED,Housing & Assets Total,2936.97,Externally Purchased Professional Services ,2324P07_CR00511,45812
Sandwell Metropolitan Borough Council,http://www.sandwell.gov.uk/info/200202/performance_and_spending/1079/payments_over_500,10-Oct-2023,Housing & Assets Total,MIDLAND FORESTRY LIMITED,Housing & Assets Total,2201.38,Externally Purchased Professional Services ,2324P07_CR00512,45812
Sandwell Metropolitan Borough Council,http://www.sandwell.gov.uk/info/200202/performance_and_spending/1079/payments_over_500,10-Oct-2023,Housing & Assets Total,MIDLAND FORESTRY LIMITED,Housing & Assets Total,584.13,Externally Purchased Professional Services ,2324P07_CR00513,45812
Sandwell Metropolitan Borough Council,http://www.sandwell.gov.uk/info/200202/performance_and_spending/1079/payments_over_500,10-Oct-2023,Housing & Assets Total,MIDLAND FORESTRY LIMITED,Housing & Assets Total,1103.99,Externally Purchased Professional Services ,2324P07_CR00514,45812
Sandwell Metropolitan Borough Council,http://www.sandwell.gov.uk/info/200202/performance_and_spending/1079/payments_over_500,10-Oct-2023,Housing & Assets Total,MIDLAND FORESTRY LIMITED,Housing & Assets Total,1318.64,Externally Purchased Professional Services ,2324P07_CR00515,45812
Sandwell Metropolitan Borough Council,http://www.sandwell.gov.uk/info/200202/performance_and_spending/1079/payments_over_500,17-Oct-2023,Housing & Assets Total,MIDLAND FORESTRY LIMITED,Housing & Assets Total,1113.75,Externally Purchased Professional Services ,2324P07_CR00516,45812
Sandwell Metropolitan Borough Council,http://www.sandwell.gov.uk/info/200202/performance_and_spending/1079/payments_over_500,17-Oct-2023,Housing & Assets Total,MIDLAND FORESTRY LIMITED,Housing & Assets Total,932.88,Externally Purchased Professional Services ,2324P07_CR00517,45812
Sandwell Metropolitan Borough Council,http://www.sandwell.gov.uk/info/200202/performance_and_spending/1079/payments_over_500,17-Oct-2023,Housing & Assets Total,MIDLAND FORESTRY LIMITED,Housing & Assets Total,1227.10,Externally Purchased Professional Services ,2324P07_CR00518,45812
Sandwell Metropolitan Borough Council,http://www.sandwell.gov.uk/info/200202/performance_and_spending/1079/payments_over_500,01-Oct-2023,Housing & Assets Total,MOVE MOBILITY LTD,Corporate Management,627.51,Equipment & Furniture ,2324P07_CR00519,119141
Sandwell Metropolitan Borough Council,http://www.sandwell.gov.uk/info/200202/performance_and_spending/1079/payments_over_500,01-Oct-2023,Housing & Assets Total,MY PARTY PACKAGE LTD,Housing & Assets Total,4418.00,Civic Events,2324P07_CR00520,166235
Sandwell Metropolitan Borough Council,http://www.sandwell.gov.uk/info/200202/performance_and_spending/1079/payments_over_500,03-Oct-2023,Housing & Assets Total,NATIONWIDE MOBILES LTD,Corporate Management,700.00,Tenants Expenses,2324P07_CR00521,167087
Sandwell Metropolitan Borough Council,http://www.sandwell.gov.uk/info/200202/performance_and_spending/1079/payments_over_500,01-Oct-2023,Housing & Assets Total,PHOENIX SUPPORTED HOUSING CIC,Corporate Management,1170.00,Rents,2324P07_CR00522,167369
Sandwell Metropolitan Borough Council,http://www.sandwell.gov.uk/info/200202/performance_and_spending/1079/payments_over_500,17-Oct-2023,Housing & Assets Total,POSTURITE (UK) LTD,Corporate Management,907.16,Equipment & Furniture ,2324P07_CR00523,01492682
Sandwell Metropolitan Borough Council,http://www.sandwell.gov.uk/info/200202/performance_and_spending/1079/payments_over_500,01-Oct-2023,Housing & Assets Total,PROMARCO PROMOTIONS LTD,Housing & Assets Total,1745.00,Civic Events,2324P07_CR00524,01577242
Sandwell Metropolitan Borough Council,http://www.sandwell.gov.uk/info/200202/performance_and_spending/1079/payments_over_500,01-Oct-2023,Housing & Assets Total,SAFFRON HOTEL,Corporate Management,93310.00,Rents,2324P07_CR00525,164316
Sandwell Metropolitan Borough Council,http://www.sandwell.gov.uk/info/200202/performance_and_spending/1079/payments_over_500,17-Oct-2023,Housing & Assets Total,SERCO LIMITED,Housing & Assets Total,1676.28,Externally Purchased Professional Services ,2324P07_CR00526,53771
Sandwell Metropolitan Borough Council,http://www.sandwell.gov.uk/info/200202/performance_and_spending/1079/payments_over_500,01-Oct-2023,Housing & Assets Total,TOTALENERGIES GAS & POWER LTD,Corporate Management,587.26,Gas,2324P07_CR00527,107605
Sandwell Metropolitan Borough Council,http://www.sandwell.gov.uk/info/200202/performance_and_spending/1079/payments_over_500,11-Oct-2023,Housing & Assets Total,TUDOR ENVIRONMENTAL,Housing & Assets Total,1117.10,Materials & Consumables,2324P07_CR00528,01528713
Sandwell Metropolitan Borough Council,http://www.sandwell.gov.uk/info/200202/performance_and_spending/1079/payments_over_500,01-Oct-2023,Housing & Assets Total,VALENCIA FINE FOODS LIMITED,Corporate Management,685.00,Catering Provisions,2324P07_CR00529,131572
Sandwell Metropolitan Borough Council,http://www.sandwell.gov.uk/info/200202/performance_and_spending/1079/payments_over_500,01-Oct-2023,Housing & Assets Total,VICARAGE LODGE BIRMINGHAM,Corporate Management,500.00,Rents,2324P07_CR00530,111819
Sandwell Metropolitan Borough Council,http://www.sandwell.gov.uk/info/200202/performance_and_spending/1079/payments_over_500,01-Oct-2023,Housing & Assets Total,VICARAGE LODGE BIRMINGHAM,Corporate Management,560.00,Rents,2324P07_CR00531,111819
Sandwell Metropolitan Borough Council,http://www.sandwell.gov.uk/info/200202/performance_and_spending/1079/payments_over_500,12-Oct-2023,Housing & Assets Total,VICARAGE LODGE BIRMINGHAM,Corporate Management,700.00,Rents,2324P07_CR00532,111819
Sandwell Metropolitan Borough Council,http://www.sandwell.gov.uk/info/200202/performance_and_spending/1079/payments_over_500,12-Oct-2023,Housing & Assets Total,VICARAGE LODGE BIRMINGHAM,Corporate Management,560.00,Rents,2324P07_CR00533,111819
Sandwell Metropolitan Borough Council,http://www.sandwell.gov.uk/info/200202/performance_and_spending/1079/payments_over_500,12-Oct-2023,Housing & Assets Total,VICARAGE LODGE BIRMINGHAM,Corporate Management,560.00,Rents,2324P07_CR00534,111819
Sandwell Metropolitan Borough Council,http://www.sandwell.gov.uk/info/200202/performance_and_spending/1079/payments_over_500,12-Oct-2023,Housing & Assets Total,VICARAGE LODGE BIRMINGHAM,Corporate Management,560.00,Rents,2324P07_CR00535,111819
Sandwell Metropolitan Borough Council,http://www.sandwell.gov.uk/info/200202/performance_and_spending/1079/payments_over_500,12-Oct-2023,Housing & Assets Total,VICARAGE LODGE BIRMINGHAM,Corporate Management,560.00,Rents,2324P07_CR00536,111819
Sandwell Metropolitan Borough Council,http://www.sandwell.gov.uk/info/200202/performance_and_spending/1079/payments_over_500,12-Oct-2023,Housing & Assets Total,VICARAGE LODGE BIRMINGHAM,Corporate Management,560.00,Rents,2324P07_CR00537,111819
Sandwell Metropolitan Borough Council,http://www.sandwell.gov.uk/info/200202/performance_and_spending/1079/payments_over_500,12-Oct-2023,Housing & Assets Total,VICARAGE LODGE BIRMINGHAM,Corporate Management,560.00,Rents,2324P07_CR00538,111819
Sandwell Metropolitan Borough Council,http://www.sandwell.gov.uk/info/200202/performance_and_spending/1079/payments_over_500,12-Oct-2023,Housing & Assets Total,VICARAGE LODGE BIRMINGHAM,Corporate Management,560.00,Rents,2324P07_CR00539,111819
Sandwell Metropolitan Borough Council,http://www.sandwell.gov.uk/info/200202/performance_and_spending/1079/payments_over_500,12-Oct-2023,Housing & Assets Total,VICARAGE LODGE BIRMINGHAM,Corporate Management,560.00,Rents,2324P07_CR00540,111819
Sandwell Metropolitan Borough Council,http://www.sandwell.gov.uk/info/200202/performance_and_spending/1079/payments_over_500,12-Oct-2023,Housing & Assets Total,VICARAGE LODGE BIRMINGHAM,Corporate Management,1120.00,Rents,2324P07_CR00541,111819
Sandwell Metropolitan Borough Council,http://www.sandwell.gov.uk/info/200202/performance_and_spending/1079/payments_over_500,12-Oct-2023,Housing & Assets Total,VICARAGE LODGE BIRMINGHAM,Corporate Management,1120.00,Rents,2324P07_CR00542,111819
Sandwell Metropolitan Borough Council,http://www.sandwell.gov.uk/info/200202/performance_and_spending/1079/payments_over_500,12-Oct-2023,Housing & Assets Total,VICARAGE LODGE BIRMINGHAM,Corporate Management,1120.00,Rents,2324P07_CR00543,111819
Sandwell Metropolitan Borough Council,http://www.sandwell.gov.uk/info/200202/performance_and_spending/1079/payments_over_500,12-Oct-2023,Housing & Assets Total,VICARAGE LODGE BIRMINGHAM,Corporate Management,1120.00,Rents,2324P07_CR00544,111819
Sandwell Metropolitan Borough Council,http://www.sandwell.gov.uk/info/200202/performance_and_spending/1079/payments_over_500,12-Oct-2023,Housing & Assets Total,VICARAGE LODGE BIRMINGHAM,Corporate Management,1120.00,Rents,2324P07_CR00545,111819
Sandwell Metropolitan Borough Council,http://www.sandwell.gov.uk/info/200202/performance_and_spending/1079/payments_over_500,12-Oct-2023,Housing & Assets Total,VICARAGE LODGE BIRMINGHAM,Corporate Management,700.00,Rents,2324P07_CR00546,111819
Sandwell Metropolitan Borough Council,http://www.sandwell.gov.uk/info/200202/performance_and_spending/1079/payments_over_500,12-Oct-2023,Housing & Assets Total,VICARAGE LODGE BIRMINGHAM,Corporate Management,1120.00,Rents,2324P07_CR00547,111819
Sandwell Metropolitan Borough Council,http://www.sandwell.gov.uk/info/200202/performance_and_spending/1079/payments_over_500,12-Oct-2023,Housing & Assets Total,VICARAGE LODGE BIRMINGHAM,Corporate Management,1120.00,Rents,2324P07_CR00548,111819
Sandwell Metropolitan Borough Council,http://www.sandwell.gov.uk/info/200202/performance_and_spending/1079/payments_over_500,12-Oct-2023,Housing & Assets Total,VICARAGE LODGE BIRMINGHAM,Corporate Management,1120.00,Rents,2324P07_CR00549,111819
Sandwell Metropolitan Borough Council,http://www.sandwell.gov.uk/info/200202/performance_and_spending/1079/payments_over_500,12-Oct-2023,Housing & Assets Total,VICARAGE LODGE BIRMINGHAM,Corporate Management,640.00,Rents,2324P07_CR00550,111819
Sandwell Metropolitan Borough Council,http://www.sandwell.gov.uk/info/200202/performance_and_spending/1079/payments_over_500,12-Oct-2023,Housing & Assets Total,VICARAGE LODGE BIRMINGHAM,Corporate Management,560.00,Rents,2324P07_CR00551,111819
Sandwell Metropolitan Borough Council,http://www.sandwell.gov.uk/info/200202/performance_and_spending/1079/payments_over_500,12-Oct-2023,Housing & Assets Total,VICARAGE LODGE BIRMINGHAM,Corporate Management,560.00,Rents,2324P07_CR00552,111819
Sandwell Metropolitan Borough Council,http://www.sandwell.gov.uk/info/200202/performance_and_spending/1079/payments_over_500,12-Oct-2023,Housing & Assets Total,VICARAGE LODGE BIRMINGHAM,Corporate Management,560.00,Rents,2324P07_CR00553,111819
Sandwell Metropolitan Borough Council,http://www.sandwell.gov.uk/info/200202/performance_and_spending/1079/payments_over_500,12-Oct-2023,Housing & Assets Total,VICARAGE LODGE BIRMINGHAM,Corporate Management,560.00,Rents,2324P07_CR00554,111819
Sandwell Metropolitan Borough Council,http://www.sandwell.gov.uk/info/200202/performance_and_spending/1079/payments_over_500,12-Oct-2023,Housing & Assets Total,VICARAGE LODGE BIRMINGHAM,Corporate Management,560.00,Rents,2324P07_CR00555,111819
Sandwell Metropolitan Borough Council,http://www.sandwell.gov.uk/info/200202/performance_and_spending/1079/payments_over_500,12-Oct-2023,Housing & Assets Total,VICARAGE LODGE BIRMINGHAM,Corporate Management,560.00,Rents,2324P07_CR00556,111819
Sandwell Metropolitan Borough Council,http://www.sandwell.gov.uk/info/200202/performance_and_spending/1079/payments_over_500,25-Oct-2023,Housing & Assets Total,VICARAGE LODGE BIRMINGHAM,Corporate Management,560.00,Rents,2324P07_CR00557,111819
Sandwell Metropolitan Borough Council,http://www.sandwell.gov.uk/info/200202/performance_and_spending/1079/payments_over_500,25-Oct-2023,Housing & Assets Total,VICARAGE LODGE BIRMINGHAM,Corporate Management,560.00,Rents,2324P07_CR00558,111819
Sandwell Metropolitan Borough Council,http://www.sandwell.gov.uk/info/200202/performance_and_spending/1079/payments_over_500,25-Oct-2023,Housing & Assets Total,VICARAGE LODGE BIRMINGHAM,Corporate Management,560.00,Rents,2324P07_CR00559,111819
Sandwell Metropolitan Borough Council,http://www.sandwell.gov.uk/info/200202/performance_and_spending/1079/payments_over_500,25-Oct-2023,Housing & Assets Total,VICARAGE LODGE BIRMINGHAM,Corporate Management,560.00,Rents,2324P07_CR00560,111819
Sandwell Metropolitan Borough Council,http://www.sandwell.gov.uk/info/200202/performance_and_spending/1079/payments_over_500,25-Oct-2023,Housing & Assets Total,VICARAGE LODGE BIRMINGHAM,Corporate Management,1120.00,Rents,2324P07_CR00561,111819
Sandwell Metropolitan Borough Council,http://www.sandwell.gov.uk/info/200202/performance_and_spending/1079/payments_over_500,25-Oct-2023,Housing & Assets Total,VICARAGE LODGE BIRMINGHAM,Corporate Management,1120.00,Rents,2324P07_CR00562,111819
Sandwell Metropolitan Borough Council,http://www.sandwell.gov.uk/info/200202/performance_and_spending/1079/payments_over_500,25-Oct-2023,Housing & Assets Total,VICARAGE LODGE BIRMINGHAM,Corporate Management,1120.00,Rents,2324P07_CR00563,111819
Sandwell Metropolitan Borough Council,http://www.sandwell.gov.uk/info/200202/performance_and_spending/1079/payments_over_500,25-Oct-2023,Housing & Assets Total,VICARAGE LODGE BIRMINGHAM,Corporate Management,1120.00,Rents,2324P07_CR00564,111819
Sandwell Metropolitan Borough Council,http://www.sandwell.gov.uk/info/200202/performance_and_spending/1079/payments_over_500,25-Oct-2023,Housing & Assets Total,VICARAGE LODGE BIRMINGHAM,Corporate Management,560.00,Rents,2324P07_CR00565,111819
Sandwell Metropolitan Borough Council,http://www.sandwell.gov.uk/info/200202/performance_and_spending/1079/payments_over_500,25-Oct-2023,Housing & Assets Total,VICARAGE LODGE BIRMINGHAM,Corporate Management,560.00,Rents,2324P07_CR00566,111819
Sandwell Metropolitan Borough Council,http://www.sandwell.gov.uk/info/200202/performance_and_spending/1079/payments_over_500,25-Oct-2023,Housing & Assets Total,VICARAGE LODGE BIRMINGHAM,Corporate Management,560.00,Rents,2324P07_CR00567,111819
Sandwell Metropolitan Borough Council,http://www.sandwell.gov.uk/info/200202/performance_and_spending/1079/payments_over_500,25-Oct-2023,Housing & Assets Total,VICARAGE LODGE BIRMINGHAM,Corporate Management,1120.00,Rents,2324P07_CR00568,111819
Sandwell Metropolitan Borough Council,http://www.sandwell.gov.uk/info/200202/performance_and_spending/1079/payments_over_500,25-Oct-2023,Housing & Assets Total,VICARAGE LODGE BIRMINGHAM,Corporate Management,1120.00,Rents,2324P07_CR00569,111819
Sandwell Metropolitan Borough Council,http://www.sandwell.gov.uk/info/200202/performance_and_spending/1079/payments_over_500,25-Oct-2023,Housing & Assets Total,VICARAGE LODGE BIRMINGHAM,Corporate Management,1120.00,Rents,2324P07_CR00570,111819
Sandwell Metropolitan Borough Council,http://www.sandwell.gov.uk/info/200202/performance_and_spending/1079/payments_over_500,25-Oct-2023,Housing & Assets Total,VICARAGE LODGE BIRMINGHAM,Corporate Management,1120.00,Rents,2324P07_CR00571,111819
Sandwell Metropolitan Borough Council,http://www.sandwell.gov.uk/info/200202/performance_and_spending/1079/payments_over_500,01-Oct-2023,Housing & Assets Total,REDACTED PERSONAL DATA,Corporate Management,1000.00,Building Maintenance & Improvements,2324P07_CR00572,REDACTED PERSONAL DATA
Sandwell Metropolitan Borough Council,http://www.sandwell.gov.uk/info/200202/performance_and_spending/1079/payments_over_500,03-Oct-2023,Housing & Assets Total,REDACTED PERSONAL DATA,Corporate Management,1500.00,Rents,2324P07_CR00573,REDACTED PERSONAL DATA
Sandwell Metropolitan Borough Council,http://www.sandwell.gov.uk/info/200202/performance_and_spending/1079/payments_over_500,04-Oct-2023,Housing & Assets Total,REDACTED PERSONAL DATA,Housing & Assets Total,500.00,Rents,2324P07_CR00574,REDACTED PERSONAL DATA
Sandwell Metropolitan Borough Council,http://www.sandwell.gov.uk/info/200202/performance_and_spending/1079/payments_over_500,04-Oct-2023,Housing & Assets Total,REDACTED PERSONAL DATA,Housing & Assets Total,500.00,Rents,2324P07_CR00575,REDACTED PERSONAL DATA
Sandwell Metropolitan Borough Council,http://www.sandwell.gov.uk/info/200202/performance_and_spending/1079/payments_over_500,04-Oct-2023,Housing & Assets Total,REDACTED PERSONAL DATA,Housing & Assets Total,500.00,Rents,2324P07_CR00576,REDACTED PERSONAL DATA
Sandwell Metropolitan Borough Council,http://www.sandwell.gov.uk/info/200202/performance_and_spending/1079/payments_over_500,04-Oct-2023,Housing & Assets Total,REDACTED PERSONAL DATA,Housing & Assets Total,500.00,Rents,2324P07_CR00577,REDACTED PERSONAL DATA
Sandwell Metropolitan Borough Council,http://www.sandwell.gov.uk/info/200202/performance_and_spending/1079/payments_over_500,04-Oct-2023,Housing & Assets Total,REDACTED PERSONAL DATA,Housing & Assets Total,500.00,Rents,2324P07_CR00578,REDACTED PERSONAL DATA
Sandwell Metropolitan Borough Council,http://www.sandwell.gov.uk/info/200202/performance_and_spending/1079/payments_over_500,04-Oct-2023,Housing & Assets Total,REDACTED PERSONAL DATA,Housing & Assets Total,500.00,Rents,2324P07_CR00579,REDACTED PERSONAL DATA
Sandwell Metropolitan Borough Council,http://www.sandwell.gov.uk/info/200202/performance_and_spending/1079/payments_over_500,04-Oct-2023,Housing & Assets Total,REDACTED PERSONAL DATA,Housing & Assets Total,500.00,Rents,2324P07_CR00580,REDACTED PERSONAL DATA
Sandwell Metropolitan Borough Council,http://www.sandwell.gov.uk/info/200202/performance_and_spending/1079/payments_over_500,04-Oct-2023,Housing & Assets Total,REDACTED PERSONAL DATA,Housing & Assets Total,500.00,Rents,2324P07_CR00581,REDACTED PERSONAL DATA
Sandwell Metropolitan Borough Council,http://www.sandwell.gov.uk/info/200202/performance_and_spending/1079/payments_over_500,04-Oct-2023,Housing & Assets Total,REDACTED PERSONAL DATA,Housing & Assets Total,600.00,Rents,2324P07_CR00582,REDACTED PERSONAL DATA
Sandwell Metropolitan Borough Council,http://www.sandwell.gov.uk/info/200202/performance_and_spending/1079/payments_over_500,26-Oct-2023,Housing & Assets Total,BALWANT SINGH,Corporate Management,500.00,Rents,2324P07_CR00583,84433
Sandwell Metropolitan Borough Council,http://www.sandwell.gov.uk/info/200202/performance_and_spending/1079/payments_over_500,26-Oct-2023,Housing & Assets Total,ELEANOR MCGEE,Corporate Management,550.00,Rents,2324P07_CR00584,109162
Sandwell Metropolitan Borough Council,http://www.sandwell.gov.uk/info/200202/performance_and_spending/1079/payments_over_500,26-Oct-2023,Housing & Assets Total,BALIJIT KAUR,Corporate Management,500.00,Rents,2324P07_CR00585,101860
Sandwell Metropolitan Borough Council,http://www.sandwell.gov.uk/info/200202/performance_and_spending/1079/payments_over_500,12-Oct-2023,Housing & Assets Total,AGAPE MINISTRIES,Corporate Management,1333.50,Grant Payments,2324P07_CR00586,112863
Sandwell Metropolitan Borough Council,http://www.sandwell.gov.uk/info/200202/performance_and_spending/1079/payments_over_500,12-Oct-2023,Housing & Assets Total,BANGLADESHI ISLAMIC CENTRE,Corporate Management,21628.00,Grant Payments,2324P07_CR00587,01722187
Sandwell Metropolitan Borough Council,http://www.sandwell.gov.uk/info/200202/performance_and_spending/1079/payments_over_500,12-Oct-2023,Housing & Assets Total,BANGLADESHI WOMEN'S ASSOCIATION LIMITED,Corporate Management,35438.50,Grant Payments,2324P07_CR00588,69648
Sandwell Metropolitan Borough Council,http://www.sandwell.gov.uk/info/200202/performance_and_spending/1079/payments_over_500,02-Oct-2023,Housing & Assets Total,BRUSHSTROKES,Corporate Management,16000.00,Grant Payments,2324P07_CR00589,21029374
Sandwell Metropolitan Borough Council,http://www.sandwell.gov.uk/info/200202/performance_and_spending/1079/payments_over_500,01-Oct-2023,Housing & Assets Total,BRUSHSTROKES,Corporate Management,24000.00,Grant Payments,2324P07_CR00590,21029374
Sandwell Metropolitan Borough Council,http://www.sandwell.gov.uk/info/200202/performance_and_spending/1079/payments_over_500,11-Oct-2023,Housing & Assets Total,CITIZENS ADVICE SANDWELL & WALSALL,Corporate Management,8626.50,Grant Payments,2324P07_CR00591,01760899
Sandwell Metropolitan Borough Council,http://www.sandwell.gov.uk/info/200202/performance_and_spending/1079/payments_over_500,12-Oct-2023,Housing & Assets Total,FRIAR PARK MILLENNIUM CENTRE,Corporate Management,14503.50,Grant Payments,2324P07_CR00592,28476
Sandwell Metropolitan Borough Council,http://www.sandwell.gov.uk/info/200202/performance_and_spending/1079/payments_over_500,12-Oct-2023,Housing & Assets Total,GAYTON ROAD COMMUNITY CENTRE ASSOCIATION,Corporate Management,5386.50,Grant Payments,2324P07_CR00593,112420
Sandwell Metropolitan Borough Council,http://www.sandwell.gov.uk/info/200202/performance_and_spending/1079/payments_over_500,11-Oct-2023,Housing & Assets Total,NORTH SMETHWICK DEVELOPMENT TRUST,Corporate Management,22936.00,Grant Payments,2324P07_CR00594,01346623
Sandwell Metropolitan Borough Council,http://www.sandwell.gov.uk/info/200202/performance_and_spending/1079/payments_over_500,05-Oct-2023,Housing & Assets Total,S.C.V.O.,Housing & Assets Total,100000.00,Grant Payments,2324P07_CR00595,109813
Sandwell Metropolitan Borough Council,http://www.sandwell.gov.uk/info/200202/performance_and_spending/1079/payments_over_500,16-Oct-2023,Housing & Assets Total,SANDWELL IRISH COMMUNITY ASSOCIATION,Corporate Management,8325.00,Grant Payments,2324P07_CR00596,37424
Sandwell Metropolitan Borough Council,http://www.sandwell.gov.uk/info/200202/performance_and_spending/1079/payments_over_500,11-Oct-2023,Housing & Assets Total,SMETHWICK PAKISTANI MUSLIM ASSOCIATION LTD,Corporate Management,15917.50,Grant Payments,2324P07_CR00597,01715191
Sandwell Metropolitan Borough Council,http://www.sandwell.gov.uk/info/200202/performance_and_spending/1079/payments_over_500,12-Oct-2023,Housing & Assets Total,ST ALBANS COMMUNITY ASSOCIATION,Corporate Management,50012.50,Grant Payments,2324P07_CR00598,08323189
Sandwell Metropolitan Borough Council,http://www.sandwell.gov.uk/info/200202/performance_and_spending/1079/payments_over_500,25-Oct-2023,Housing & Assets Total,ST PAULS COMMUNITY ASSOCIATION,Corporate Management,11600.00,Grant Payments,2324P07_CR00599,01702471
Sandwell Metropolitan Borough Council,http://www.sandwell.gov.uk/info/200202/performance_and_spending/1079/payments_over_500,12-Oct-2023,Housing & Assets Total,WEST SMETHWICK ENTERPRISE AND STEPPING STONES PRE-SCHOOL,Corporate Management,24623.00,Grant Payments,2324P07_CR00600,01722169
Sandwell Metropolitan Borough Council,http://www.sandwell.gov.uk/info/200202/performance_and_spending/1079/payments_over_500,11-Oct-2023,Housing & Assets Total,YEMENI COMMUNITY ASSOCIATION IN SANDWELL,Corporate Management,7307.50,Grant Payments,2324P07_CR00601,01711292
Sandwell Metropolitan Borough Council,http://www.sandwell.gov.uk/info/200202/performance_and_spending/1079/payments_over_500,11-Oct-2023,Housing & Assets Total,YEMENI COMMUNITY ASSOCIATION IN SANDWELL,Corporate Management,11472.50,Grant Payments,2324P07_CR00602,01711292
Sandwell Metropolitan Borough Council,http://www.sandwell.gov.uk/info/200202/performance_and_spending/1079/payments_over_500,12-Oct-2023,Housing & Assets Total,YEW TREE & TAME BRIDGE COMMUNITY CENTRE,Corporate Management,8321.00,Grant Payments,2324P07_CR00603,108389
Sandwell Metropolitan Borough Council,http://www.sandwell.gov.uk/info/200202/performance_and_spending/1079/payments_over_500,12-Oct-2023,Housing & Communities,HOME FARM NURSERIES (PINVIN) LIMITED,Housing & Communities,19406.25,CIP - Infrastructure,2324P07_CR00604,77003445
Sandwell Metropolitan Borough Council,http://www.sandwell.gov.uk/info/200202/performance_and_spending/1079/payments_over_500,02-Oct-2023,Housing Revenue Account Capital,"ACIVICO (DESIGN,CONSTRUCTION AND FACILITIES MANAGEMENT) LTD",Housing Revenue Account Capital,8170.88,"CIP - New Construction,Conversion, Enhancement & Reno",2324P07_CR00605,148500
Sandwell Metropolitan Borough Council,http://www.sandwell.gov.uk/info/200202/performance_and_spending/1079/payments_over_500,02-Oct-2023,Housing Revenue Account Capital,"ACIVICO (DESIGN,CONSTRUCTION AND FACILITIES MANAGEMENT) LTD",Housing Revenue Account Capital,10295.10,"CIP - New Construction,Conversion, Enhancement & Reno",2324P07_CR00606,148500
Sandwell Metropolitan Borough Council,http://www.sandwell.gov.uk/info/200202/performance_and_spending/1079/payments_over_500,02-Oct-2023,Housing Revenue Account Capital,"ACIVICO (DESIGN,CONSTRUCTION AND FACILITIES MANAGEMENT) LTD",Housing Revenue Account Capital,7877.92,"CIP - New Construction,Conversion, Enhancement & Reno",2324P07_CR00607,148500
Sandwell Metropolitan Borough Council,http://www.sandwell.gov.uk/info/200202/performance_and_spending/1079/payments_over_500,02-Oct-2023,Housing Revenue Account Capital,"ACIVICO (DESIGN,CONSTRUCTION AND FACILITIES MANAGEMENT) LTD",Housing Revenue Account Capital,2218.56,"CIP - New Construction,Conversion, Enhancement & Reno",2324P07_CR00608,148500
Sandwell Metropolitan Borough Council,http://www.sandwell.gov.uk/info/200202/performance_and_spending/1079/payments_over_500,02-Oct-2023,Housing Revenue Account Capital,"ACIVICO (DESIGN,CONSTRUCTION AND FACILITIES MANAGEMENT) LTD",Housing Revenue Account Capital,1350.00,"CIP - New Construction,Conversion, Enhancement & Reno",2324P07_CR00609,148500
Sandwell Metropolitan Borough Council,http://www.sandwell.gov.uk/info/200202/performance_and_spending/1079/payments_over_500,02-Oct-2023,Housing Revenue Account Capital,AXIS EUROPE PLC ,Housing Revenue Account Capital,15809.36,Deferred Charges/Grant Payments,2324P07_CR00610,64946
Sandwell Metropolitan Borough Council,http://www.sandwell.gov.uk/info/200202/performance_and_spending/1079/payments_over_500,10-Oct-2023,Housing Revenue Account Capital,AXIS EUROPE PLC ,Housing Revenue Account Capital,9297.37,Deferred Charges/Grant Payments,2324P07_CR00611,64946
Sandwell Metropolitan Borough Council,http://www.sandwell.gov.uk/info/200202/performance_and_spending/1079/payments_over_500,12-Oct-2023,Housing Revenue Account Capital,AXIS EUROPE PLC ,Housing Revenue Account Capital,112028.95,Deferred Charges/Grant Payments,2324P07_CR00612,64946
Sandwell Metropolitan Borough Council,http://www.sandwell.gov.uk/info/200202/performance_and_spending/1079/payments_over_500,12-Oct-2023,Housing Revenue Account Capital,AXIS EUROPE PLC ,Housing Revenue Account Capital,15979.97,Deferred Charges/Grant Payments,2324P07_CR00613,64946
Sandwell Metropolitan Borough Council,http://www.sandwell.gov.uk/info/200202/performance_and_spending/1079/payments_over_500,23-Oct-2023,Housing Revenue Account Capital,AXIS EUROPE PLC ,Housing Revenue Account Capital,2600.00,Deferred Charges/Grant Payments,2324P07_CR00614,64946
Sandwell Metropolitan Borough Council,http://www.sandwell.gov.uk/info/200202/performance_and_spending/1079/payments_over_500,18-Oct-2023,Housing Revenue Account Capital,CONNECT SERVICES BUILDING SOLUTIONS LTD,Housing Revenue Account Capital,13538.60,"CIP - New Construction,Conversion, Enhancement & Reno",2324P07_CR00615,141859
Sandwell Metropolitan Borough Council,http://www.sandwell.gov.uk/info/200202/performance_and_spending/1079/payments_over_500,12-Oct-2023,Housing Revenue Account Capital,FORTIS SCAFFOLDING LTD,Housing Revenue Account Capital,8500.00,CIP - Infrastructure,2324P07_CR00616,166834
Sandwell Metropolitan Borough Council,http://www.sandwell.gov.uk/info/200202/performance_and_spending/1079/payments_over_500,03-Oct-2023,Housing Revenue Account Capital,J.HARPER & SONS (LEOMINSTER) LIMITED,Housing Revenue Account Capital,168686.68,"CIP - New Construction,Conversion, Enhancement & Reno",2324P07_CR00617,111814
Sandwell Metropolitan Borough Council,http://www.sandwell.gov.uk/info/200202/performance_and_spending/1079/payments_over_500,05-Oct-2023,Housing Revenue Account Capital,JPC CONSTRUCTION (MIDLANDS) LTD,Housing Revenue Account Capital,31498.89,CIP - Infrastructure,2324P07_CR00618,166819
Sandwell Metropolitan Borough Council,http://www.sandwell.gov.uk/info/200202/performance_and_spending/1079/payments_over_500,01-Oct-2023,Housing Revenue Account Capital,LOVELL PARTNERSHIPS  LTD,Housing Revenue Account Capital,759175.72,"CIP - New Construction,Conversion, Enhancement & Reno",2324P07_CR00619,77007398
Sandwell Metropolitan Borough Council,http://www.sandwell.gov.uk/info/200202/performance_and_spending/1079/payments_over_500,01-Oct-2023,Housing Revenue Account Capital,LOVELL PARTNERSHIPS  LTD,Housing Revenue Account Capital,375457.85,"CIP - New Construction,Conversion, Enhancement & Reno",2324P07_CR00620,77007398
Sandwell Metropolitan Borough Council,http://www.sandwell.gov.uk/info/200202/performance_and_spending/1079/payments_over_500,01-Oct-2023,Housing Revenue Account Capital,LOW CARBON BOX LTD,Housing Revenue Account Capital,2800.00,"CIP - New Construction,Conversion, Enhancement & Reno",2324P07_CR00621,164357
Sandwell Metropolitan Borough Council,http://www.sandwell.gov.uk/info/200202/performance_and_spending/1079/payments_over_500,01-Oct-2023,Housing Revenue Account Capital,OPENVIEW SECURITY SOLUTIONS LIMITED,Housing Revenue Account Capital,69459.89,"CIP - New Construction,Conversion, Enhancement & Reno",2324P07_CR00622,77000151
Sandwell Metropolitan Borough Council,http://www.sandwell.gov.uk/info/200202/performance_and_spending/1079/payments_over_500,01-Oct-2023,Housing Revenue Account Capital,PARCOR LTD,Housing Revenue Account Capital,3880.00,"CIP - New Construction,Conversion, Enhancement & Reno",2324P07_CR00623,163117
Sandwell Metropolitan Borough Council,http://www.sandwell.gov.uk/info/200202/performance_and_spending/1079/payments_over_500,01-Oct-2023,Housing Revenue Account Capital,PHOENIX GAS SERVICES LIMITED,Housing Revenue Account Capital,6173.58,Contract Payments,2324P07_CR00624,126729
Sandwell Metropolitan Borough Council,http://www.sandwell.gov.uk/info/200202/performance_and_spending/1079/payments_over_500,01-Oct-2023,Housing Revenue Account Capital,PHOENIX GAS SERVICES LIMITED,Housing Revenue Account Capital,5835.46,Contract Payments,2324P07_CR00625,126729
Sandwell Metropolitan Borough Council,http://www.sandwell.gov.uk/info/200202/performance_and_spending/1079/payments_over_500,01-Oct-2023,Housing Revenue Account Capital,PHOENIX GAS SERVICES LIMITED,Housing Revenue Account Capital,5620.59,Contract Payments,2324P07_CR00626,126729
Sandwell Metropolitan Borough Council,http://www.sandwell.gov.uk/info/200202/performance_and_spending/1079/payments_over_500,01-Oct-2023,Housing Revenue Account Capital,PHOENIX GAS SERVICES LIMITED,Housing Revenue Account Capital,5067.92,Contract Payments,2324P07_CR00627,126729
Sandwell Metropolitan Borough Council,http://www.sandwell.gov.uk/info/200202/performance_and_spending/1079/payments_over_500,21-Oct-2023,Housing Revenue Account Capital,PHOENIX GAS SERVICES LIMITED,Housing Revenue Account Capital,4937.61,Contract Payments,2324P07_CR00628,126729
Sandwell Metropolitan Borough Council,http://www.sandwell.gov.uk/info/200202/performance_and_spending/1079/payments_over_500,01-Oct-2023,Housing Revenue Account Capital,PHOENIX GAS SERVICES LIMITED,Housing Revenue Account Capital,5242.70,Contract Payments,2324P07_CR00629,126729
Sandwell Metropolitan Borough Council,http://www.sandwell.gov.uk/info/200202/performance_and_spending/1079/payments_over_500,14-Oct-2023,Housing Revenue Account Capital,POWRED HEATING COMPONENTS LIMITED,Housing Revenue Account Capital,1120.21,Materials & Consumables,2324P07_CR00630,133978
Sandwell Metropolitan Borough Council,http://www.sandwell.gov.uk/info/200202/performance_and_spending/1079/payments_over_500,01-Oct-2023,Housing Revenue Account Capital,PR PROPERTY MAINTENANCE,Housing Revenue Account Capital,35842.60,Deferred Charges/Grant Payments,2324P07_CR00631,33836
Sandwell Metropolitan Borough Council,http://www.sandwell.gov.uk/info/200202/performance_and_spending/1079/payments_over_500,01-Oct-2023,Housing Revenue Account Capital,SEDDON CONSTRUCTION LIMITED,Housing Revenue Account Capital,11907.71,"CIP - New Construction,Conversion, Enhancement & Reno",2324P07_CR00632,132999
Sandwell Metropolitan Borough Council,http://www.sandwell.gov.uk/info/200202/performance_and_spending/1079/payments_over_500,12-Oct-2023,Housing Revenue Account Capital,SEDDON CONSTRUCTION LIMITED,Housing Revenue Account Capital,571931.58,"CIP - New Construction,Conversion, Enhancement & Reno",2324P07_CR00633,132999
Sandwell Metropolitan Borough Council,http://www.sandwell.gov.uk/info/200202/performance_and_spending/1079/payments_over_500,02-Oct-2023,Housing Revenue Account Capital,SELECT WINDOWS (HOME IMPROVEMENTS) LIMITED,Housing Revenue Account Capital,586.71,Contract Payments,2324P07_CR00634,42616
Sandwell Metropolitan Borough Council,http://www.sandwell.gov.uk/info/200202/performance_and_spending/1079/payments_over_500,02-Oct-2023,Housing Revenue Account Capital,SELECT WINDOWS (HOME IMPROVEMENTS) LIMITED,Housing Revenue Account Capital,597.46,Contract Payments,2324P07_CR00635,42616
Sandwell Metropolitan Borough Council,http://www.sandwell.gov.uk/info/200202/performance_and_spending/1079/payments_over_500,02-Oct-2023,Housing Revenue Account Capital,SELECT WINDOWS (HOME IMPROVEMENTS) LIMITED,Housing Revenue Account Capital,504.69,Contract Payments,2324P07_CR00636,42616
Sandwell Metropolitan Borough Council,http://www.sandwell.gov.uk/info/200202/performance_and_spending/1079/payments_over_500,02-Oct-2023,Housing Revenue Account Capital,SELECT WINDOWS (HOME IMPROVEMENTS) LIMITED,Housing Revenue Account Capital,614.05,Contract Payments,2324P07_CR00637,42616
Sandwell Metropolitan Borough Council,http://www.sandwell.gov.uk/info/200202/performance_and_spending/1079/payments_over_500,01-Oct-2023,Housing Revenue Account Capital,SELECT WINDOWS (HOME IMPROVEMENTS) LIMITED,Housing Revenue Account Capital,685.55,Contract Payments,2324P07_CR00638,42616
Sandwell Metropolitan Borough Council,http://www.sandwell.gov.uk/info/200202/performance_and_spending/1079/payments_over_500,01-Oct-2023,Housing Revenue Account Capital,SELECT WINDOWS (HOME IMPROVEMENTS) LIMITED,Housing Revenue Account Capital,2719.44,Contract Payments,2324P07_CR00639,42616
Sandwell Metropolitan Borough Council,http://www.sandwell.gov.uk/info/200202/performance_and_spending/1079/payments_over_500,01-Oct-2023,Housing Revenue Account Capital,SELECT WINDOWS (HOME IMPROVEMENTS) LIMITED,Housing Revenue Account Capital,977.85,Contract Payments,2324P07_CR00640,42616
Sandwell Metropolitan Borough Council,http://www.sandwell.gov.uk/info/200202/performance_and_spending/1079/payments_over_500,01-Oct-2023,Housing Revenue Account Capital,SELECT WINDOWS (HOME IMPROVEMENTS) LIMITED,Housing Revenue Account Capital,1082.81,Contract Payments,2324P07_CR00641,42616
Sandwell Metropolitan Borough Council,http://www.sandwell.gov.uk/info/200202/performance_and_spending/1079/payments_over_500,01-Oct-2023,Housing Revenue Account Capital,SELECT WINDOWS (HOME IMPROVEMENTS) LIMITED,Housing Revenue Account Capital,811.12,Contract Payments,2324P07_CR00642,42616
Sandwell Metropolitan Borough Council,http://www.sandwell.gov.uk/info/200202/performance_and_spending/1079/payments_over_500,01-Oct-2023,Housing Revenue Account Capital,SELECT WINDOWS (HOME IMPROVEMENTS) LIMITED,Housing Revenue Account Capital,540.75,Contract Payments,2324P07_CR00643,42616
Sandwell Metropolitan Borough Council,http://www.sandwell.gov.uk/info/200202/performance_and_spending/1079/payments_over_500,05-Oct-2023,Housing Revenue Account Capital,SELECT WINDOWS (HOME IMPROVEMENTS) LIMITED,Housing Revenue Account Capital,2460.80,Contract Payments,2324P07_CR00644,42616
Sandwell Metropolitan Borough Council,http://www.sandwell.gov.uk/info/200202/performance_and_spending/1079/payments_over_500,05-Oct-2023,Housing Revenue Account Capital,SELECT WINDOWS (HOME IMPROVEMENTS) LIMITED,Housing Revenue Account Capital,811.12,Contract Payments,2324P07_CR00645,42616
Sandwell Metropolitan Borough Council,http://www.sandwell.gov.uk/info/200202/performance_and_spending/1079/payments_over_500,01-Oct-2023,Housing Revenue Account Capital,SMIRTHWAITE LIMITED,Housing Revenue Account Capital,3992.00,Externally Purchased Professional Services ,2324P07_CR00646,01551366
Sandwell Metropolitan Borough Council,http://www.sandwell.gov.uk/info/200202/performance_and_spending/1079/payments_over_500,01-Oct-2023,Housing Revenue Account Capital,STARRANT LTD    ,Housing Revenue Account Capital,56865.48,CIP - Infrastructure,2324P07_CR00647,77000855
Sandwell Metropolitan Borough Council,http://www.sandwell.gov.uk/info/200202/performance_and_spending/1079/payments_over_500,07-Oct-2023,Housing Revenue Account Capital,SURE MAINTENANCE LIMITED,Housing Revenue Account Capital,149758.29,"CIP - New Construction,Conversion, Enhancement & Reno",2324P07_CR00648,93926
Sandwell Metropolitan Borough Council,http://www.sandwell.gov.uk/info/200202/performance_and_spending/1079/payments_over_500,06-Oct-2023,Housing Revenue Account Capital,SYCAMORE WINDOWS & CONSERVATORIES LIMITED,Housing Revenue Account Capital,266099.72,"CIP - New Construction,Conversion, Enhancement & Reno",2324P07_CR00649,145272
Sandwell Metropolitan Borough Council,http://www.sandwell.gov.uk/info/200202/performance_and_spending/1079/payments_over_500,01-Oct-2023,Housing Revenue Account Capital,TRICAS CONSTRUCTION LIMITED,Housing Revenue Account Capital,174276.17,"CIP - New Construction,Conversion, Enhancement & Reno",2324P07_CR00650,165600
Sandwell Metropolitan Borough Council,http://www.sandwell.gov.uk/info/200202/performance_and_spending/1079/payments_over_500,18-Oct-2023,Housing Revenue Account Capital,TRICAS CONSTRUCTION LIMITED,Housing Revenue Account Capital,343408.08,"CIP - New Construction,Conversion, Enhancement & Reno",2324P07_CR00651,165600
Sandwell Metropolitan Borough Council,http://www.sandwell.gov.uk/info/200202/performance_and_spending/1079/payments_over_500,01-Oct-2023,Housing Revenue Account Capital,VINCI CONSTRUCTION LTD,Housing Revenue Account Capital,4067.22,Deferred Charges/Grant Payments,2324P07_CR00652,36361
Sandwell Metropolitan Borough Council,http://www.sandwell.gov.uk/info/200202/performance_and_spending/1079/payments_over_500,02-Oct-2023,Housing Revenue Account Capital,VINCI CONSTRUCTION LTD,Housing Revenue Account Capital,7853.74,Deferred Charges/Grant Payments,2324P07_CR00653,36361
Sandwell Metropolitan Borough Council,http://www.sandwell.gov.uk/info/200202/performance_and_spending/1079/payments_over_500,02-Oct-2023,Housing Revenue Account Capital,VINCI CONSTRUCTION LTD,Housing Revenue Account Capital,8450.51,Deferred Charges/Grant Payments,2324P07_CR00654,36361
Sandwell Metropolitan Borough Council,http://www.sandwell.gov.uk/info/200202/performance_and_spending/1079/payments_over_500,02-Oct-2023,Housing Revenue Account Capital,VINCI CONSTRUCTION LTD,Housing Revenue Account Capital,11181.53,Deferred Charges/Grant Payments,2324P07_CR00655,36361
Sandwell Metropolitan Borough Council,http://www.sandwell.gov.uk/info/200202/performance_and_spending/1079/payments_over_500,02-Oct-2023,Housing Revenue Account Capital,VINCI CONSTRUCTION LTD,Housing Revenue Account Capital,6840.34,Deferred Charges/Grant Payments,2324P07_CR00656,36361
Sandwell Metropolitan Borough Council,http://www.sandwell.gov.uk/info/200202/performance_and_spending/1079/payments_over_500,01-Oct-2023,Housing Revenue Account Capital,VINCI CONSTRUCTION LTD,Housing Revenue Account Capital,8656.98,Deferred Charges/Grant Payments,2324P07_CR00657,36361
Sandwell Metropolitan Borough Council,http://www.sandwell.gov.uk/info/200202/performance_and_spending/1079/payments_over_500,01-Oct-2023,Housing Revenue Account Capital,VINCI CONSTRUCTION LTD,Housing Revenue Account Capital,39996.84,Deferred Charges/Grant Payments,2324P07_CR00658,36361
Sandwell Metropolitan Borough Council,http://www.sandwell.gov.uk/info/200202/performance_and_spending/1079/payments_over_500,01-Oct-2023,Housing Revenue Account Capital,VINCI CONSTRUCTION LTD,Housing Revenue Account Capital,7865.29,Deferred Charges/Grant Payments,2324P07_CR00659,36361
Sandwell Metropolitan Borough Council,http://www.sandwell.gov.uk/info/200202/performance_and_spending/1079/payments_over_500,17-Oct-2023,Housing Revenue Account Capital,VINCI CONSTRUCTION LTD,Housing Revenue Account Capital,10194.62,Deferred Charges/Grant Payments,2324P07_CR00660,36361
Sandwell Metropolitan Borough Council,http://www.sandwell.gov.uk/info/200202/performance_and_spending/1079/payments_over_500,20-Oct-2023,Housing Revenue Account Capital,VINCI CONSTRUCTION LTD,Housing Revenue Account Capital,76022.13,"CIP - New Construction,Conversion, Enhancement & Reno",2324P07_CR00661,36361
Sandwell Metropolitan Borough Council,http://www.sandwell.gov.uk/info/200202/performance_and_spending/1079/payments_over_500,01-Oct-2023,Housing Revenue Account Capital,VINCI CONSTRUCTION LTD,Housing Revenue Account Capital,11974.63,Deferred Charges/Grant Payments,2324P07_CR00662,36361
Sandwell Metropolitan Borough Council,http://www.sandwell.gov.uk/info/200202/performance_and_spending/1079/payments_over_500,13-Oct-2023,Housing Revenue Account Capital,LIFT & ENGINEERING SERVICES LTD,Housing Revenue Account Capital,675.89,"CIP - New Construction,Conversion, Enhancement & Reno",2324P07_CR00663,77003962
Sandwell Metropolitan Borough Council,http://www.sandwell.gov.uk/info/200202/performance_and_spending/1079/payments_over_500,17-Oct-2023,Housing Revenue Account Capital,LIFT & ENGINEERING SERVICES LTD,Housing Revenue Account Capital,601.16,"CIP - New Construction,Conversion, Enhancement & Reno",2324P07_CR00664,77003962
Sandwell Metropolitan Borough Council,http://www.sandwell.gov.uk/info/200202/performance_and_spending/1079/payments_over_500,23-Oct-2023,Individual School Budgets With Inclusion,5 STAR DAY NURSERY - OLDBURY,Individual School Budgets With Inclusion,6539.40,Grant Payments,2324P07_CR00665,120730
Sandwell Metropolitan Borough Council,http://www.sandwell.gov.uk/info/200202/performance_and_spending/1079/payments_over_500,23-Oct-2023,Individual School Budgets With Inclusion,5 STAR DAY NURSERY LIMITED,Individual School Budgets With Inclusion,4810.05,Grant Payments,2324P07_CR00666,105382
Sandwell Metropolitan Borough Council,http://www.sandwell.gov.uk/info/200202/performance_and_spending/1079/payments_over_500,23-Oct-2023,Individual School Budgets With Inclusion,ABC DAY NURSERY & PRE SCHOOL LTD,Individual School Budgets With Inclusion,9984.45,Grant Payments,2324P07_CR00667,01472823
Sandwell Metropolitan Borough Council,http://www.sandwell.gov.uk/info/200202/performance_and_spending/1079/payments_over_500,23-Oct-2023,Individual School Budgets With Inclusion,ADVENTURE QUEST (GREAT BRIDGE) LTD,Individual School Budgets With Inclusion,5721.98,Grant Payments,2324P07_CR00668,153563
Sandwell Metropolitan Borough Council,http://www.sandwell.gov.uk/info/200202/performance_and_spending/1079/payments_over_500,23-Oct-2023,Individual School Budgets With Inclusion,AL KAHIR SCHOOL,Individual School Budgets With Inclusion,4047.75,Grant Payments,2324P07_CR00669,128728
Sandwell Metropolitan Borough Council,http://www.sandwell.gov.uk/info/200202/performance_and_spending/1079/payments_over_500,23-Oct-2023,Individual School Budgets With Inclusion,BABY STEPS DAY CARE,Individual School Budgets With Inclusion,1603.35,Grant Payments,2324P07_CR00670,165672
Sandwell Metropolitan Borough Council,http://www.sandwell.gov.uk/info/200202/performance_and_spending/1079/payments_over_500,23-Oct-2023,Individual School Budgets With Inclusion,BANANA MOON DAY NURSERY,Individual School Budgets With Inclusion,4087.13,Grant Payments,2324P07_CR00671,124220
Sandwell Metropolitan Borough Council,http://www.sandwell.gov.uk/info/200202/performance_and_spending/1079/payments_over_500,23-Oct-2023,Individual School Budgets With Inclusion,BOOKWORMS DAYCARE LIMITED,Individual School Budgets With Inclusion,7555.80,Grant Payments,2324P07_CR00672,114741
Sandwell Metropolitan Borough Council,http://www.sandwell.gov.uk/info/200202/performance_and_spending/1079/payments_over_500,23-Oct-2023,Individual School Budgets With Inclusion,BRIGHT LIGHTS DAY NURSERY,Individual School Budgets With Inclusion,8979.78,Grant Payments,2324P07_CR00673,89877
Sandwell Metropolitan Borough Council,http://www.sandwell.gov.uk/info/200202/performance_and_spending/1079/payments_over_500,23-Oct-2023,Individual School Budgets With Inclusion,BUSY BEE NURSERY,Individual School Budgets With Inclusion,8635.20,Grant Payments,2324P07_CR00674,01222577
Sandwell Metropolitan Borough Council,http://www.sandwell.gov.uk/info/200202/performance_and_spending/1079/payments_over_500,23-Oct-2023,Individual School Budgets With Inclusion,CAP DAY NURSERY,Individual School Budgets With Inclusion,2777.25,Grant Payments,2324P07_CR00675,51154
Sandwell Metropolitan Borough Council,http://www.sandwell.gov.uk/info/200202/performance_and_spending/1079/payments_over_500,23-Oct-2023,Individual School Budgets With Inclusion,CONFEDERATION OF BANGLADESHI ORGANISATIONS (CBO) LIMITED,Individual School Budgets With Inclusion,1944.08,Grant Payments,2324P07_CR00676,10034
Sandwell Metropolitan Borough Council,http://www.sandwell.gov.uk/info/200202/performance_and_spending/1079/payments_over_500,23-Oct-2023,Individual School Budgets With Inclusion,CONIFERS DAY NURSERY LTD,Individual School Budgets With Inclusion,7356.83,Grant Payments,2324P07_CR00677,131957
Sandwell Metropolitan Borough Council,http://www.sandwell.gov.uk/info/200202/performance_and_spending/1079/payments_over_500,23-Oct-2023,Individual School Budgets With Inclusion,DAFFODILS NURSERY LTD,Individual School Budgets With Inclusion,6943.13,Grant Payments,2324P07_CR00678,120066
Sandwell Metropolitan Borough Council,http://www.sandwell.gov.uk/info/200202/performance_and_spending/1079/payments_over_500,23-Oct-2023,Individual School Budgets With Inclusion,FAIRYTALES NURSERY LTD,Individual School Budgets With Inclusion,7555.80,Grant Payments,2324P07_CR00679,106247
Sandwell Metropolitan Borough Council,http://www.sandwell.gov.uk/info/200202/performance_and_spending/1079/payments_over_500,23-Oct-2023,Individual School Budgets With Inclusion,FATIMA DAY NURSERY,Individual School Budgets With Inclusion,4904.55,Grant Payments,2324P07_CR00680,131343
Sandwell Metropolitan Borough Council,http://www.sandwell.gov.uk/info/200202/performance_and_spending/1079/payments_over_500,23-Oct-2023,Individual School Budgets With Inclusion,FIREFLIES NURSERY LIMITED,Individual School Budgets With Inclusion,10899.00,Grant Payments,2324P07_CR00681,124120
Sandwell Metropolitan Borough Council,http://www.sandwell.gov.uk/info/200202/performance_and_spending/1079/payments_over_500,23-Oct-2023,Individual School Budgets With Inclusion,FIRST STEPS DAY NURSERY,Individual School Budgets With Inclusion,9264.15,Grant Payments,2324P07_CR00682,51155
Sandwell Metropolitan Borough Council,http://www.sandwell.gov.uk/info/200202/performance_and_spending/1079/payments_over_500,23-Oct-2023,Individual School Budgets With Inclusion,FIRST STEPS OLDBURY,Individual School Budgets With Inclusion,5994.45,Grant Payments,2324P07_CR00683,118886
Sandwell Metropolitan Borough Council,http://www.sandwell.gov.uk/info/200202/performance_and_spending/1079/payments_over_500,23-Oct-2023,Individual School Budgets With Inclusion,GENIUS GEMS,Individual School Budgets With Inclusion,20163.15,Grant Payments,2324P07_CR00684,160606
Sandwell Metropolitan Borough Council,http://www.sandwell.gov.uk/info/200202/performance_and_spending/1079/payments_over_500,23-Oct-2023,Individual School Budgets With Inclusion,GNG NURSERY,Individual School Budgets With Inclusion,6266.93,Grant Payments,2324P07_CR00685,114805
Sandwell Metropolitan Borough Council,http://www.sandwell.gov.uk/info/200202/performance_and_spending/1079/payments_over_500,23-Oct-2023,Individual School Budgets With Inclusion,HAPPY DAYS NURSERY (GREETS GREEN),Individual School Budgets With Inclusion,4721.33,Grant Payments,2324P07_CR00686,125840
Sandwell Metropolitan Borough Council,http://www.sandwell.gov.uk/info/200202/performance_and_spending/1079/payments_over_500,23-Oct-2023,Individual School Budgets With Inclusion,HUMPTY DUMPTYS DAY NURSERY,Individual School Budgets With Inclusion,13623.75,Grant Payments,2324P07_CR00687,08510771
Sandwell Metropolitan Borough Council,http://www.sandwell.gov.uk/info/200202/performance_and_spending/1079/payments_over_500,23-Oct-2023,Individual School Budgets With Inclusion,JUNIPER'S PRESCHOOL,Individual School Budgets With Inclusion,5936.70,Grant Payments,2324P07_CR00688,154579
Sandwell Metropolitan Borough Council,http://www.sandwell.gov.uk/info/200202/performance_and_spending/1079/payments_over_500,23-Oct-2023,Individual School Budgets With Inclusion,KANGAROO POUCH AT GREAT BRIDGE,Individual School Budgets With Inclusion,6811.88,Grant Payments,2324P07_CR00689,129771
Sandwell Metropolitan Borough Council,http://www.sandwell.gov.uk/info/200202/performance_and_spending/1079/payments_over_500,23-Oct-2023,Individual School Budgets With Inclusion,KANGAROO POUCH AT TIVIDALE,Individual School Budgets With Inclusion,4008.38,Grant Payments,2324P07_CR00690,113715
Sandwell Metropolitan Borough Council,http://www.sandwell.gov.uk/info/200202/performance_and_spending/1079/payments_over_500,23-Oct-2023,Individual School Budgets With Inclusion,KANGAROO POUCH CHARLEMONT,Individual School Budgets With Inclusion,3888.15,Grant Payments,2324P07_CR00691,117283
Sandwell Metropolitan Borough Council,http://www.sandwell.gov.uk/info/200202/performance_and_spending/1079/payments_over_500,23-Oct-2023,Individual School Budgets With Inclusion,KANGAROO POUCH LIMITED,Individual School Budgets With Inclusion,5994.45,Grant Payments,2324P07_CR00692,106981
Sandwell Metropolitan Borough Council,http://www.sandwell.gov.uk/info/200202/performance_and_spending/1079/payments_over_500,23-Oct-2023,Individual School Budgets With Inclusion,LAVENDER FARM DAY NURSERY,Individual School Budgets With Inclusion,28064.93,Grant Payments,2324P07_CR00693,65596
Sandwell Metropolitan Borough Council,http://www.sandwell.gov.uk/info/200202/performance_and_spending/1079/payments_over_500,23-Oct-2023,Individual School Budgets With Inclusion,LILLIPUT LODGE CHILDRENS DAY NURSERY,Individual School Budgets With Inclusion,9984.45,Grant Payments,2324P07_CR00694,2980
Sandwell Metropolitan Borough Council,http://www.sandwell.gov.uk/info/200202/performance_and_spending/1079/payments_over_500,23-Oct-2023,Individual School Budgets With Inclusion,LITTLE ACADEMY NURSERY,Individual School Budgets With Inclusion,3777.90,Grant Payments,2324P07_CR00695,81904
Sandwell Metropolitan Borough Council,http://www.sandwell.gov.uk/info/200202/performance_and_spending/1079/payments_over_500,23-Oct-2023,Individual School Budgets With Inclusion,LITTLE ANGELS DAY NURSERY LIMITED,Individual School Budgets With Inclusion,2452.28,Grant Payments,2324P07_CR00696,10207
Sandwell Metropolitan Borough Council,http://www.sandwell.gov.uk/info/200202/performance_and_spending/1079/payments_over_500,23-Oct-2023,Individual School Budgets With Inclusion,LITTLE EXPLORERS (WEST MIDLANDS) LTD,Individual School Budgets With Inclusion,15531.08,Grant Payments,2324P07_CR00697,114804
Sandwell Metropolitan Borough Council,http://www.sandwell.gov.uk/info/200202/performance_and_spending/1079/payments_over_500,23-Oct-2023,Individual School Budgets With Inclusion,LITTLE LEARNERS LTD,Individual School Budgets With Inclusion,8130.15,Grant Payments,2324P07_CR00698,01424133
Sandwell Metropolitan Borough Council,http://www.sandwell.gov.uk/info/200202/performance_and_spending/1079/payments_over_500,23-Oct-2023,Individual School Budgets With Inclusion,LITTLE LEGEND NURSERIES LTD,Individual School Budgets With Inclusion,3667.65,Grant Payments,2324P07_CR00699,117890
Sandwell Metropolitan Borough Council,http://www.sandwell.gov.uk/info/200202/performance_and_spending/1079/payments_over_500,23-Oct-2023,Individual School Budgets With Inclusion,LITTLE SAPLINGS CHILDCARE CENTRES,Individual School Budgets With Inclusion,8365.35,Grant Payments,2324P07_CR00700,131043
Sandwell Metropolitan Borough Council,http://www.sandwell.gov.uk/info/200202/performance_and_spending/1079/payments_over_500,23-Oct-2023,Individual School Budgets With Inclusion,LITTLE STEPPERS,Individual School Budgets With Inclusion,4177.95,Grant Payments,2324P07_CR00701,120240
Sandwell Metropolitan Borough Council,http://www.sandwell.gov.uk/info/200202/performance_and_spending/1079/payments_over_500,23-Oct-2023,Individual School Budgets With Inclusion,LITTLE VALERS PRE SCHOOL,Individual School Budgets With Inclusion,11757.90,Grant Payments,2324P07_CR00702,99107
Sandwell Metropolitan Borough Council,http://www.sandwell.gov.uk/info/200202/performance_and_spending/1079/payments_over_500,23-Oct-2023,Individual School Budgets With Inclusion,LITTLE WENDY HOUSE DAY NURSERY,Individual School Budgets With Inclusion,12261.38,Grant Payments,2324P07_CR00703,91544
Sandwell Metropolitan Borough Council,http://www.sandwell.gov.uk/info/200202/performance_and_spending/1079/payments_over_500,23-Oct-2023,Individual School Budgets With Inclusion,LOLA BELLES PRIVATE DAY NURSERY,Individual School Budgets With Inclusion,9174.90,Grant Payments,2324P07_CR00704,89271
Sandwell Metropolitan Borough Council,http://www.sandwell.gov.uk/info/200202/performance_and_spending/1079/payments_over_500,23-Oct-2023,Individual School Budgets With Inclusion,MINI MONKEYS LTD,Individual School Budgets With Inclusion,9264.15,Grant Payments,2324P07_CR00705,114818
Sandwell Metropolitan Borough Council,http://www.sandwell.gov.uk/info/200202/performance_and_spending/1079/payments_over_500,23-Oct-2023,Individual School Budgets With Inclusion,MINNS LIMITED,Individual School Budgets With Inclusion,5177.03,Grant Payments,2324P07_CR00706,120067
Sandwell Metropolitan Borough Council,http://www.sandwell.gov.uk/info/200202/performance_and_spending/1079/payments_over_500,23-Oct-2023,Individual School Budgets With Inclusion,MOORLANDS LITTLE LEARNERS PLAYGROUP,Individual School Budgets With Inclusion,8446.73,Grant Payments,2324P07_CR00707,46390
Sandwell Metropolitan Borough Council,http://www.sandwell.gov.uk/info/200202/performance_and_spending/1079/payments_over_500,23-Oct-2023,Individual School Budgets With Inclusion,N & K VARMA LIMITED T/A (KIDDIES PLAYHOUSE TIPTON),Individual School Budgets With Inclusion,6811.88,Grant Payments,2324P07_CR00708,26124
Sandwell Metropolitan Borough Council,http://www.sandwell.gov.uk/info/200202/performance_and_spending/1079/payments_over_500,23-Oct-2023,Individual School Budgets With Inclusion,OUR LADY AND ST HUBERTS CATHOLIC PRIMARY SCHOOL,Individual School Budgets With Inclusion,12806.33,Grant Payments,2324P07_CR00709,61053
Sandwell Metropolitan Borough Council,http://www.sandwell.gov.uk/info/200202/performance_and_spending/1079/payments_over_500,23-Oct-2023,Individual School Budgets With Inclusion,PERRYFIELDS PRE SCHOOL,Individual School Budgets With Inclusion,11072.85,Grant Payments,2324P07_CR00710,18879
Sandwell Metropolitan Borough Council,http://www.sandwell.gov.uk/info/200202/performance_and_spending/1079/payments_over_500,23-Oct-2023,Individual School Budgets With Inclusion,PITTA PATTA DAYCARE,Individual School Budgets With Inclusion,6266.93,Grant Payments,2324P07_CR00711,114742
Sandwell Metropolitan Borough Council,http://www.sandwell.gov.uk/info/200202/performance_and_spending/1079/payments_over_500,23-Oct-2023,Individual School Budgets With Inclusion,PLAYHOUSE DAY NURSERY,Individual School Budgets With Inclusion,3269.70,Grant Payments,2324P07_CR00712,01586669
Sandwell Metropolitan Borough Council,http://www.sandwell.gov.uk/info/200202/performance_and_spending/1079/payments_over_500,23-Oct-2023,Individual School Budgets With Inclusion,PRECIOUS TIMES DAY NURSERY,Individual School Budgets With Inclusion,8365.35,Grant Payments,2324P07_CR00713,165946
Sandwell Metropolitan Borough Council,http://www.sandwell.gov.uk/info/200202/performance_and_spending/1079/payments_over_500,23-Oct-2023,Individual School Budgets With Inclusion,RAK DAY CARE LTD T/A HAPPY VALLEY PRE SCHOOL LTD,Individual School Budgets With Inclusion,6266.93,Grant Payments,2324P07_CR00714,01572212
Sandwell Metropolitan Borough Council,http://www.sandwell.gov.uk/info/200202/performance_and_spending/1079/payments_over_500,23-Oct-2023,Individual School Budgets With Inclusion,RARE WOOD LIMITED,Individual School Budgets With Inclusion,14997.15,Grant Payments,2324P07_CR00715,20167
Sandwell Metropolitan Borough Council,http://www.sandwell.gov.uk/info/200202/performance_and_spending/1079/payments_over_500,23-Oct-2023,Individual School Budgets With Inclusion,REDACTED PERSONAL DATA T/A HONEYBEES HOME NURSERY,Individual School Budgets With Inclusion,801.68,Grant Payments,2324P07_CR00716,REDACTED PERSONAL DATA
Sandwell Metropolitan Borough Council,http://www.sandwell.gov.uk/info/200202/performance_and_spending/1079/payments_over_500,23-Oct-2023,Individual School Budgets With Inclusion,ROOTS & SHOOTS PLAYGROUP,Individual School Budgets With Inclusion,3337.43,Grant Payments,2324P07_CR00717,75502
Sandwell Metropolitan Borough Council,http://www.sandwell.gov.uk/info/200202/performance_and_spending/1079/payments_over_500,23-Oct-2023,Individual School Budgets With Inclusion,ROWLEY VILLAGE DAY NURSERY,Individual School Budgets With Inclusion,8991.68,Grant Payments,2324P07_CR00718,24228
Sandwell Metropolitan Borough Council,http://www.sandwell.gov.uk/info/200202/performance_and_spending/1079/payments_over_500,23-Oct-2023,Individual School Budgets With Inclusion,SADWICA DAY NURSERY,Individual School Budgets With Inclusion,6266.93,Grant Payments,2324P07_CR00719,01667892
Sandwell Metropolitan Borough Council,http://www.sandwell.gov.uk/info/200202/performance_and_spending/1079/payments_over_500,23-Oct-2023,Individual School Budgets With Inclusion,SANDWELL NHS TRUST DAY NURSERY,Individual School Budgets With Inclusion,13078.80,Grant Payments,2324P07_CR00720,40788
Sandwell Metropolitan Borough Council,http://www.sandwell.gov.uk/info/200202/performance_and_spending/1079/payments_over_500,23-Oct-2023,Individual School Budgets With Inclusion,SANTOS DAY NURSERIES,Individual School Budgets With Inclusion,10154.55,Grant Payments,2324P07_CR00721,129262
Sandwell Metropolitan Borough Council,http://www.sandwell.gov.uk/info/200202/performance_and_spending/1079/payments_over_500,23-Oct-2023,Individual School Budgets With Inclusion,SMARTY PANTS @ LIGHTWOODS HOUSE LTD,Individual School Budgets With Inclusion,5878.95,Grant Payments,2324P07_CR00722,130645
Sandwell Metropolitan Borough Council,http://www.sandwell.gov.uk/info/200202/performance_and_spending/1079/payments_over_500,23-Oct-2023,Individual School Budgets With Inclusion,SMARTY PANTS PRIVATE DAY NURSERY LTD,Individual School Budgets With Inclusion,14713.65,Grant Payments,2324P07_CR00723,74037
Sandwell Metropolitan Borough Council,http://www.sandwell.gov.uk/info/200202/performance_and_spending/1079/payments_over_500,23-Oct-2023,Individual School Budgets With Inclusion,SPON LANE DAY NURSERY LIMITED,Individual School Budgets With Inclusion,6943.13,Grant Payments,2324P07_CR00724,127024
Sandwell Metropolitan Borough Council,http://www.sandwell.gov.uk/info/200202/performance_and_spending/1079/payments_over_500,23-Oct-2023,Individual School Budgets With Inclusion,ST HUBERTS PRE-SCHOOL PLAYGROUP 2,Individual School Budgets With Inclusion,12772.90,Grant Payments,2324P07_CR00725,123074
Sandwell Metropolitan Borough Council,http://www.sandwell.gov.uk/info/200202/performance_and_spending/1079/payments_over_500,23-Oct-2023,Individual School Budgets With Inclusion,ST MICHAELS DAY NURSERY,Individual School Budgets With Inclusion,3610.43,Grant Payments,2324P07_CR00726,01698538
Sandwell Metropolitan Borough Council,http://www.sandwell.gov.uk/info/200202/performance_and_spending/1079/payments_over_500,23-Oct-2023,Individual School Budgets With Inclusion,STACEY PARTRIDGE (STEP UP CHILDCARE),Individual School Budgets With Inclusion,534.45,Grant Payments,2324P07_CR00727,151395
Sandwell Metropolitan Borough Council,http://www.sandwell.gov.uk/info/200202/performance_and_spending/1079/payments_over_500,23-Oct-2023,Individual School Budgets With Inclusion,STEPPING STONES NURSERY,Individual School Budgets With Inclusion,4857.30,Grant Payments,2324P07_CR00728,50029
Sandwell Metropolitan Borough Council,http://www.sandwell.gov.uk/info/200202/performance_and_spending/1079/payments_over_500,23-Oct-2023,Individual School Budgets With Inclusion,TENDER TROOPS DAY NURSERY AND CHILDREN HUB,Individual School Budgets With Inclusion,3083.85,Grant Payments,2324P07_CR00729,164824
Sandwell Metropolitan Borough Council,http://www.sandwell.gov.uk/info/200202/performance_and_spending/1079/payments_over_500,23-Oct-2023,Individual School Budgets With Inclusion,THE FAMILY NURSERY COMPANY LTD,Individual School Budgets With Inclusion,9536.63,Grant Payments,2324P07_CR00730,89879
Sandwell Metropolitan Borough Council,http://www.sandwell.gov.uk/info/200202/performance_and_spending/1079/payments_over_500,23-Oct-2023,Individual School Budgets With Inclusion,THE OLD STATION NURSERY,Individual School Budgets With Inclusion,5549.38,Grant Payments,2324P07_CR00731,166979
Sandwell Metropolitan Borough Council,http://www.sandwell.gov.uk/info/200202/performance_and_spending/1079/payments_over_500,23-Oct-2023,Individual School Budgets With Inclusion,THE RIVERS MULTI ACADEMY TRUST,Individual School Budgets With Inclusion,24250.28,Grant Payments,2324P07_CR00732,61014
Sandwell Metropolitan Borough Council,http://www.sandwell.gov.uk/info/200202/performance_and_spending/1079/payments_over_500,23-Oct-2023,Individual School Budgets With Inclusion,THE TODDLER HOUSE LIMITED,Individual School Budgets With Inclusion,4087.13,Grant Payments,2324P07_CR00733,122166
Sandwell Metropolitan Borough Council,http://www.sandwell.gov.uk/info/200202/performance_and_spending/1079/payments_over_500,23-Oct-2023,Individual School Budgets With Inclusion,THE WONDER YEARS DAY NURSERY LIMITED,Individual School Budgets With Inclusion,11443.95,Grant Payments,2324P07_CR00734,01647249
Sandwell Metropolitan Borough Council,http://www.sandwell.gov.uk/info/200202/performance_and_spending/1079/payments_over_500,23-Oct-2023,Individual School Budgets With Inclusion,TICK TOCK DAY NURSERY LTD,Individual School Budgets With Inclusion,8664.71,Grant Payments,2324P07_CR00735,9391
Sandwell Metropolitan Borough Council,http://www.sandwell.gov.uk/info/200202/performance_and_spending/1079/payments_over_500,23-Oct-2023,Individual School Budgets With Inclusion,TIDDLYWINKS KIDDYS NURSERY LIMITED,Individual School Budgets With Inclusion,11443.95,Grant Payments,2324P07_CR00736,110667
Sandwell Metropolitan Borough Council,http://www.sandwell.gov.uk/info/200202/performance_and_spending/1079/payments_over_500,23-Oct-2023,Individual School Budgets With Inclusion,TIMBERTREE NEIGHBOURHOOD NURSERY,Individual School Budgets With Inclusion,5289.06,Grant Payments,2324P07_CR00737,135664
Sandwell Metropolitan Borough Council,http://www.sandwell.gov.uk/info/200202/performance_and_spending/1079/payments_over_500,23-Oct-2023,Individual School Budgets With Inclusion,TINY TOEZ LIMITED,Individual School Budgets With Inclusion,5077.28,Grant Payments,2324P07_CR00738,23618
Sandwell Metropolitan Borough Council,http://www.sandwell.gov.uk/info/200202/performance_and_spending/1079/payments_over_500,23-Oct-2023,Individual School Budgets With Inclusion,"TINYWOODS PRESCHOOL,",Individual School Budgets With Inclusion,13949.15,Grant Payments,2324P07_CR00739,91788
Sandwell Metropolitan Borough Council,http://www.sandwell.gov.uk/info/200202/performance_and_spending/1079/payments_over_500,23-Oct-2023,Individual School Budgets With Inclusion,TIP TOP DAY NURSERY WEDNESBURY,Individual School Budgets With Inclusion,7901.78,Grant Payments,2324P07_CR00740,147082
Sandwell Metropolitan Borough Council,http://www.sandwell.gov.uk/info/200202/performance_and_spending/1079/payments_over_500,23-Oct-2023,Individual School Budgets With Inclusion,TIPTON NURSERY,Individual School Budgets With Inclusion,6943.13,Grant Payments,2324P07_CR00741,89881
Sandwell Metropolitan Borough Council,http://www.sandwell.gov.uk/info/200202/performance_and_spending/1079/payments_over_500,23-Oct-2023,Individual School Budgets With Inclusion,TIPTON TODDLERS DAY NURSERY,Individual School Budgets With Inclusion,7285.95,Grant Payments,2324P07_CR00742,4397
Sandwell Metropolitan Borough Council,http://www.sandwell.gov.uk/info/200202/performance_and_spending/1079/payments_over_500,23-Oct-2023,Individual School Budgets With Inclusion,TULIP DAY NURSERY LTD,Individual School Budgets With Inclusion,3888.15,Grant Payments,2324P07_CR00743,152250
Sandwell Metropolitan Borough Council,http://www.sandwell.gov.uk/info/200202/performance_and_spending/1079/payments_over_500,23-Oct-2023,Individual School Budgets With Inclusion,TWO STEPS PRE-SCHOOL,Individual School Budgets With Inclusion,2803.50,Grant Payments,2324P07_CR00744,109186
Sandwell Metropolitan Borough Council,http://www.sandwell.gov.uk/info/200202/performance_and_spending/1079/payments_over_500,23-Oct-2023,Individual School Budgets With Inclusion,UNICORN DAY NURSERY,Individual School Budgets With Inclusion,15436.05,Grant Payments,2324P07_CR00745,91543
